Body_Code,Body_Name,Service_Area,Responsible_Unit,Expense_Type,Expense_Code,Narrative,Date,Transaction_Number,Amount,Supplier_Name
http://statistics.data.gov.uk/id/local-authority/38,Oxfordshire County Council,SCS Pooled Budgets,IAES - Management,Voluntary Associations,55400,Service Agreements-A,03/05/2013,3100051337,-33005,Oxford Health NHS
http://statistics.data.gov.uk/id/local-authority/38,Oxfordshire County Council,SCS Pooled Budgets,Community Support Budget - County,Other Agency and Contracted Services,57300,Home Support (Ext) OS&HCD,03/05/2013,3100051337,-1231,Oxford Health NHS
http://statistics.data.gov.uk/id/local-authority/38,Oxfordshire County Council,SCS Pooled Budgets,IAES - Management,Voluntary Associations,55400,Service Agreements-A,03/05/2013,3100051442,-18052.3,Oxford Health NHS
http://statistics.data.gov.uk/id/local-authority/38,Oxfordshire County Council,SCS Pooled Budgets,IAES - Management,Voluntary Associations,55400,Service Agreements-A,01/05/2013,3100051443,-18052.3,Oxford Health NHS
http://statistics.data.gov.uk/id/local-authority/38,Oxfordshire County Council,SCS Pooled Budgets,IAES - Management,Voluntary Associations,55400,Service Agreements-A,01/05/2013,3100051497,18052.3,Oxford Health NHS
http://statistics.data.gov.uk/id/local-authority/38,Oxfordshire County Council,SCS Pooled Budgets,Community Support Budget - County,Other Agency and Contracted Services,57300,Home Support (Ext) OS&HCD,03/05/2013,3100051525,-854.6,Oxford Health NHS
http://statistics.data.gov.uk/id/local-authority/38,Oxfordshire County Council,Highways & Transport,"Electrical NP Rds, Street Lighting",Private Contractors,56400,Major Contracts,16/05/2013,3100051539,-909,Southern Electric Contracting Ltd.
http://statistics.data.gov.uk/id/local-authority/38,Oxfordshire County Council,SCS Pooled Budgets,Personal Health Budgets PD (PCT),Other Agency and Contracted Services,57401,Direct Payments,08/05/2013,3100051540,-2370,Age UK Oxfordshire
http://statistics.data.gov.uk/id/local-authority/38,Oxfordshire County Council,Education & Early Intervention,Banbury Hub,Balance Sheet General,B2030,Goods Received not Invoiced,09/05/2013,3100051555,-468.5,D & Wp
http://statistics.data.gov.uk/id/local-authority/38,Oxfordshire County Council,Children's Social Care,Agency Residential - Disabilities,Other Agency and Contracted Services,57801,Independent Fostering Agencies,29/05/2013,3100051671,-3703.57,FOSTERPLUS LTD
http://statistics.data.gov.uk/id/local-authority/38,Oxfordshire County Council,SCS Pooled Budgets,OP Pool Fast Track,Other Agency and Contracted Services,57304,Home Support (Ext) Palliative Care,09/05/2013,3150004484,-893.48,Golden Services
http://statistics.data.gov.uk/id/local-authority/38,Oxfordshire County Council,Scheduled Bodies,West Oxfordshire District Council,Pension Fund Revenue,PR401,Transfers out,01/05/2013,3300003779,518269.7,Gloucestershire LGPS
http://statistics.data.gov.uk/id/local-authority/38,Oxfordshire County Council,Scheduled Bodies,Thames Valley Magistrates Courts,Pension Fund Revenue,PR401,Transfers out,01/05/2013,3300003895,6304.17,Aegon
http://statistics.data.gov.uk/id/local-authority/38,Oxfordshire County Council,Scheduled Bodies,Oxford Brookes Univeristy,Pension Fund Revenue,PR401,Transfers out,01/05/2013,3300003913,31203.98,Univs Superann Scheme Ltd Trust Fun
http://statistics.data.gov.uk/id/local-authority/38,Oxfordshire County Council,Scheduled Bodies,Oxford City Council,Pension Fund Revenue,PR401,Transfers out,08/05/2013,3300003925,81986.88,The Southland Pension Scheme
http://statistics.data.gov.uk/id/local-authority/38,Oxfordshire County Council,Scheduled Bodies,Oxfordshire County Council,Pension Fund Revenue,PR401,Transfers out,15/05/2013,3300003943,1006.97,North Yorkshire County Council Pens
http://statistics.data.gov.uk/id/local-authority/38,Oxfordshire County Council,Scheduled Bodies,Oxfordshire County Council,Pension Fund Revenue,PR401,Transfers out,15/05/2013,3300003944,1736.94,North Yorkshire County Council Pens
http://statistics.data.gov.uk/id/local-authority/38,Oxfordshire County Council,Scheduled Bodies,Oxford City Council,Pension Fund Revenue,PR401,Transfers out,21/05/2013,3300003962,3312.87,Hampshire County Council
http://statistics.data.gov.uk/id/local-authority/38,Oxfordshire County Council,In-House,Miscellaneous,Pension Fund Balance Sheet,PB810,Give As You Earn,17/05/2013,3300003965,657.09,Charities Aid Foundation
http://statistics.data.gov.uk/id/local-authority/38,Oxfordshire County Council,Scheduled Bodies,Oxford Brookes Univeristy,Pension Fund Revenue,PR401,Transfers out,20/05/2013,3300003969,37055.89,NHS Scotland
http://statistics.data.gov.uk/id/local-authority/38,Oxfordshire County Council,In-House,Miscellaneous,Pension Fund Balance Sheet,PB809,Pension Refund,21/05/2013,3300003979,1436.16,Oxford City Council
http://statistics.data.gov.uk/id/local-authority/38,Oxfordshire County Council,Scheduled Bodies,Oxfordshire County Council,Pension Fund Revenue,PR401,Transfers out,22/05/2013,3300003984,4334.41,Buckinghamshire County Council
http://statistics.data.gov.uk/id/local-authority/38,Oxfordshire County Council,Scheduled Bodies,Oxfordshire County Council,Pension Fund Revenue,PR401,Transfers out,22/05/2013,3300003984,883.03,Buckinghamshire County Council
http://statistics.data.gov.uk/id/local-authority/38,Oxfordshire County Council,Admitted Bodies,Capita Symonds Ltd,Pension Fund Revenue,PR401,Transfers out,24/05/2013,3300003989,23382.65,Buckinghamshire County Council
http://statistics.data.gov.uk/id/local-authority/38,Oxfordshire County Council,Scheduled Bodies,Oxford City Council,Pension Fund Revenue,PR401,Transfers out,29/05/2013,3300003994,1355.68,Univs Superann Scheme Ltd Trust Fun
http://statistics.data.gov.uk/id/local-authority/38,Oxfordshire County Council,Scheduled Bodies,South Oxfordshire District Council,Pension Fund Revenue,PR507,Combined Benefits Basic Pension,29/05/2013,3300003997,1620.62,Dorset County Council
http://statistics.data.gov.uk/id/local-authority/38,Oxfordshire County Council,Admitted Bodies,Oxford Spires Academy,Pension Fund Revenue,PR401,Transfers out,29/05/2013,3300004000,15036.05,NHS Pension Scheme
http://statistics.data.gov.uk/id/local-authority/38,Oxfordshire County Council,Scheduled Bodies,Oxford Brookes Univeristy,Pension Fund Revenue,PR401,Transfers out,29/05/2013,3300004002,10019.55,Univs Superann Scheme Ltd Trust Fun
http://statistics.data.gov.uk/id/local-authority/38,Oxfordshire County Council,Children's Social Care,Family Support South 2,Balance Sheet General,B2030,Goods Received not Invoiced,16/05/2013,3301652767,1258,Caritas Recruitment Ltd
http://statistics.data.gov.uk/id/local-authority/38,Oxfordshire County Council,SCS Pooled Budgets,Community Support Budget - County,Other Agency and Contracted Services,57300,Home Support (Ext) OS&HCD,07/05/2013,3301669075,3082,Oxford Health NHS
http://statistics.data.gov.uk/id/local-authority/38,Oxfordshire County Council,SCS Pooled Budgets,IAES - Management,Voluntary Associations,55400,Service Agreements-A,07/05/2013,3301669075,14952.7,Oxford Health NHS
http://statistics.data.gov.uk/id/local-authority/38,Oxfordshire County Council,SCS Pooled Budgets,Community Support Budget - County,Other Agency and Contracted Services,57300,Home Support (Ext) OS&HCD,03/05/2013,3301669193,8191,Oxford Health NHS
http://statistics.data.gov.uk/id/local-authority/38,Oxfordshire County Council,SCS Pooled Budgets,Community Support Budget - County,Other Agency and Contracted Services,57300,Home Support (Ext) OS&HCD,03/05/2013,3301669194,7423.8,Oxford Health NHS
http://statistics.data.gov.uk/id/local-authority/38,Oxfordshire County Council,Social & Community Services,Community Support Budget - City East,Other Agency and Contracted Services,57300,Home Support (Ext) OS&HCD,01/05/2013,3301671030,779.19,The Kingwood Trust
http://statistics.data.gov.uk/id/local-authority/38,Oxfordshire County Council,Highways & Transport,Signs/Lines/LSS,Private Contractors,56400,Major Contracts,09/05/2013,3301671057,3380,Solagen Ltd
http://statistics.data.gov.uk/id/local-authority/38,Oxfordshire County Council,Education & Early Intervention,Leading the EYFS (Q&I),Transport Related,35100,Volunteer Travel Expenses,01/05/2013,3301671064,638.4,Peach Tree Pre-School
http://statistics.data.gov.uk/id/local-authority/38,Oxfordshire County Council,Chief Executive & Business Support,Big Society Fund,Grants and Subscriptions,47100,Grants to Voluntary,10/05/2013,3301671297,13284.1,Banbury Town Council
http://statistics.data.gov.uk/id/local-authority/38,Oxfordshire County Council,Chief Executive & Business Support,Big Society Fund,Grants and Subscriptions,47100,Grants to Voluntary,02/05/2013,3301671345,1000,Wolvercote Young People's
http://statistics.data.gov.uk/id/local-authority/38,Oxfordshire County Council,SCS Pooled Budgets,OP Pool Order of St John Block,Total Other R&M,21201,Bld Scheduled (Del),02/05/2013,3301671709,66772.33,The Orders of St John cCare Trust
http://statistics.data.gov.uk/id/local-authority/38,Oxfordshire County Council,STD Insurance,LMS,Liability Insurance Fund Rev AC,Z5246,Liability IF External Premium,15/05/2013,3301671711,22877.36,Zurich Management Services
http://statistics.data.gov.uk/id/local-authority/38,Oxfordshire County Council,STD Insurance,School Journey,Schools Journeys Insurance Rev A/C,Z5597,School Journeys Ins Receipts (Ad hoc),14/05/2013,3301671712,10880.68,Zurich Management Services
http://statistics.data.gov.uk/id/local-authority/38,Oxfordshire County Council,SCS Pooled Budgets,Community Support Budget - County,Other Agency and Contracted Services,57300,Home Support (Ext) OS&HCD,03/05/2013,3301671714,4266,Oxford Health NHS
http://statistics.data.gov.uk/id/local-authority/38,Oxfordshire County Council,SCS Pooled Budgets,Community Support Budget - County,Other Agency and Contracted Services,57300,Home Support (Ext) OS&HCD,03/05/2013,3301671715,7863.4,Oxford Health NHS
http://statistics.data.gov.uk/id/local-authority/38,Oxfordshire County Council,Education & Early Intervention,Leading the EYFS (Q&I),Grants and Subscriptions,47100,Grants to Voluntary,10/05/2013,3301671942,965,Castle Pre-School
http://statistics.data.gov.uk/id/local-authority/38,Oxfordshire County Council,Highways & Transport,Electrical Energy,Private Contractors,56700,Electrical Main Energy,01/05/2013,3301672437,196659.98,Npower Ltd
http://statistics.data.gov.uk/id/local-authority/38,Oxfordshire County Council,Highways & Transport,Public Transport Development Plan,Private Contractors,56700,Electrical Main Energy,01/05/2013,3301672437,531.79,Npower Ltd
http://statistics.data.gov.uk/id/local-authority/38,Oxfordshire County Council,Highways & Transport,Electrical Energy,Private Contractors,56700,Electrical Main Energy,01/05/2013,3301672438,6610,Npower Ltd
http://statistics.data.gov.uk/id/local-authority/38,Oxfordshire County Council,Highways & Transport,Electrical Energy,Private Contractors,56700,Electrical Main Energy,01/05/2013,3301672440,6873.64,Npower Ltd
http://statistics.data.gov.uk/id/local-authority/38,Oxfordshire County Council,Highways & Transport,Electrical Energy,Private Contractors,56700,Electrical Main Energy,01/05/2013,3301672441,30926.89,Npower Ltd
http://statistics.data.gov.uk/id/local-authority/38,Oxfordshire County Council,SCS Pooled Budgets,Community Support Budget - Banbury,Other Agency and Contracted Services,57401,Direct Payments,01/05/2013,3301673633,567.6,REDACTED PERSONAL DATA
http://statistics.data.gov.uk/id/local-authority/38,Oxfordshire County Council,SCS Pooled Budgets,Direct Payments City Team,Other Agency and Contracted Services,57401,Direct Payments,01/05/2013,3301673634,1716.6,REDACTED PERSONAL DATA
http://statistics.data.gov.uk/id/local-authority/38,Oxfordshire County Council,SCS Pooled Budgets,PD Comm Supp Budgt - Bicester/Kidlington,Other Agency and Contracted Services,57401,Direct Payments,01/05/2013,3301673635,640,REDACTED PERSONAL DATA
http://statistics.data.gov.uk/id/local-authority/38,Oxfordshire County Council,SCS Pooled Budgets,Community Support Budget - City,Other Agency and Contracted Services,57401,Direct Payments,01/05/2013,3301673640,2064.8,REDACTED PERSONAL DATA
http://statistics.data.gov.uk/id/local-authority/38,Oxfordshire County Council,SCS Pooled Budgets,PD Comm Supp Purchasg Budget - City,Other Agency and Contracted Services,57401,Direct Payments,01/05/2013,3301673641,993.56,REDACTED PERSONAL DATA
http://statistics.data.gov.uk/id/local-authority/38,Oxfordshire County Council,SCS Pooled Budgets,PD Comm Supp Purchasg Budget - City,Other Agency and Contracted Services,57401,Direct Payments,01/05/2013,3301673647,1118.12,REDACTED PERSONAL DATA
http://statistics.data.gov.uk/id/local-authority/38,Oxfordshire County Council,SCS Pooled Budgets,PD Comm Supp Budget - Banbury,Other Agency and Contracted Services,57401,Direct Payments,01/05/2013,3301673649,2292,REDACTED PERSONAL DATA
http://statistics.data.gov.uk/id/local-authority/38,Oxfordshire County Council,SCS Pooled Budgets,Direct Payments South Team,Other Agency and Contracted Services,57401,Direct Payments,01/05/2013,3301673650,3600,REDACTED PERSONAL DATA
http://statistics.data.gov.uk/id/local-authority/38,Oxfordshire County Council,SCS Pooled Budgets,Community Support Budget - Banbury,Other Agency and Contracted Services,57401,Direct Payments,01/05/2013,3301673651,2680.28,REDACTED PERSONAL DATA
http://statistics.data.gov.uk/id/local-authority/38,Oxfordshire County Council,SCS Pooled Budgets,Community Support Budget - Banbury,Other Agency and Contracted Services,57401,Direct Payments,01/05/2013,3301673652,652,REDACTED PERSONAL DATA
http://statistics.data.gov.uk/id/local-authority/38,Oxfordshire County Council,SCS Pooled Budgets,Direct Payments North Team,Other Agency and Contracted Services,57401,Direct Payments,01/05/2013,3301673653,1013.6,REDACTED PERSONAL DATA
http://statistics.data.gov.uk/id/local-authority/38,Oxfordshire County Council,SCS Pooled Budgets,Personal Health Budgets PD (PCT),Other Agency and Contracted Services,57401,Direct Payments,01/05/2013,3301673655,6773.88,REDACTED PERSONAL DATA
http://statistics.data.gov.uk/id/local-authority/38,Oxfordshire County Council,SCS Pooled Budgets,PD Comm Supp Purchasg Budget - Thame,Other Agency and Contracted Services,57401,Direct Payments,01/05/2013,3301673656,964,REDACTED PERSONAL DATA
http://statistics.data.gov.uk/id/local-authority/38,Oxfordshire County Council,SCS Pooled Budgets,Community Support Budget - City,Other Agency and Contracted Services,57401,Direct Payments,01/05/2013,3301673658,2004,REDACTED PERSONAL DATA
http://statistics.data.gov.uk/id/local-authority/38,Oxfordshire County Council,SCS Pooled Budgets,OP Pool Continuing Care Delegated Health,Other Agency and Contracted Services,57401,Direct Payments,01/05/2013,3301673658,532,REDACTED PERSONAL DATA
http://statistics.data.gov.uk/id/local-authority/38,Oxfordshire County Council,SCS Pooled Budgets,Community Support Budget - City,Other Agency and Contracted Services,57401,Direct Payments,01/05/2013,3301673660,2391.52,REDACTED PERSONAL DATA
http://statistics.data.gov.uk/id/local-authority/38,Oxfordshire County Council,SCS Pooled Budgets,Community Support Budget - Bicester,Other Agency and Contracted Services,57401,Direct Payments,01/05/2013,3301673661,2072,REDACTED PERSONAL DATA
http://statistics.data.gov.uk/id/local-authority/38,Oxfordshire County Council,SCS Pooled Budgets,Community Support Budget - Banbury,Other Agency and Contracted Services,57401,Direct Payments,01/05/2013,3301673663,900,REDACTED PERSONAL DATA
http://statistics.data.gov.uk/id/local-authority/38,Oxfordshire County Council,SCS Pooled Budgets,Community Support Budget - City,Other Agency and Contracted Services,57401,Direct Payments,01/05/2013,3301673664,1079.36,REDACTED PERSONAL DATA
http://statistics.data.gov.uk/id/local-authority/38,Oxfordshire County Council,SCS Pooled Budgets,Community Support Budget - Thame,Other Agency and Contracted Services,57401,Direct Payments,01/05/2013,3301673665,1902.76,REDACTED PERSONAL DATA
http://statistics.data.gov.uk/id/local-authority/38,Oxfordshire County Council,SCS Pooled Budgets,Community Support Budget - Bicester,Other Agency and Contracted Services,57401,Direct Payments,01/05/2013,3301673667,2124,REDACTED PERSONAL DATA
http://statistics.data.gov.uk/id/local-authority/38,Oxfordshire County Council,Social & Community Services,Community Support Budget - City East,Other Agency and Contracted Services,57401,Direct Payments,01/05/2013,3301673670,640,REDACTED PERSONAL DATA
http://statistics.data.gov.uk/id/local-authority/38,Oxfordshire County Council,SCS Pooled Budgets,Community Support Budget - Abingdon,Other Agency and Contracted Services,57401,Direct Payments,01/05/2013,3301673671,1896,REDACTED PERSONAL DATA
http://statistics.data.gov.uk/id/local-authority/38,Oxfordshire County Council,SCS Pooled Budgets,Community Support Budget - Didcot,Other Agency and Contracted Services,57401,Direct Payments,01/05/2013,3301673672,1600,REDACTED PERSONAL DATA
http://statistics.data.gov.uk/id/local-authority/38,Oxfordshire County Council,SCS Pooled Budgets,PD Comm Supp Budget - Banbury,Other Agency and Contracted Services,57401,Direct Payments,01/05/2013,3301673674,628,REDACTED PERSONAL DATA
http://statistics.data.gov.uk/id/local-authority/38,Oxfordshire County Council,SCS Pooled Budgets,Direct Payments South Team,Other Agency and Contracted Services,57401,Direct Payments,01/05/2013,3301673677,954.68,REDACTED PERSONAL DATA
http://statistics.data.gov.uk/id/local-authority/38,Oxfordshire County Council,SCS Pooled Budgets,Direct Payments South Team,Other Agency and Contracted Services,57401,Direct Payments,01/05/2013,3301673678,954.68,REDACTED PERSONAL DATA
http://statistics.data.gov.uk/id/local-authority/38,Oxfordshire County Council,SCS Pooled Budgets,Community Support Budget - Didcot,Other Agency and Contracted Services,57401,Direct Payments,01/05/2013,3301673680,633.84,REDACTED PERSONAL DATA
http://statistics.data.gov.uk/id/local-authority/38,Oxfordshire County Council,SCS Pooled Budgets,Community Support Budget - Abingdon,Other Agency and Contracted Services,57401,Direct Payments,01/05/2013,3301673682,2708,REDACTED PERSONAL DATA
http://statistics.data.gov.uk/id/local-authority/38,Oxfordshire County Council,SCS Pooled Budgets,Community Support Budget - Didcot,Other Agency and Contracted Services,57401,Direct Payments,01/05/2013,3301673683,887.39,REDACTED PERSONAL DATA
http://statistics.data.gov.uk/id/local-authority/38,Oxfordshire County Council,SCS Pooled Budgets,Direct Payments City Team,Other Agency and Contracted Services,57401,Direct Payments,01/05/2013,3301673687,520,REDACTED PERSONAL DATA
http://statistics.data.gov.uk/id/local-authority/38,Oxfordshire County Council,SCS Pooled Budgets,Direct Payments South Team,Other Agency and Contracted Services,57401,Direct Payments,01/05/2013,3301673688,2307.68,REDACTED PERSONAL DATA
http://statistics.data.gov.uk/id/local-authority/38,Oxfordshire County Council,SCS Pooled Budgets,Direct Payments North Team,Other Agency and Contracted Services,57401,Direct Payments,01/05/2013,3301673689,4931.68,REDACTED PERSONAL DATA
http://statistics.data.gov.uk/id/local-authority/38,Oxfordshire County Council,SCS Pooled Budgets,Direct Payments South Team,Other Agency and Contracted Services,57401,Direct Payments,01/05/2013,3301673690,1537.6,REDACTED PERSONAL DATA
http://statistics.data.gov.uk/id/local-authority/38,Oxfordshire County Council,SCS Pooled Budgets,Personal Health Budgets PD (PCT),Other Agency and Contracted Services,57401,Direct Payments,01/05/2013,3301673691,2990,REDACTED PERSONAL DATA
http://statistics.data.gov.uk/id/local-authority/38,Oxfordshire County Council,SCS Pooled Budgets,PD Comm Supp Purchasg Budget - Henley,Other Agency and Contracted Services,57401,Direct Payments,01/05/2013,3301673692,1280,REDACTED PERSONAL DATA
http://statistics.data.gov.uk/id/local-authority/38,Oxfordshire County Council,SCS Pooled Budgets,PD Comm Supp Purchasg Budget - Thame,Other Agency and Contracted Services,57401,Direct Payments,01/05/2013,3301673694,847.08,REDACTED PERSONAL DATA
http://statistics.data.gov.uk/id/local-authority/38,Oxfordshire County Council,SCS Pooled Budgets,PD Comm Supp Purchasg Budget - Abingdon,Other Agency and Contracted Services,57401,Direct Payments,01/05/2013,3301673695,879.78,REDACTED PERSONAL DATA
http://statistics.data.gov.uk/id/local-authority/38,Oxfordshire County Council,SCS Pooled Budgets,PD Comm Supp Purchasg Budget - Witney,Other Agency and Contracted Services,57401,Direct Payments,01/05/2013,3301673696,4162.4,REDACTED PERSONAL DATA
http://statistics.data.gov.uk/id/local-authority/38,Oxfordshire County Council,SCS Pooled Budgets,Direct Payments City Team,Other Agency and Contracted Services,57401,Direct Payments,01/05/2013,3301673698,560,REDACTED PERSONAL DATA
http://statistics.data.gov.uk/id/local-authority/38,Oxfordshire County Council,SCS Pooled Budgets,Direct Payments South Team,Other Agency and Contracted Services,57401,Direct Payments,01/05/2013,3301673700,938.4,REDACTED PERSONAL DATA
http://statistics.data.gov.uk/id/local-authority/38,Oxfordshire County Council,SCS Pooled Budgets,Community Support Budget - Witney,Other Agency and Contracted Services,57401,Direct Payments,01/05/2013,3301673701,1084,REDACTED PERSONAL DATA
http://statistics.data.gov.uk/id/local-authority/38,Oxfordshire County Council,SCS Pooled Budgets,PD Comm Supp Purchasg Budget - Wantage,Other Agency and Contracted Services,57401,Direct Payments,01/05/2013,3301673702,516,REDACTED PERSONAL DATA
http://statistics.data.gov.uk/id/local-authority/38,Oxfordshire County Council,SCS Pooled Budgets,PD Comm Supp Purchasg Budget - Witney,Other Agency and Contracted Services,57401,Direct Payments,01/05/2013,3301673703,1200,REDACTED PERSONAL DATA
http://statistics.data.gov.uk/id/local-authority/38,Oxfordshire County Council,SCS Pooled Budgets,Community Support Budget - City,Other Agency and Contracted Services,57401,Direct Payments,01/05/2013,3301673704,688,REDACTED PERSONAL DATA
http://statistics.data.gov.uk/id/local-authority/38,Oxfordshire County Council,SCS Pooled Budgets,Community Support Budget - Faringdon,Other Agency and Contracted Services,57401,Direct Payments,01/05/2013,3301673707,672,REDACTED PERSONAL DATA
http://statistics.data.gov.uk/id/local-authority/38,Oxfordshire County Council,SCS Pooled Budgets,Community Support Budget - Chipping Nort,Other Agency and Contracted Services,57401,Direct Payments,01/05/2013,3301673708,724,REDACTED PERSONAL DATA
http://statistics.data.gov.uk/id/local-authority/38,Oxfordshire County Council,SCS Pooled Budgets,Community Support Budget - Henley,Other Agency and Contracted Services,57401,Direct Payments,01/05/2013,3301673709,1680,REDACTED PERSONAL DATA
http://statistics.data.gov.uk/id/local-authority/38,Oxfordshire County Council,SCS Pooled Budgets,Community Support Budget - Thame,Other Agency and Contracted Services,57401,Direct Payments,01/05/2013,3301673710,500,REDACTED PERSONAL DATA
http://statistics.data.gov.uk/id/local-authority/38,Oxfordshire County Council,SCS Pooled Budgets,Direct Payments City Team,Other Agency and Contracted Services,57401,Direct Payments,01/05/2013,3301673711,960,REDACTED PERSONAL DATA
http://statistics.data.gov.uk/id/local-authority/38,Oxfordshire County Council,SCS Pooled Budgets,PD Comm Supp Purchasg Budget - City,Other Agency and Contracted Services,57401,Direct Payments,01/05/2013,3301673712,585.4,REDACTED PERSONAL DATA
http://statistics.data.gov.uk/id/local-authority/38,Oxfordshire County Council,SCS Pooled Budgets,Direct Payments South Team,Other Agency and Contracted Services,57401,Direct Payments,01/05/2013,3301673714,954.92,REDACTED PERSONAL DATA
http://statistics.data.gov.uk/id/local-authority/38,Oxfordshire County Council,SCS Pooled Budgets,Direct Payments North Team,Other Agency and Contracted Services,57401,Direct Payments,01/05/2013,3301673716,863.08,REDACTED PERSONAL DATA
http://statistics.data.gov.uk/id/local-authority/38,Oxfordshire County Council,SCS Pooled Budgets,Direct Payments City Team,Other Agency and Contracted Services,57401,Direct Payments,01/05/2013,3301673718,605.96,REDACTED PERSONAL DATA
http://statistics.data.gov.uk/id/local-authority/38,Oxfordshire County Council,SCS Pooled Budgets,Community Support Budget - Didcot,Other Agency and Contracted Services,57401,Direct Payments,01/05/2013,3301673719,500,REDACTED PERSONAL DATA
http://statistics.data.gov.uk/id/local-authority/38,Oxfordshire County Council,SCS Pooled Budgets,Direct Payments North Team,Other Agency and Contracted Services,57401,Direct Payments,01/05/2013,3301673720,1468.16,REDACTED PERSONAL DATA
http://statistics.data.gov.uk/id/local-authority/38,Oxfordshire County Council,SCS Pooled Budgets,Direct Payments City Team,Other Agency and Contracted Services,57401,Direct Payments,01/05/2013,3301673721,1824.05,REDACTED PERSONAL DATA
http://statistics.data.gov.uk/id/local-authority/38,Oxfordshire County Council,SCS Pooled Budgets,Direct Payments North Team,Other Agency and Contracted Services,57401,Direct Payments,01/05/2013,3301673721,-1920.2,REDACTED PERSONAL DATA
http://statistics.data.gov.uk/id/local-authority/38,Oxfordshire County Council,SCS Pooled Budgets,Direct Payments City Team,Other Agency and Contracted Services,57401,Direct Payments,01/05/2013,3301673721,1094.43,REDACTED PERSONAL DATA
http://statistics.data.gov.uk/id/local-authority/38,Oxfordshire County Council,SCS Pooled Budgets,Direct Payments City Team,Other Agency and Contracted Services,57401,Direct Payments,01/05/2013,3301673722,562.16,REDACTED PERSONAL DATA
http://statistics.data.gov.uk/id/local-authority/38,Oxfordshire County Council,SCS Pooled Budgets,Direct Payments South Team,Other Agency and Contracted Services,57401,Direct Payments,01/05/2013,3301673723,777.34,REDACTED PERSONAL DATA
http://statistics.data.gov.uk/id/local-authority/38,Oxfordshire County Council,SCS Pooled Budgets,Direct Payments South Team,Other Agency and Contracted Services,57401,Direct Payments,01/05/2013,3301673724,1287.68,REDACTED PERSONAL DATA
http://statistics.data.gov.uk/id/local-authority/38,Oxfordshire County Council,SCS Pooled Budgets,Community Support Budget - Witney,Other Agency and Contracted Services,57401,Direct Payments,01/05/2013,3301673725,1868,REDACTED PERSONAL DATA
http://statistics.data.gov.uk/id/local-authority/38,Oxfordshire County Council,SCS Pooled Budgets,PHB OP Package,Other Agency and Contracted Services,57401,Direct Payments,01/05/2013,3301673726,3000,REDACTED PERSONAL DATA
http://statistics.data.gov.uk/id/local-authority/38,Oxfordshire County Council,SCS Pooled Budgets,PD Comm Supp Budgt - Bicester/Kidlington,Other Agency and Contracted Services,57401,Direct Payments,01/05/2013,3301673727,632,REDACTED PERSONAL DATA
http://statistics.data.gov.uk/id/local-authority/38,Oxfordshire County Council,SCS Pooled Budgets,Direct Payments North Team,Other Agency and Contracted Services,57401,Direct Payments,01/05/2013,3301673729,6820.84,REDACTED PERSONAL DATA
http://statistics.data.gov.uk/id/local-authority/38,Oxfordshire County Council,SCS Pooled Budgets,PD Comm Supp Purchasg Budget - Witney,Other Agency and Contracted Services,57401,Direct Payments,01/05/2013,3301673730,1846.44,REDACTED PERSONAL DATA
http://statistics.data.gov.uk/id/local-authority/38,Oxfordshire County Council,SCS Pooled Budgets,Direct Payments South Team,Other Agency and Contracted Services,57401,Direct Payments,01/05/2013,3301673731,15370.2,REDACTED PERSONAL DATA
http://statistics.data.gov.uk/id/local-authority/38,Oxfordshire County Council,SCS Pooled Budgets,Community Support Budget - Wantage,Other Agency and Contracted Services,57401,Direct Payments,01/05/2013,3301673732,1948,REDACTED PERSONAL DATA
http://statistics.data.gov.uk/id/local-authority/38,Oxfordshire County Council,SCS Pooled Budgets,Community Support Budget - Thame,Other Agency and Contracted Services,57401,Direct Payments,01/05/2013,3301673733,960.4,REDACTED PERSONAL DATA
http://statistics.data.gov.uk/id/local-authority/38,Oxfordshire County Council,SCS Pooled Budgets,OP Pool Continuing Care Delegated Health,Other Agency and Contracted Services,57401,Direct Payments,01/05/2013,3301673733,551.6,REDACTED PERSONAL DATA
http://statistics.data.gov.uk/id/local-authority/38,Oxfordshire County Council,SCS Pooled Budgets,PD Comm Supp Purchasg Budget - Abingdon,Other Agency and Contracted Services,57401,Direct Payments,01/05/2013,3301673736,1481.64,REDACTED PERSONAL DATA
http://statistics.data.gov.uk/id/local-authority/38,Oxfordshire County Council,SCS Pooled Budgets,Community Support Budget - Abingdon,Other Agency and Contracted Services,57401,Direct Payments,01/05/2013,3301673737,1634.12,REDACTED PERSONAL DATA
http://statistics.data.gov.uk/id/local-authority/38,Oxfordshire County Council,SCS Pooled Budgets,PD Comm Supp Purchasg Budget - Abingdon,Other Agency and Contracted Services,57401,Direct Payments,01/05/2013,3301673738,1077.6,REDACTED PERSONAL DATA
http://statistics.data.gov.uk/id/local-authority/38,Oxfordshire County Council,SCS Pooled Budgets,PD Comm Supp Purchasg Budget - City,Other Agency and Contracted Services,57401,Direct Payments,01/05/2013,3301673740,1520.52,REDACTED PERSONAL DATA
http://statistics.data.gov.uk/id/local-authority/38,Oxfordshire County Council,SCS Pooled Budgets,PD Comm Supp Purchasg Budget - Chip. N.,Other Agency and Contracted Services,57401,Direct Payments,01/05/2013,3301673742,1372,REDACTED PERSONAL DATA
http://statistics.data.gov.uk/id/local-authority/38,Oxfordshire County Council,SCS Pooled Budgets,Community Support Budget - Didcot,Other Agency and Contracted Services,57401,Direct Payments,01/05/2013,3301673743,3175.48,REDACTED PERSONAL DATA
http://statistics.data.gov.uk/id/local-authority/38,Oxfordshire County Council,SCS Pooled Budgets,OP Pool Continuing Care Delegated Health,Other Agency and Contracted Services,57401,Direct Payments,01/05/2013,3301673743,886.52,REDACTED PERSONAL DATA
http://statistics.data.gov.uk/id/local-authority/38,Oxfordshire County Council,SCS Pooled Budgets,Direct Payments North Team,Other Agency and Contracted Services,57401,Direct Payments,01/05/2013,3301673744,656,REDACTED PERSONAL DATA
http://statistics.data.gov.uk/id/local-authority/38,Oxfordshire County Council,SCS Pooled Budgets,Direct Payments South Team,Other Agency and Contracted Services,57401,Direct Payments,01/05/2013,3301673745,5684.16,REDACTED PERSONAL DATA
http://statistics.data.gov.uk/id/local-authority/38,Oxfordshire County Council,SCS Pooled Budgets,Direct Payments South Team,Other Agency and Contracted Services,57401,Direct Payments,01/05/2013,3301673746,3842.2,REDACTED PERSONAL DATA
http://statistics.data.gov.uk/id/local-authority/38,Oxfordshire County Council,SCS Pooled Budgets,Direct Payments South Team,Other Agency and Contracted Services,57401,Direct Payments,01/05/2013,3301673747,6036,REDACTED PERSONAL DATA
http://statistics.data.gov.uk/id/local-authority/38,Oxfordshire County Council,SCS Pooled Budgets,PD CS Purch Budget - Health S28a JC,Other Agency and Contracted Services,57401,Direct Payments,01/05/2013,3301673748,532,REDACTED PERSONAL DATA
http://statistics.data.gov.uk/id/local-authority/38,Oxfordshire County Council,SCS Pooled Budgets,PD Comm Supp Budget - Banbury,Other Agency and Contracted Services,57401,Direct Payments,01/05/2013,3301673748,2323.12,REDACTED PERSONAL DATA
http://statistics.data.gov.uk/id/local-authority/38,Oxfordshire County Council,SCS Pooled Budgets,PD Comm Supp Budget - Banbury,Other Agency and Contracted Services,57401,Direct Payments,01/05/2013,3301673749,1859.08,REDACTED PERSONAL DATA
http://statistics.data.gov.uk/id/local-authority/38,Oxfordshire County Council,SCS Pooled Budgets,Direct Payments City Team,Other Agency and Contracted Services,57401,Direct Payments,01/05/2013,3301673750,1360,REDACTED PERSONAL DATA
http://statistics.data.gov.uk/id/local-authority/38,Oxfordshire County Council,SCS Pooled Budgets,PD Comm Supp Budget - Banbury,Other Agency and Contracted Services,57401,Direct Payments,01/05/2013,3301673751,1637.04,REDACTED PERSONAL DATA
http://statistics.data.gov.uk/id/local-authority/38,Oxfordshire County Council,SCS Pooled Budgets,PD Comm Supp Budget - Banbury,Other Agency and Contracted Services,57401,Direct Payments,01/05/2013,3301673752,788,REDACTED PERSONAL DATA
http://statistics.data.gov.uk/id/local-authority/38,Oxfordshire County Council,SCS Pooled Budgets,OP Pool Continuing Care Delegated Health,Other Agency and Contracted Services,57401,Direct Payments,01/05/2013,3301673753,736,REDACTED PERSONAL DATA
http://statistics.data.gov.uk/id/local-authority/38,Oxfordshire County Council,SCS Pooled Budgets,Community Support Budget - Banbury,Other Agency and Contracted Services,57401,Direct Payments,01/05/2013,3301673753,2028,REDACTED PERSONAL DATA
http://statistics.data.gov.uk/id/local-authority/38,Oxfordshire County Council,SCS Pooled Budgets,Direct Payments North Team,Other Agency and Contracted Services,57401,Direct Payments,01/05/2013,3301673754,585,REDACTED PERSONAL DATA
http://statistics.data.gov.uk/id/local-authority/38,Oxfordshire County Council,SCS Pooled Budgets,Direct Payments South Team,Other Agency and Contracted Services,57401,Direct Payments,01/05/2013,3301673755,917.24,REDACTED PERSONAL DATA
http://statistics.data.gov.uk/id/local-authority/38,Oxfordshire County Council,SCS Pooled Budgets,Community Support Budget - Kidlington,Other Agency and Contracted Services,57401,Direct Payments,01/05/2013,3301673757,1232,Citibank NA London
http://statistics.data.gov.uk/id/local-authority/38,Oxfordshire County Council,SCS Pooled Budgets,PD Comm Supp Purchasg Budget - Didcot,Other Agency and Contracted Services,57401,Direct Payments,01/05/2013,3301673759,964,Citibank NA London
http://statistics.data.gov.uk/id/local-authority/38,Oxfordshire County Council,SCS Pooled Budgets,Direct Payments South Team,Other Agency and Contracted Services,57401,Direct Payments,01/05/2013,3301673763,1020.76,Citibank NA London
http://statistics.data.gov.uk/id/local-authority/38,Oxfordshire County Council,SCS Pooled Budgets,PD Comm Supp Purchasg Budget - Didcot,Other Agency and Contracted Services,57401,Direct Payments,01/05/2013,3301673765,2224.44,Citibank NA London
http://statistics.data.gov.uk/id/local-authority/38,Oxfordshire County Council,SCS Pooled Budgets,Community Support Budget - Chipping Nort,Other Agency and Contracted Services,57401,Direct Payments,01/05/2013,3301673767,1520,Citibank NA London
http://statistics.data.gov.uk/id/local-authority/38,Oxfordshire County Council,SCS Pooled Budgets,Community Support Budget - County,Other Agency and Contracted Services,57300,Home Support (Ext) OS&HCD,03/05/2013,3301673879,3390.6,Oxford Health NHS
http://statistics.data.gov.uk/id/local-authority/38,Oxfordshire County Council,SCS Pooled Budgets,IAES - Management,Voluntary Associations,55400,Service Agreements-A,03/05/2013,3301673879,14952.7,Oxford Health NHS
http://statistics.data.gov.uk/id/local-authority/38,Oxfordshire County Council,SCS Pooled Budgets,PD Community Support Budget - Kidlington,Other Agency and Contracted Services,57401,Direct Payments,01/05/2013,3301673923,2695.2,WK3 Advance Housing & Support
http://statistics.data.gov.uk/id/local-authority/38,Oxfordshire County Council,SCS Pooled Budgets,Community Support Budget - Didcot,Other Agency and Contracted Services,57401,Direct Payments,01/05/2013,3301673925,592,WK3 Advance Housing & Support
http://statistics.data.gov.uk/id/local-authority/38,Oxfordshire County Council,SCS Pooled Budgets,Community Support Budget - City,Other Agency and Contracted Services,57401,Direct Payments,01/05/2013,3301673927,1272,WK3 Advance Housing & Support
http://statistics.data.gov.uk/id/local-authority/38,Oxfordshire County Council,SCS Pooled Budgets,PD Comm Supp Purchasg Budget - Witney,Other Agency and Contracted Services,57401,Direct Payments,01/05/2013,3301673930,1148,WK3 Advance Housing & Support
http://statistics.data.gov.uk/id/local-authority/38,Oxfordshire County Council,SCS Pooled Budgets,Community Support Budget - Kidlington,Other Agency and Contracted Services,57401,Direct Payments,01/05/2013,3301673931,606.24,WK3 Advance Housing & Support
http://statistics.data.gov.uk/id/local-authority/38,Oxfordshire County Council,SCS Pooled Budgets,PD Comm Supp Budget - Banbury,Other Agency and Contracted Services,57401,Direct Payments,01/05/2013,3301673932,616,WK3 Advance Housing & Support
http://statistics.data.gov.uk/id/local-authority/38,Oxfordshire County Council,SCS Pooled Budgets,PD Comm Supp Purchasg Budget - City,Other Agency and Contracted Services,57401,Direct Payments,01/05/2013,3301673933,1540.6,WK3 Advance Housing & Support
http://statistics.data.gov.uk/id/local-authority/38,Oxfordshire County Council,SCS Pooled Budgets,Community Support Budget - Henley,Other Agency and Contracted Services,57401,Direct Payments,01/05/2013,3301673935,519.28,WK3 Advance Housing & Support
http://statistics.data.gov.uk/id/local-authority/38,Oxfordshire County Council,SCS Pooled Budgets,PD Comm Supp Purchasg Budget - City,Other Agency and Contracted Services,57401,Direct Payments,01/05/2013,3301673936,737.8,WK3 Advance Housing & Support
http://statistics.data.gov.uk/id/local-authority/38,Oxfordshire County Council,SCS Pooled Budgets,Community Support Budget - Chipping Nort,Other Agency and Contracted Services,57401,Direct Payments,01/05/2013,3301673937,792,WK3 Advance Housing & Support
http://statistics.data.gov.uk/id/local-authority/38,Oxfordshire County Council,SCS Pooled Budgets,Community Support Budget - Banbury,Other Agency and Contracted Services,57401,Direct Payments,01/05/2013,3301673938,504,WK3 Advance Housing & Support
http://statistics.data.gov.uk/id/local-authority/38,Oxfordshire County Council,SCS Pooled Budgets,PD Comm Supp Budgt - Bicester/Kidlington,Other Agency and Contracted Services,57401,Direct Payments,01/05/2013,3301673939,592,WK3 Advance Housing & Support
http://statistics.data.gov.uk/id/local-authority/38,Oxfordshire County Council,SCS Pooled Budgets,Community Support Budget - Banbury,Other Agency and Contracted Services,57401,Direct Payments,01/05/2013,3301673943,1876,WK3 Advance Housing & Support
http://statistics.data.gov.uk/id/local-authority/38,Oxfordshire County Council,SCS Pooled Budgets,Community Support Budget - Banbury,Other Agency and Contracted Services,57401,Direct Payments,01/05/2013,3301673945,1232,WK3 Advance Housing & Support
http://statistics.data.gov.uk/id/local-authority/38,Oxfordshire County Council,SCS Pooled Budgets,Community Support Budget - Banbury,Other Agency and Contracted Services,57401,Direct Payments,01/05/2013,3301673945,924,WK3 Advance Housing & Support
http://statistics.data.gov.uk/id/local-authority/38,Oxfordshire County Council,SCS Pooled Budgets,Community Support Budget - Banbury,Other Agency and Contracted Services,57401,Direct Payments,01/05/2013,3301673945,-516,WK3 Advance Housing & Support
http://statistics.data.gov.uk/id/local-authority/38,Oxfordshire County Council,SCS Pooled Budgets,Community Support Budget - Didcot,Other Agency and Contracted Services,57401,Direct Payments,01/05/2013,3301673946,1098.56,WK3 Advance Housing & Support
http://statistics.data.gov.uk/id/local-authority/38,Oxfordshire County Council,SCS Pooled Budgets,Direct Payments South Team,Other Agency and Contracted Services,57401,Direct Payments,01/05/2013,3301673950,907.2,WK3 Advance Housing & Support
http://statistics.data.gov.uk/id/local-authority/38,Oxfordshire County Council,SCS Pooled Budgets,Community Support Budget - City,Other Agency and Contracted Services,57401,Direct Payments,01/05/2013,3301673951,928,WK3 Advance Housing & Support
http://statistics.data.gov.uk/id/local-authority/38,Oxfordshire County Council,SCS Pooled Budgets,Community Support Budget - Witney,Other Agency and Contracted Services,57401,Direct Payments,01/05/2013,3301673952,684,WK3 Advance Housing & Support
http://statistics.data.gov.uk/id/local-authority/38,Oxfordshire County Council,SCS Pooled Budgets,PD Comm Supp Budgt - Bicester/Kidlington,Other Agency and Contracted Services,57401,Direct Payments,01/05/2013,3301673955,1824,WK3 Advance Housing & Support
http://statistics.data.gov.uk/id/local-authority/38,Oxfordshire County Council,SCS Pooled Budgets,Community Support Budget - Witney,Other Agency and Contracted Services,57401,Direct Payments,01/05/2013,3301673957,969.6,WK3 Advance Housing & Support
http://statistics.data.gov.uk/id/local-authority/38,Oxfordshire County Council,SCS Pooled Budgets,Personal Health Budgets PD (PCT),Other Agency and Contracted Services,57401,Direct Payments,01/05/2013,3301673958,7334.52,WK3 Advance Housing & Support
http://statistics.data.gov.uk/id/local-authority/38,Oxfordshire County Council,SCS Pooled Budgets,Community Support Budget - Henley,Other Agency and Contracted Services,57401,Direct Payments,01/05/2013,3301673959,1092,WK3 Advance Housing & Support
http://statistics.data.gov.uk/id/local-authority/38,Oxfordshire County Council,SCS Pooled Budgets,Community Support Budget - Faringdon,Other Agency and Contracted Services,57401,Direct Payments,01/05/2013,3301673961,732,WK3 Advance Housing & Support
http://statistics.data.gov.uk/id/local-authority/38,Oxfordshire County Council,SCS Pooled Budgets,Direct Payments South Team,Other Agency and Contracted Services,57401,Direct Payments,01/05/2013,3301673962,907.2,WK3 Advance Housing & Support
http://statistics.data.gov.uk/id/local-authority/38,Oxfordshire County Council,SCS Pooled Budgets,Community Support Budget - Abingdon,Other Agency and Contracted Services,57401,Direct Payments,01/05/2013,3301673963,1226.68,WK3 Advance Housing & Support
http://statistics.data.gov.uk/id/local-authority/38,Oxfordshire County Council,SCS Pooled Budgets,OP Pool Continuing Care Delegated Health,Other Agency and Contracted Services,57401,Direct Payments,01/05/2013,3301673963,917.32,WK3 Advance Housing & Support
http://statistics.data.gov.uk/id/local-authority/38,Oxfordshire County Council,SCS Pooled Budgets,Community Support Budget - Banbury,Other Agency and Contracted Services,57401,Direct Payments,01/05/2013,3301673964,1068,WK3 Advance Housing & Support
http://statistics.data.gov.uk/id/local-authority/38,Oxfordshire County Council,SCS Pooled Budgets,PD Comm Supp Purchasg Budget - Witney,Other Agency and Contracted Services,57401,Direct Payments,01/05/2013,3301673965,1212,WK3 Advance Housing & Support
http://statistics.data.gov.uk/id/local-authority/38,Oxfordshire County Council,SCS Pooled Budgets,Community Support Budget - Abingdon,Other Agency and Contracted Services,57401,Direct Payments,01/05/2013,3301673967,512,WK3 Advance Housing & Support
http://statistics.data.gov.uk/id/local-authority/38,Oxfordshire County Council,SCS Pooled Budgets,Community Support Budget - Didcot,Other Agency and Contracted Services,57401,Direct Payments,01/05/2013,3301673969,809.52,WK3 Advance Housing & Support
http://statistics.data.gov.uk/id/local-authority/38,Oxfordshire County Council,SCS Pooled Budgets,Community Support Budget - Banbury,Other Agency and Contracted Services,57401,Direct Payments,01/05/2013,3301673970,1780,WK3 Advance Housing & Support
http://statistics.data.gov.uk/id/local-authority/38,Oxfordshire County Council,SCS Pooled Budgets,Community Support Budget - Didcot,Other Agency and Contracted Services,57401,Direct Payments,01/05/2013,3301673972,740,WK3 Advance Housing & Support
http://statistics.data.gov.uk/id/local-authority/38,Oxfordshire County Council,SCS Pooled Budgets,Community Support Budget - Banbury,Other Agency and Contracted Services,57401,Direct Payments,01/05/2013,3301673973,520,WK3 Advance Housing & Support
http://statistics.data.gov.uk/id/local-authority/38,Oxfordshire County Council,SCS Pooled Budgets,Community Support Budget - Banbury,Other Agency and Contracted Services,57401,Direct Payments,01/05/2013,3301673974,682.8,WK3 Advance Housing & Support
http://statistics.data.gov.uk/id/local-authority/38,Oxfordshire County Council,SCS Pooled Budgets,Community Support Budget - Bicester,Other Agency and Contracted Services,57401,Direct Payments,01/05/2013,3301673975,1108.6,WK3 Advance Housing & Support
http://statistics.data.gov.uk/id/local-authority/38,Oxfordshire County Council,SCS Pooled Budgets,OP Pool Continuing Care Delegated Health,Other Agency and Contracted Services,57401,Direct Payments,01/05/2013,3301673975,951.4,WK3 Advance Housing & Support
http://statistics.data.gov.uk/id/local-authority/38,Oxfordshire County Council,SCS Pooled Budgets,Community Support Budget - Kidlington,Other Agency and Contracted Services,57401,Direct Payments,01/05/2013,3301673975,-1826.86,WK3 Advance Housing & Support
http://statistics.data.gov.uk/id/local-authority/38,Oxfordshire County Council,SCS Pooled Budgets,Direct Payments South Team,Other Agency and Contracted Services,57401,Direct Payments,01/05/2013,3301673977,536,WK3 Advance Housing & Support
http://statistics.data.gov.uk/id/local-authority/38,Oxfordshire County Council,SCS Pooled Budgets,Community Support Budget - Witney,Other Agency and Contracted Services,57401,Direct Payments,01/05/2013,3301673979,932,WK3 Advance Housing & Support
http://statistics.data.gov.uk/id/local-authority/38,Oxfordshire County Council,SCS Pooled Budgets,Community Support Budget - Bicester,Other Agency and Contracted Services,57401,Direct Payments,01/05/2013,3301673980,960,WK3 Advance Housing & Support
http://statistics.data.gov.uk/id/local-authority/38,Oxfordshire County Council,SCS Pooled Budgets,PD Comm Supp Purchasg Budget - Abingdon,Other Agency and Contracted Services,57401,Direct Payments,01/05/2013,3301673981,926.4,WK3 Advance Housing & Support
http://statistics.data.gov.uk/id/local-authority/38,Oxfordshire County Council,SCS Pooled Budgets,PD Community Support Budget - Kidlington,Other Agency and Contracted Services,57401,Direct Payments,01/05/2013,3301673984,2628,WK3 Advance Housing & Support
http://statistics.data.gov.uk/id/local-authority/38,Oxfordshire County Council,SCS Pooled Budgets,PD Comm Supp Purchasg Budget - City,Other Agency and Contracted Services,57401,Direct Payments,01/05/2013,3301673986,520,WK3 Advance Housing & Support
http://statistics.data.gov.uk/id/local-authority/38,Oxfordshire County Council,SCS Pooled Budgets,PD Comm Supp Purchasg Budget - Thame,Other Agency and Contracted Services,57401,Direct Payments,01/05/2013,3301673987,1228.24,WK3 Advance Housing & Support
http://statistics.data.gov.uk/id/local-authority/38,Oxfordshire County Council,SCS Pooled Budgets,Community Support Budget - Faringdon,Other Agency and Contracted Services,57401,Direct Payments,01/05/2013,3301673988,2312,WK3 Advance Housing & Support
http://statistics.data.gov.uk/id/local-authority/38,Oxfordshire County Council,SCS Pooled Budgets,Community Support Budget - Chipping Nort,Other Agency and Contracted Services,57401,Direct Payments,01/05/2013,3301673990,1012,WK3 Advance Housing & Support
http://statistics.data.gov.uk/id/local-authority/38,Oxfordshire County Council,SCS Pooled Budgets,Direct Payments South Team,Other Agency and Contracted Services,57401,Direct Payments,01/05/2013,3301673991,959.36,WK3 Advance Housing & Support
http://statistics.data.gov.uk/id/local-authority/38,Oxfordshire County Council,SCS Pooled Budgets,Community Support Budget - Banbury,Other Agency and Contracted Services,57401,Direct Payments,01/05/2013,3301673992,1164,WK3 Advance Housing & Support
http://statistics.data.gov.uk/id/local-authority/38,Oxfordshire County Council,SCS Pooled Budgets,PD Comm Supp Purchasg Budget - City,Other Agency and Contracted Services,57401,Direct Payments,01/05/2013,3301673994,560,WK3 Advance Housing & Support
http://statistics.data.gov.uk/id/local-authority/38,Oxfordshire County Council,SCS Pooled Budgets,Community Support Budget - City,Other Agency and Contracted Services,57401,Direct Payments,01/05/2013,3301673995,616,WK3 Advance Housing & Support
http://statistics.data.gov.uk/id/local-authority/38,Oxfordshire County Council,SCS Pooled Budgets,Community Support Budget - City,Other Agency and Contracted Services,57401,Direct Payments,01/05/2013,3301673998,812,WK3 Advance Housing & Support
http://statistics.data.gov.uk/id/local-authority/38,Oxfordshire County Council,Social & Community Services,Community Support Budget - City East,Other Agency and Contracted Services,57401,Direct Payments,01/05/2013,3301673999,864.4,WK3 Advance Housing & Support
http://statistics.data.gov.uk/id/local-authority/38,Oxfordshire County Council,SCS Pooled Budgets,Community Support Budget - Abingdon,Other Agency and Contracted Services,57401,Direct Payments,01/05/2013,3301674001,1100,WK3 Advance Housing & Support
http://statistics.data.gov.uk/id/local-authority/38,Oxfordshire County Council,SCS Pooled Budgets,Direct Payments South Team,Other Agency and Contracted Services,57401,Direct Payments,01/05/2013,3301674002,907.2,WK3 Advance Housing & Support
http://statistics.data.gov.uk/id/local-authority/38,Oxfordshire County Council,SCS Pooled Budgets,Community Support Budget - Witney,Other Agency and Contracted Services,57401,Direct Payments,01/05/2013,3301674005,882.28,WK3 Advance Housing & Support
http://statistics.data.gov.uk/id/local-authority/38,Oxfordshire County Council,SCS Pooled Budgets,PD Comm Supp Purchasg Budget - Witney,Other Agency and Contracted Services,57401,Direct Payments,01/05/2013,3301674006,1796,WK3 Advance Housing & Support
http://statistics.data.gov.uk/id/local-authority/38,Oxfordshire County Council,SCS Pooled Budgets,Community Support Budget - Bicester,Other Agency and Contracted Services,57401,Direct Payments,01/05/2013,3301674007,868,WK3 Advance Housing & Support
http://statistics.data.gov.uk/id/local-authority/38,Oxfordshire County Council,SCS Pooled Budgets,Community Support Budget - Banbury,Other Agency and Contracted Services,57401,Direct Payments,01/05/2013,3301674010,1192,WK3 Advance Housing & Support
http://statistics.data.gov.uk/id/local-authority/38,Oxfordshire County Council,SCS Pooled Budgets,Community Support Budget - Banbury,Other Agency and Contracted Services,57401,Direct Payments,01/05/2013,3301674011,976,WK3 Advance Housing & Support
http://statistics.data.gov.uk/id/local-authority/38,Oxfordshire County Council,SCS Pooled Budgets,Community Support Budget - Bicester,Other Agency and Contracted Services,57401,Direct Payments,01/05/2013,3301674012,912,WK3 Advance Housing & Support
http://statistics.data.gov.uk/id/local-authority/38,Oxfordshire County Council,SCS Pooled Budgets,Community Support Budget - Witney,Other Agency and Contracted Services,57401,Direct Payments,01/05/2013,3301674013,1292,WK3 Advance Housing & Support
http://statistics.data.gov.uk/id/local-authority/38,Oxfordshire County Council,SCS Pooled Budgets,Community Support Budget - Witney,Other Agency and Contracted Services,57401,Direct Payments,01/05/2013,3301674014,660.76,WK3 Advance Housing & Support
http://statistics.data.gov.uk/id/local-authority/38,Oxfordshire County Council,SCS Pooled Budgets,Community Support Budget - Chipping Nort,Other Agency and Contracted Services,57401,Direct Payments,01/05/2013,3301674016,1200,WK3 Advance Housing & Support
http://statistics.data.gov.uk/id/local-authority/38,Oxfordshire County Council,SCS Pooled Budgets,Community Support Budget - Banbury,Other Agency and Contracted Services,57401,Direct Payments,01/05/2013,3301674017,504,WK3 Advance Housing & Support
http://statistics.data.gov.uk/id/local-authority/38,Oxfordshire County Council,SCS Pooled Budgets,Community Support Budget - Faringdon,Other Agency and Contracted Services,57401,Direct Payments,01/05/2013,3301674022,780.32,WK3 Advance Housing & Support
http://statistics.data.gov.uk/id/local-authority/38,Oxfordshire County Council,SCS Pooled Budgets,Direct Payments City Team,Other Agency and Contracted Services,57401,Direct Payments,01/05/2013,3301674023,511.6,WK3 Advance Housing & Support
http://statistics.data.gov.uk/id/local-authority/38,Oxfordshire County Council,SCS Pooled Budgets,Community Support Budget - Banbury,Other Agency and Contracted Services,57401,Direct Payments,01/05/2013,3301674024,505.92,WK3 Advance Housing & Support
http://statistics.data.gov.uk/id/local-authority/38,Oxfordshire County Council,SCS Pooled Budgets,Community Support Budget - Banbury,Other Agency and Contracted Services,57401,Direct Payments,01/05/2013,3301674026,2000,WK3 Advance Housing & Support
http://statistics.data.gov.uk/id/local-authority/38,Oxfordshire County Council,SCS Pooled Budgets,PD Comm Supp Purchasg Budget - Witney,Other Agency and Contracted Services,57401,Direct Payments,01/05/2013,3301674027,516,WK3 Advance Housing & Support
http://statistics.data.gov.uk/id/local-authority/38,Oxfordshire County Council,SCS Pooled Budgets,Community Support Budget - Witney,Other Agency and Contracted Services,57401,Direct Payments,01/05/2013,3301674028,1468,WK3 Advance Housing & Support
http://statistics.data.gov.uk/id/local-authority/38,Oxfordshire County Council,SCS Pooled Budgets,Community Support Budget - Witney,Other Agency and Contracted Services,57401,Direct Payments,01/05/2013,3301674028,1468,WK3 Advance Housing & Support
http://statistics.data.gov.uk/id/local-authority/38,Oxfordshire County Council,SCS Pooled Budgets,Community Support Budget - Witney,Other Agency and Contracted Services,57401,Direct Payments,01/05/2013,3301674028,-776,WK3 Advance Housing & Support
http://statistics.data.gov.uk/id/local-authority/38,Oxfordshire County Council,SCS Pooled Budgets,Community Support Budget - Witney,Other Agency and Contracted Services,57401,Direct Payments,01/05/2013,3301674029,556,WK3 Advance Housing & Support
http://statistics.data.gov.uk/id/local-authority/38,Oxfordshire County Council,SCS Pooled Budgets,Community Support Budget - City,Other Agency and Contracted Services,57401,Direct Payments,01/05/2013,3301674031,1014.16,WK3 Advance Housing & Support
http://statistics.data.gov.uk/id/local-authority/38,Oxfordshire County Council,SCS Pooled Budgets,Community Support Budget - Bicester,Other Agency and Contracted Services,57401,Direct Payments,01/05/2013,3301674032,1564,WK3 Advance Housing & Support
http://statistics.data.gov.uk/id/local-authority/38,Oxfordshire County Council,SCS Pooled Budgets,Direct Payments South Team,Other Agency and Contracted Services,57401,Direct Payments,01/05/2013,3301674034,735.2,WK3 Advance Housing & Support
http://statistics.data.gov.uk/id/local-authority/38,Oxfordshire County Council,SCS Pooled Budgets,Direct Payments North Team,Other Agency and Contracted Services,57401,Direct Payments,01/05/2013,3301674037,1076,WK3 Advance Housing & Support
http://statistics.data.gov.uk/id/local-authority/38,Oxfordshire County Council,SCS Pooled Budgets,PD Comm Supp Purchasg Budget - Didcot,Other Agency and Contracted Services,57401,Direct Payments,01/05/2013,3301674038,1519,WK3 Advance Housing & Support
http://statistics.data.gov.uk/id/local-authority/38,Oxfordshire County Council,SCS Pooled Budgets,Community Support Budget - Banbury,Other Agency and Contracted Services,57401,Direct Payments,01/05/2013,3301674042,600,WK3 Advance Housing & Support
http://statistics.data.gov.uk/id/local-authority/38,Oxfordshire County Council,SCS Pooled Budgets,Community Support Budget - City,Other Agency and Contracted Services,57401,Direct Payments,01/05/2013,3301674045,2516,WK3 Advance Housing & Support
http://statistics.data.gov.uk/id/local-authority/38,Oxfordshire County Council,SCS Pooled Budgets,Community Support Budget - City,Other Agency and Contracted Services,57401,Direct Payments,01/05/2013,3301674045,1258,WK3 Advance Housing & Support
http://statistics.data.gov.uk/id/local-authority/38,Oxfordshire County Council,SCS Pooled Budgets,Community Support Budget - Witney,Other Agency and Contracted Services,57401,Direct Payments,01/05/2013,3301674048,900,WK3 Advance Housing & Support
http://statistics.data.gov.uk/id/local-authority/38,Oxfordshire County Council,SCS Pooled Budgets,Community Support Budget - Witney,Other Agency and Contracted Services,57401,Direct Payments,01/05/2013,3301674049,836,WK3 Advance Housing & Support
http://statistics.data.gov.uk/id/local-authority/38,Oxfordshire County Council,SCS Pooled Budgets,PD Comm Supp Purchasg Budget - Thame,Other Agency and Contracted Services,57401,Direct Payments,01/05/2013,3301674051,564,WK3 Advance Housing & Support
http://statistics.data.gov.uk/id/local-authority/38,Oxfordshire County Council,SCS Pooled Budgets,Community Support Budget - Abingdon,Other Agency and Contracted Services,57401,Direct Payments,01/05/2013,3301674053,1004,WK3 Advance Housing & Support
http://statistics.data.gov.uk/id/local-authority/38,Oxfordshire County Council,SCS Pooled Budgets,PD Comm Supp Purchasg Budget - Witney,Other Agency and Contracted Services,57401,Direct Payments,01/05/2013,3301674054,616,WK3 Advance Housing & Support
http://statistics.data.gov.uk/id/local-authority/38,Oxfordshire County Council,SCS Pooled Budgets,Community Support Budget - Thame,Other Agency and Contracted Services,57401,Direct Payments,01/05/2013,3301674055,1476.32,WK3 Advance Housing & Support
http://statistics.data.gov.uk/id/local-authority/38,Oxfordshire County Council,SCS Pooled Budgets,Direct Payments North Team,Other Agency and Contracted Services,57401,Direct Payments,01/05/2013,3301674056,1681,WK3 Advance Housing & Support
http://statistics.data.gov.uk/id/local-authority/38,Oxfordshire County Council,SCS Pooled Budgets,PD Comm Supp Purchasg Budget - Wantage,Other Agency and Contracted Services,57401,Direct Payments,01/05/2013,3301674058,1004,WK3 Advance Housing & Support
http://statistics.data.gov.uk/id/local-authority/38,Oxfordshire County Council,SCS Pooled Budgets,PD Comm Supp Purchasg Budget - Didcot,Other Agency and Contracted Services,57401,Direct Payments,01/05/2013,3301674059,776,WK3 Advance Housing & Support
http://statistics.data.gov.uk/id/local-authority/38,Oxfordshire County Council,SCS Pooled Budgets,Direct Payments North Team,Other Agency and Contracted Services,57401,Direct Payments,01/05/2013,3301674060,3887.16,WK3 Advance Housing & Support
http://statistics.data.gov.uk/id/local-authority/38,Oxfordshire County Council,SCS Pooled Budgets,Community Support Budget - Henley,Other Agency and Contracted Services,57401,Direct Payments,01/05/2013,3301674063,1400,WK3 Advance Housing & Support
http://statistics.data.gov.uk/id/local-authority/38,Oxfordshire County Council,SCS Pooled Budgets,Direct Payments South Team,Other Agency and Contracted Services,57401,Direct Payments,01/05/2013,3301674064,774,WK3 Advance Housing & Support
http://statistics.data.gov.uk/id/local-authority/38,Oxfordshire County Council,SCS Pooled Budgets,Direct Payments North Team,Other Agency and Contracted Services,57401,Direct Payments,01/05/2013,3301674065,1220,WK3 Advance Housing & Support
http://statistics.data.gov.uk/id/local-authority/38,Oxfordshire County Council,SCS Pooled Budgets,Community Support Budget - Banbury,Other Agency and Contracted Services,57401,Direct Payments,01/05/2013,3301674066,1753.72,WK3 Advance Housing & Support
http://statistics.data.gov.uk/id/local-authority/38,Oxfordshire County Council,SCS Pooled Budgets,Community Support Budget - Witney,Other Agency and Contracted Services,57401,Direct Payments,01/05/2013,3301674067,736,WK3 Advance Housing & Support
http://statistics.data.gov.uk/id/local-authority/38,Oxfordshire County Council,SCS Pooled Budgets,Direct Payments City Team,Other Agency and Contracted Services,57401,Direct Payments,01/05/2013,3301674068,1280,WK3 Advance Housing & Support
http://statistics.data.gov.uk/id/local-authority/38,Oxfordshire County Council,SCS Pooled Budgets,Direct Payments City Team,Other Agency and Contracted Services,57401,Direct Payments,01/05/2013,3301674070,589.84,WK3 Advance Housing & Support
http://statistics.data.gov.uk/id/local-authority/38,Oxfordshire County Council,SCS Pooled Budgets,PD Comm Supp Purchasg Budget - Witney,Other Agency and Contracted Services,57401,Direct Payments,01/05/2013,3301674071,1347.14,WK3 Advance Housing & Support
http://statistics.data.gov.uk/id/local-authority/38,Oxfordshire County Council,SCS Pooled Budgets,PD Comm Supp Purchasg Budget - Abingdon,Other Agency and Contracted Services,57401,Direct Payments,01/05/2013,3301674072,1656.4,WK3 Advance Housing & Support
http://statistics.data.gov.uk/id/local-authority/38,Oxfordshire County Council,SCS Pooled Budgets,PD Comm Supp Purchasg Budget - Abingdon,Other Agency and Contracted Services,57401,Direct Payments,01/05/2013,3301674074,1040,WK3 Advance Housing & Support
http://statistics.data.gov.uk/id/local-authority/38,Oxfordshire County Council,SCS Pooled Budgets,Community Support Budget - City,Other Agency and Contracted Services,57401,Direct Payments,01/05/2013,3301674075,1948,WK3 Advance Housing & Support
http://statistics.data.gov.uk/id/local-authority/38,Oxfordshire County Council,SCS Pooled Budgets,Community Support Budget - Henley,Other Agency and Contracted Services,57401,Direct Payments,01/05/2013,3301674077,600,WK3 Advance Housing & Support
http://statistics.data.gov.uk/id/local-authority/38,Oxfordshire County Council,SCS Pooled Budgets,PD Comm Supp Purchasg Budget - Wantage,Other Agency and Contracted Services,57401,Direct Payments,01/05/2013,3301674078,848.4,WK3 Advance Housing & Support
http://statistics.data.gov.uk/id/local-authority/38,Oxfordshire County Council,SCS Pooled Budgets,PD Comm Supp Budgt - Bicester/Kidlington,Other Agency and Contracted Services,57401,Direct Payments,01/05/2013,3301674079,716,WK3 Advance Housing & Support
http://statistics.data.gov.uk/id/local-authority/38,Oxfordshire County Council,SCS Pooled Budgets,Direct Payments North Team,Other Agency and Contracted Services,57401,Direct Payments,01/05/2013,3301674080,837.52,WK3 Advance Housing & Support
http://statistics.data.gov.uk/id/local-authority/38,Oxfordshire County Council,SCS Pooled Budgets,PD Comm Supp Purchasg Budget - Abingdon,Other Agency and Contracted Services,57401,Direct Payments,01/05/2013,3301674081,2168,WK3 Advance Housing & Support
http://statistics.data.gov.uk/id/local-authority/38,Oxfordshire County Council,SCS Pooled Budgets,Community Support Budget - Witney,Other Agency and Contracted Services,57401,Direct Payments,01/05/2013,3301674082,896,WK3 Advance Housing & Support
http://statistics.data.gov.uk/id/local-authority/38,Oxfordshire County Council,SCS Pooled Budgets,Community Support Budget - Henley,Other Agency and Contracted Services,57401,Direct Payments,01/05/2013,3301674084,889.6,WK3 Advance Housing & Support
http://statistics.data.gov.uk/id/local-authority/38,Oxfordshire County Council,SCS Pooled Budgets,Direct Payments North Team,Other Agency and Contracted Services,57401,Direct Payments,01/05/2013,3301674085,1071.4,WK3 Advance Housing & Support
http://statistics.data.gov.uk/id/local-authority/38,Oxfordshire County Council,SCS Pooled Budgets,PHB OP Package,Other Agency and Contracted Services,57401,Direct Payments,01/05/2013,3301674089,6251.92,WK3 Advance Housing & Support
http://statistics.data.gov.uk/id/local-authority/38,Oxfordshire County Council,SCS Pooled Budgets,Direct Payments North Team,Other Agency and Contracted Services,57401,Direct Payments,01/05/2013,3301674090,4260.32,WK3 Advance Housing & Support
http://statistics.data.gov.uk/id/local-authority/38,Oxfordshire County Council,SCS Pooled Budgets,Direct Payments South Team,Other Agency and Contracted Services,57401,Direct Payments,01/05/2013,3301674091,907.2,WK3 Advance Housing & Support
http://statistics.data.gov.uk/id/local-authority/38,Oxfordshire County Council,SCS Pooled Budgets,Community Support Budget - Abingdon,Other Agency and Contracted Services,57401,Direct Payments,01/05/2013,3301674093,1063.56,WK3 Advance Housing & Support
http://statistics.data.gov.uk/id/local-authority/38,Oxfordshire County Council,SCS Pooled Budgets,Community Support Budget - Wantage,Other Agency and Contracted Services,57401,Direct Payments,01/05/2013,3301674094,1140,WK3 Advance Housing & Support
http://statistics.data.gov.uk/id/local-authority/38,Oxfordshire County Council,SCS Pooled Budgets,Direct Payments South Team,Other Agency and Contracted Services,57401,Direct Payments,01/05/2013,3301674095,1166.4,WK3 Advance Housing & Support
http://statistics.data.gov.uk/id/local-authority/38,Oxfordshire County Council,SCS Pooled Budgets,Direct Payments South Team,Other Agency and Contracted Services,57401,Direct Payments,01/05/2013,3301674096,1060,WK3 Advance Housing & Support
http://statistics.data.gov.uk/id/local-authority/38,Oxfordshire County Council,SCS Pooled Budgets,Direct Payments South Team,Other Agency and Contracted Services,57401,Direct Payments,01/05/2013,3301674098,907.2,WK3 Advance Housing & Support
http://statistics.data.gov.uk/id/local-authority/38,Oxfordshire County Council,SCS Pooled Budgets,Direct Payments South Team,Other Agency and Contracted Services,57401,Direct Payments,01/05/2013,3301674099,907.2,WK3 Advance Housing & Support
http://statistics.data.gov.uk/id/local-authority/38,Oxfordshire County Council,SCS Pooled Budgets,Community Support Budget - Didcot,Other Agency and Contracted Services,57401,Direct Payments,01/05/2013,3301674100,876,WK3 Advance Housing & Support
http://statistics.data.gov.uk/id/local-authority/38,Oxfordshire County Council,SCS Pooled Budgets,Direct Payments South Team,Other Agency and Contracted Services,57401,Direct Payments,01/05/2013,3301674101,907.2,WK3 Advance Housing & Support
http://statistics.data.gov.uk/id/local-authority/38,Oxfordshire County Council,SCS Pooled Budgets,Direct Payments South Team,Other Agency and Contracted Services,57401,Direct Payments,01/05/2013,3301674104,907.2,WK3 Advance Housing & Support
http://statistics.data.gov.uk/id/local-authority/38,Oxfordshire County Council,SCS Pooled Budgets,Community Support Budget - City,Other Agency and Contracted Services,57401,Direct Payments,01/05/2013,3301674105,704.8,WK3 Advance Housing & Support
http://statistics.data.gov.uk/id/local-authority/38,Oxfordshire County Council,SCS Pooled Budgets,Community Support Budget - City,Other Agency and Contracted Services,57401,Direct Payments,01/05/2013,3301674105,881,WK3 Advance Housing & Support
http://statistics.data.gov.uk/id/local-authority/38,Oxfordshire County Council,SCS Pooled Budgets,Community Support Budget - City,Other Agency and Contracted Services,57401,Direct Payments,01/05/2013,3301674105,-702,WK3 Advance Housing & Support
http://statistics.data.gov.uk/id/local-authority/38,Oxfordshire County Council,SCS Pooled Budgets,Direct Payments South Team,Other Agency and Contracted Services,57401,Direct Payments,01/05/2013,3301674106,777.6,WK3 Advance Housing & Support
http://statistics.data.gov.uk/id/local-authority/38,Oxfordshire County Council,SCS Pooled Budgets,PD Community Support Budget - Kidlington,Other Agency and Contracted Services,57401,Direct Payments,01/05/2013,3301674107,560,WK3 Advance Housing & Support
http://statistics.data.gov.uk/id/local-authority/38,Oxfordshire County Council,SCS Pooled Budgets,OP Pool Continuing Care Delegated Health,Other Agency and Contracted Services,57401,Direct Payments,01/05/2013,3301674109,1764,WK3 Advance Housing & Support
http://statistics.data.gov.uk/id/local-authority/38,Oxfordshire County Council,SCS Pooled Budgets,Community Support Budget - City,Other Agency and Contracted Services,57401,Direct Payments,01/05/2013,3301674109,3108,WK3 Advance Housing & Support
http://statistics.data.gov.uk/id/local-authority/38,Oxfordshire County Council,SCS Pooled Budgets,PD Community Support Budget - Kidlington,Other Agency and Contracted Services,57401,Direct Payments,01/05/2013,3301674110,2872,WK3 Advance Housing & Support
http://statistics.data.gov.uk/id/local-authority/38,Oxfordshire County Council,SCS Pooled Budgets,Direct Payments City Team,Other Agency and Contracted Services,57401,Direct Payments,01/05/2013,3301674112,2754.32,WK3 Advance Housing & Support
http://statistics.data.gov.uk/id/local-authority/38,Oxfordshire County Council,SCS Pooled Budgets,Direct Payments City Team,Other Agency and Contracted Services,57401,Direct Payments,01/05/2013,3301674114,840,WK3 Advance Housing & Support
http://statistics.data.gov.uk/id/local-authority/38,Oxfordshire County Council,SCS Pooled Budgets,Direct Payments City Team,Other Agency and Contracted Services,57401,Direct Payments,01/05/2013,3301674117,1016.4,WK3 Advance Housing & Support
http://statistics.data.gov.uk/id/local-authority/38,Oxfordshire County Council,SCS Pooled Budgets,PD Comm Supp Purchasg Budget - City,Other Agency and Contracted Services,57401,Direct Payments,01/05/2013,3301674118,1673.04,WK3 Advance Housing & Support
http://statistics.data.gov.uk/id/local-authority/38,Oxfordshire County Council,SCS Pooled Budgets,PD CS Purch Budget - Health S28a JC,Other Agency and Contracted Services,57401,Direct Payments,01/05/2013,3301674118,582.28,WK3 Advance Housing & Support
http://statistics.data.gov.uk/id/local-authority/38,Oxfordshire County Council,SCS Pooled Budgets,Direct Payments South Team,Other Agency and Contracted Services,57401,Direct Payments,01/05/2013,3301674120,1101.6,WK3 Advance Housing & Support
http://statistics.data.gov.uk/id/local-authority/38,Oxfordshire County Council,SCS Pooled Budgets,Direct Payments South Team,Other Agency and Contracted Services,57401,Direct Payments,01/05/2013,3301674123,907.2,WK3 Advance Housing & Support
http://statistics.data.gov.uk/id/local-authority/38,Oxfordshire County Council,SCS Pooled Budgets,Direct Payments South Team,Other Agency and Contracted Services,57401,Direct Payments,01/05/2013,3301674124,705.6,WK3 Advance Housing & Support
http://statistics.data.gov.uk/id/local-authority/38,Oxfordshire County Council,SCS Pooled Budgets,Direct Payments North Team,Other Agency and Contracted Services,57401,Direct Payments,01/05/2013,3301674127,705.68,WK3 Advance Housing & Support
http://statistics.data.gov.uk/id/local-authority/38,Oxfordshire County Council,SCS Pooled Budgets,Direct Payments South Team,Other Agency and Contracted Services,57401,Direct Payments,01/05/2013,3301674128,777.6,WK3 Advance Housing & Support
http://statistics.data.gov.uk/id/local-authority/38,Oxfordshire County Council,SCS Pooled Budgets,PD Comm Supp Purchasg Budget - Thame,Other Agency and Contracted Services,57401,Direct Payments,01/05/2013,3301674129,1176.04,WK3 Advance Housing & Support
http://statistics.data.gov.uk/id/local-authority/38,Oxfordshire County Council,SCS Pooled Budgets,PD Comm Supp Purchasg Budget - Thame,Other Agency and Contracted Services,57401,Direct Payments,01/05/2013,3301674131,1000,WK3 Advance Housing & Support
http://statistics.data.gov.uk/id/local-authority/38,Oxfordshire County Council,SCS Pooled Budgets,PD Comm Supp Budgt - Bicester/Kidlington,Other Agency and Contracted Services,57401,Direct Payments,01/05/2013,3301674132,1069.6,WK3 Advance Housing & Support
http://statistics.data.gov.uk/id/local-authority/38,Oxfordshire County Council,SCS Pooled Budgets,PD Comm Supp Budget - Banbury,Other Agency and Contracted Services,57401,Direct Payments,01/05/2013,3301674133,888,WK3 Advance Housing & Support
http://statistics.data.gov.uk/id/local-authority/38,Oxfordshire County Council,SCS Pooled Budgets,Direct Payments North Team,Other Agency and Contracted Services,57401,Direct Payments,01/05/2013,3301674134,7896,WK3 Advance Housing & Support
http://statistics.data.gov.uk/id/local-authority/38,Oxfordshire County Council,SCS Pooled Budgets,Community Support Budget - Banbury,Other Agency and Contracted Services,57401,Direct Payments,01/05/2013,3301674135,612,WK3 Advance Housing & Support
http://statistics.data.gov.uk/id/local-authority/38,Oxfordshire County Council,SCS Pooled Budgets,Community Support Budget - Banbury,Other Agency and Contracted Services,57401,Direct Payments,01/05/2013,3301674136,1080,WK3 Advance Housing & Support
http://statistics.data.gov.uk/id/local-authority/38,Oxfordshire County Council,SCS Pooled Budgets,Community Support Budget - Banbury,Other Agency and Contracted Services,57401,Direct Payments,01/05/2013,3301674137,1700,WK3 Advance Housing & Support
http://statistics.data.gov.uk/id/local-authority/38,Oxfordshire County Council,SCS Pooled Budgets,Community Support Budget - Banbury,Other Agency and Contracted Services,57401,Direct Payments,01/05/2013,3301674139,528,WK3 Advance Housing & Support
http://statistics.data.gov.uk/id/local-authority/38,Oxfordshire County Council,SCS Pooled Budgets,PD CS Purch Budget - Health S28a JC,Other Agency and Contracted Services,57401,Direct Payments,01/05/2013,3301674143,1428,WK3 Advance Housing & Support
http://statistics.data.gov.uk/id/local-authority/38,Oxfordshire County Council,SCS Pooled Budgets,PD Comm Supp Budget - Banbury,Other Agency and Contracted Services,57401,Direct Payments,01/05/2013,3301674143,4772,WK3 Advance Housing & Support
http://statistics.data.gov.uk/id/local-authority/38,Oxfordshire County Council,SCS Pooled Budgets,PD Comm Supp Purchasg Budget - City,Other Agency and Contracted Services,57401,Direct Payments,01/05/2013,3301674148,662.96,WK3 Advance Housing & Support
http://statistics.data.gov.uk/id/local-authority/38,Oxfordshire County Council,SCS Pooled Budgets,Direct Payments North Team,Other Agency and Contracted Services,57401,Direct Payments,01/05/2013,3301674153,600,WK3 Advance Housing & Support
http://statistics.data.gov.uk/id/local-authority/38,Oxfordshire County Council,SCS Pooled Budgets,Community Support Budget - Bicester,Other Agency and Contracted Services,57401,Direct Payments,01/05/2013,3301674155,2128,WK3 Advance Housing & Support
http://statistics.data.gov.uk/id/local-authority/38,Oxfordshire County Council,SCS Pooled Budgets,Community Support Budget - Didcot,Other Agency and Contracted Services,57401,Direct Payments,01/05/2013,3301674156,1016,WK3 Advance Housing & Support
http://statistics.data.gov.uk/id/local-authority/38,Oxfordshire County Council,SCS Pooled Budgets,Community Support Budget - Banbury,Other Agency and Contracted Services,57401,Direct Payments,01/05/2013,3301674157,1011.2,WK3 Advance Housing & Support
http://statistics.data.gov.uk/id/local-authority/38,Oxfordshire County Council,SCS Pooled Budgets,Community Support Budget - Henley,Other Agency and Contracted Services,57401,Direct Payments,01/05/2013,3301674158,2592,WK3 Advance Housing & Support
http://statistics.data.gov.uk/id/local-authority/38,Oxfordshire County Council,Education & Early Intervention,2 Year Old Funding,Voluntary Associations,55100,Fees to Non Maintain,02/05/2013,3301674355,1088.34,Robin Playgroup
http://statistics.data.gov.uk/id/local-authority/38,Oxfordshire County Council,Oxfordshire Customer Services,MIS Payroll Workflow,Balance Sheet General,B7102,Local Government AVC,02/05/2013,3301674371,72987.7,Prudential Assurance Co. Ltd
http://statistics.data.gov.uk/id/local-authority/38,Oxfordshire County Council,Oxfordshire Customer Services,MIS Payroll Workflow,Balance Sheet General,B7103,Teachers AVC,02/05/2013,3301674372,28751.92,Prudential Assurance
http://statistics.data.gov.uk/id/local-authority/38,Oxfordshire County Council,Highways & Transport,"Electrical NP Rds, Street Lighting",Private Contractors,56400,Major Contracts,03/05/2013,3301674820,1335,WPD Midlands Networks Services Ltd
http://statistics.data.gov.uk/id/local-authority/38,Oxfordshire County Council,Highways & Transport,"Electrical NP Rds, Street Lighting",Private Contractors,56400,Major Contracts,03/05/2013,3301674821,445,WPD Midlands Networks Services Ltd
http://statistics.data.gov.uk/id/local-authority/38,Oxfordshire County Council,SCS Pooled Budgets,Carers Break / Respite Project,Other Agency and Contracted Services,57401,Direct Payments,03/05/2013,3301674882,750,REDACTED PERSONAL DATA
http://statistics.data.gov.uk/id/local-authority/38,Oxfordshire County Council,Social & Community Services,Community Support Budget - City East,Other Agency and Contracted Services,57401,Direct Payments,03/05/2013,3301674886,3250,REDACTED PERSONAL DATA
http://statistics.data.gov.uk/id/local-authority/38,Oxfordshire County Council,SCS Pooled Budgets,Carers Break / Respite Project,Other Agency and Contracted Services,57401,Direct Payments,03/05/2013,3301674890,750,REDACTED PERSONAL DATA
http://statistics.data.gov.uk/id/local-authority/38,Oxfordshire County Council,SCS Pooled Budgets,Carers Break / Respite Project,Other Agency and Contracted Services,57401,Direct Payments,03/05/2013,3301674891,750,REDACTED PERSONAL DATA
http://statistics.data.gov.uk/id/local-authority/38,Oxfordshire County Council,SCS Pooled Budgets,PCT Carers,Other Agency and Contracted Services,57401,Direct Payments,03/05/2013,3301674892,750,REDACTED PERSONAL DATA
http://statistics.data.gov.uk/id/local-authority/38,Oxfordshire County Council,SCS Pooled Budgets,"CSDP, Aids and Adaptions - South",Other Agency and Contracted Services,57401,Direct Payments,03/05/2013,3301674893,740.67,REDACTED PERSONAL DATA
http://statistics.data.gov.uk/id/local-authority/38,Oxfordshire County Council,SCS Pooled Budgets,Carers Break / Respite Project,Other Agency and Contracted Services,57401,Direct Payments,03/05/2013,3301674894,750,REDACTED PERSONAL DATA
http://statistics.data.gov.uk/id/local-authority/38,Oxfordshire County Council,SCS Pooled Budgets,Life Of Your Own Grant South,Other Agency and Contracted Services,57401,Direct Payments,03/05/2013,3301674897,600,REDACTED PERSONAL DATA
http://statistics.data.gov.uk/id/local-authority/38,Oxfordshire County Council,SCS Pooled Budgets,Carers Break / Respite Project,Other Agency and Contracted Services,57401,Direct Payments,03/05/2013,3301674898,750,REDACTED PERSONAL DATA
http://statistics.data.gov.uk/id/local-authority/38,Oxfordshire County Council,SCS Pooled Budgets,Carers Break / Respite Project,Other Agency and Contracted Services,57401,Direct Payments,03/05/2013,3301674900,750,REDACTED PERSONAL DATA
http://statistics.data.gov.uk/id/local-authority/38,Oxfordshire County Council,SCS Pooled Budgets,Carers Break / Respite Project,Other Agency and Contracted Services,57401,Direct Payments,03/05/2013,3301674903,750,REDACTED PERSONAL DATA
http://statistics.data.gov.uk/id/local-authority/38,Oxfordshire County Council,SCS Pooled Budgets,Carers Break / Respite Project,Other Agency and Contracted Services,57401,Direct Payments,03/05/2013,3301674904,750,REDACTED PERSONAL DATA
http://statistics.data.gov.uk/id/local-authority/38,Oxfordshire County Council,SCS Pooled Budgets,Carers Break / Respite Project,Other Agency and Contracted Services,57401,Direct Payments,03/05/2013,3301674905,750,REDACTED PERSONAL DATA
http://statistics.data.gov.uk/id/local-authority/38,Oxfordshire County Council,SCS Pooled Budgets,Carers Break / Respite Project,Other Agency and Contracted Services,57401,Direct Payments,03/05/2013,3301674909,750,REDACTED PERSONAL DATA
http://statistics.data.gov.uk/id/local-authority/38,Oxfordshire County Council,SCS Pooled Budgets,Life Of Your Own Grant South,Other Agency and Contracted Services,57401,Direct Payments,03/05/2013,3301674919,600,REDACTED PERSONAL DATA
http://statistics.data.gov.uk/id/local-authority/38,Oxfordshire County Council,SCS Pooled Budgets,Carers Break / Respite Project,Other Agency and Contracted Services,57401,Direct Payments,03/05/2013,3301674920,750,REDACTED PERSONAL DATA
http://statistics.data.gov.uk/id/local-authority/38,Oxfordshire County Council,SCS Pooled Budgets,Carers Break / Respite Project,Other Agency and Contracted Services,57401,Direct Payments,03/05/2013,3301674921,750,REDACTED PERSONAL DATA
http://statistics.data.gov.uk/id/local-authority/38,Oxfordshire County Council,SCS Pooled Budgets,Community Support Budget - Bicester,Other Agency and Contracted Services,57401,Direct Payments,03/05/2013,3301674923,635.4,1 Off Advance Housing & Support
http://statistics.data.gov.uk/id/local-authority/38,Oxfordshire County Council,SCS Pooled Budgets,Direct Payments North Team,Other Agency and Contracted Services,57401,Direct Payments,07/05/2013,3301675189,3529.35,WK3 Advance Housing & Support
http://statistics.data.gov.uk/id/local-authority/38,Oxfordshire County Council,SCS Pooled Budgets,PD Comm Supp Budgt - Bicester/Kidlington,Other Agency and Contracted Services,57401,Direct Payments,08/05/2013,3301675624,1592,REDACTED PERSONAL DATA
http://statistics.data.gov.uk/id/local-authority/38,Oxfordshire County Council,SCS Pooled Budgets,Direct Payments South Team,Other Agency and Contracted Services,57401,Direct Payments,08/05/2013,3301675625,552,REDACTED PERSONAL DATA
http://statistics.data.gov.uk/id/local-authority/38,Oxfordshire County Council,SCS Pooled Budgets,Direct Payments South Team,Other Agency and Contracted Services,57401,Direct Payments,08/05/2013,3301675626,720,REDACTED PERSONAL DATA
http://statistics.data.gov.uk/id/local-authority/38,Oxfordshire County Council,SCS Pooled Budgets,PD CS Purch Budget - Health S28a JC,Other Agency and Contracted Services,57401,Direct Payments,08/05/2013,3301675627,804,REDACTED PERSONAL DATA
http://statistics.data.gov.uk/id/local-authority/38,Oxfordshire County Council,SCS Pooled Budgets,PD Comm Supp Purchasg Budget - City,Other Agency and Contracted Services,57401,Direct Payments,08/05/2013,3301675627,2254.88,REDACTED PERSONAL DATA
http://statistics.data.gov.uk/id/local-authority/38,Oxfordshire County Council,SCS Pooled Budgets,Community Support Budget - Banbury,Other Agency and Contracted Services,57401,Direct Payments,08/05/2013,3301675628,900,REDACTED PERSONAL DATA
http://statistics.data.gov.uk/id/local-authority/38,Oxfordshire County Council,SCS Pooled Budgets,Community Support Budget - Kidlington,Other Agency and Contracted Services,57401,Direct Payments,08/05/2013,3301675629,904,REDACTED PERSONAL DATA
http://statistics.data.gov.uk/id/local-authority/38,Oxfordshire County Council,SCS Pooled Budgets,Community Support Budget - City,Other Agency and Contracted Services,57401,Direct Payments,08/05/2013,3301675630,1116,REDACTED PERSONAL DATA
http://statistics.data.gov.uk/id/local-authority/38,Oxfordshire County Council,SCS Pooled Budgets,PHB OP Package,Other Agency and Contracted Services,57401,Direct Payments,08/05/2013,3301675634,5682.72,REDACTED PERSONAL DATA
http://statistics.data.gov.uk/id/local-authority/38,Oxfordshire County Council,SCS Pooled Budgets,Direct Payments North Team,Other Agency and Contracted Services,57401,Direct Payments,08/05/2013,3301675636,1141.24,REDACTED PERSONAL DATA
http://statistics.data.gov.uk/id/local-authority/38,Oxfordshire County Council,SCS Pooled Budgets,Community Support Budget - Henley,Other Agency and Contracted Services,57401,Direct Payments,08/05/2013,3301675637,712,REDACTED PERSONAL DATA
http://statistics.data.gov.uk/id/local-authority/38,Oxfordshire County Council,SCS Pooled Budgets,PD Comm Supp Purchasg Budget - Henley,Other Agency and Contracted Services,57401,Direct Payments,08/05/2013,3301675638,840,REDACTED PERSONAL DATA
http://statistics.data.gov.uk/id/local-authority/38,Oxfordshire County Council,SCS Pooled Budgets,Community Support Budget - Didcot,Other Agency and Contracted Services,57401,Direct Payments,08/05/2013,3301675639,2224,REDACTED PERSONAL DATA
http://statistics.data.gov.uk/id/local-authority/38,Oxfordshire County Council,SCS Pooled Budgets,Community Support Budget - City,Other Agency and Contracted Services,57401,Direct Payments,08/05/2013,3301675640,3083.44,REDACTED PERSONAL DATA
http://statistics.data.gov.uk/id/local-authority/38,Oxfordshire County Council,SCS Pooled Budgets,Community Support Budget - Witney,Other Agency and Contracted Services,57401,Direct Payments,08/05/2013,3301675642,1859.2,REDACTED PERSONAL DATA
http://statistics.data.gov.uk/id/local-authority/38,Oxfordshire County Council,SCS Pooled Budgets,Community Support Budget - Chipping Nort,Other Agency and Contracted Services,57401,Direct Payments,08/05/2013,3301675644,504,REDACTED PERSONAL DATA
http://statistics.data.gov.uk/id/local-authority/38,Oxfordshire County Council,SCS Pooled Budgets,Community Support Budget - Banbury,Other Agency and Contracted Services,57401,Direct Payments,08/05/2013,3301675645,2332,REDACTED PERSONAL DATA
http://statistics.data.gov.uk/id/local-authority/38,Oxfordshire County Council,SCS Pooled Budgets,PD Comm Supp Budget - Banbury,Other Agency and Contracted Services,57401,Direct Payments,08/05/2013,3301675646,580,REDACTED PERSONAL DATA
http://statistics.data.gov.uk/id/local-authority/38,Oxfordshire County Council,SCS Pooled Budgets,PD Comm Supp Budget - Banbury,Other Agency and Contracted Services,57401,Direct Payments,08/05/2013,3301675647,528,REDACTED PERSONAL DATA
http://statistics.data.gov.uk/id/local-authority/38,Oxfordshire County Council,SCS Pooled Budgets,PD Comm Supp Budget - Banbury,Other Agency and Contracted Services,57401,Direct Payments,08/05/2013,3301675648,1848.04,REDACTED PERSONAL DATA
http://statistics.data.gov.uk/id/local-authority/38,Oxfordshire County Council,SCS Pooled Budgets,Community Support Budget - Didcot,Other Agency and Contracted Services,57401,Direct Payments,08/05/2013,3301675649,1820,REDACTED PERSONAL DATA
http://statistics.data.gov.uk/id/local-authority/38,Oxfordshire County Council,SCS Pooled Budgets,Direct Payments South Team,Other Agency and Contracted Services,57401,Direct Payments,08/05/2013,3301675650,1200,REDACTED PERSONAL DATA
http://statistics.data.gov.uk/id/local-authority/38,Oxfordshire County Council,SCS Pooled Budgets,Community Support Budget - Abingdon,Other Agency and Contracted Services,57401,Direct Payments,08/05/2013,3301675651,1904,REDACTED PERSONAL DATA
http://statistics.data.gov.uk/id/local-authority/38,Oxfordshire County Council,SCS Pooled Budgets,Community Support Budget - Witney,Other Agency and Contracted Services,57401,Direct Payments,08/05/2013,3301675653,1700.32,REDACTED PERSONAL DATA
http://statistics.data.gov.uk/id/local-authority/38,Oxfordshire County Council,SCS Pooled Budgets,Community Support Budget - Bicester,Other Agency and Contracted Services,57401,Direct Payments,08/05/2013,3301675654,1912,REDACTED PERSONAL DATA
http://statistics.data.gov.uk/id/local-authority/38,Oxfordshire County Council,SCS Pooled Budgets,Community Support Budget - Chipping Nort,Other Agency and Contracted Services,57401,Direct Payments,08/05/2013,3301675655,840,REDACTED PERSONAL DATA
http://statistics.data.gov.uk/id/local-authority/38,Oxfordshire County Council,SCS Pooled Budgets,Community Support Budget - Banbury,Other Agency and Contracted Services,57401,Direct Payments,08/05/2013,3301675659,684,REDACTED PERSONAL DATA
http://statistics.data.gov.uk/id/local-authority/38,Oxfordshire County Council,SCS Pooled Budgets,Community Support Budget - Witney,Other Agency and Contracted Services,57401,Direct Payments,08/05/2013,3301675661,1368,REDACTED PERSONAL DATA
http://statistics.data.gov.uk/id/local-authority/38,Oxfordshire County Council,SCS Pooled Budgets,Community Support Budget - Abingdon,Other Agency and Contracted Services,57401,Direct Payments,08/05/2013,3301675662,2000,REDACTED PERSONAL DATA
http://statistics.data.gov.uk/id/local-authority/38,Oxfordshire County Council,SCS Pooled Budgets,Direct Payments North Team,Other Agency and Contracted Services,57401,Direct Payments,08/05/2013,3301675663,916,REDACTED PERSONAL DATA
http://statistics.data.gov.uk/id/local-authority/38,Oxfordshire County Council,SCS Pooled Budgets,Direct Payments South Team,Other Agency and Contracted Services,57401,Direct Payments,08/05/2013,3301675664,6537.4,REDACTED PERSONAL DATA
http://statistics.data.gov.uk/id/local-authority/38,Oxfordshire County Council,SCS Pooled Budgets,Direct Payments South Team,Other Agency and Contracted Services,57401,Direct Payments,08/05/2013,3301675665,4957.92,REDACTED PERSONAL DATA
http://statistics.data.gov.uk/id/local-authority/38,Oxfordshire County Council,SCS Pooled Budgets,Direct Payments South Team,Other Agency and Contracted Services,57401,Direct Payments,08/05/2013,3301675666,2051.08,REDACTED PERSONAL DATA
http://statistics.data.gov.uk/id/local-authority/38,Oxfordshire County Council,SCS Pooled Budgets,Direct Payments South Team,Other Agency and Contracted Services,57401,Direct Payments,08/05/2013,3301675669,1846,REDACTED PERSONAL DATA
http://statistics.data.gov.uk/id/local-authority/38,Oxfordshire County Council,SCS Pooled Budgets,Direct Payments North Team,Other Agency and Contracted Services,57401,Direct Payments,08/05/2013,3301675670,573.84,REDACTED PERSONAL DATA
http://statistics.data.gov.uk/id/local-authority/38,Oxfordshire County Council,SCS Pooled Budgets,Community Support Budget - Bicester,Other Agency and Contracted Services,57401,Direct Payments,08/05/2013,3301675671,2092,REDACTED PERSONAL DATA
http://statistics.data.gov.uk/id/local-authority/38,Oxfordshire County Council,SCS Pooled Budgets,OP Pool Continuing Care Delegated Health,Other Agency and Contracted Services,57401,Direct Payments,08/05/2013,3301675671,1080,REDACTED PERSONAL DATA
http://statistics.data.gov.uk/id/local-authority/38,Oxfordshire County Council,SCS Pooled Budgets,Direct Payments North Team,Other Agency and Contracted Services,57401,Direct Payments,08/05/2013,3301675673,896.68,REDACTED PERSONAL DATA
http://statistics.data.gov.uk/id/local-authority/38,Oxfordshire County Council,SCS Pooled Budgets,Direct Payments City Team,Other Agency and Contracted Services,57401,Direct Payments,08/05/2013,3301675674,676.8,REDACTED PERSONAL DATA
http://statistics.data.gov.uk/id/local-authority/38,Oxfordshire County Council,SCS Pooled Budgets,Community Support Budget - Kidlington,Other Agency and Contracted Services,57401,Direct Payments,08/05/2013,3301675675,1292.32,REDACTED PERSONAL DATA
http://statistics.data.gov.uk/id/local-authority/38,Oxfordshire County Council,SCS Pooled Budgets,Direct Payments South Team,Other Agency and Contracted Services,57401,Direct Payments,08/05/2013,3301675676,1246.08,REDACTED PERSONAL DATA
http://statistics.data.gov.uk/id/local-authority/38,Oxfordshire County Council,SCS Pooled Budgets,Direct Payments North Team,Other Agency and Contracted Services,57401,Direct Payments,08/05/2013,3301675677,8139.86,REDACTED PERSONAL DATA
http://statistics.data.gov.uk/id/local-authority/38,Oxfordshire County Council,SCS Pooled Budgets,Direct Payments North Team,Other Agency and Contracted Services,57401,Direct Payments,08/05/2013,3301675678,3956,REDACTED PERSONAL DATA
http://statistics.data.gov.uk/id/local-authority/38,Oxfordshire County Council,SCS Pooled Budgets,Community Support Budget - Banbury,Other Agency and Contracted Services,57401,Direct Payments,08/05/2013,3301675679,1412,REDACTED PERSONAL DATA
http://statistics.data.gov.uk/id/local-authority/38,Oxfordshire County Council,SCS Pooled Budgets,Community Support Budget - Banbury,Other Agency and Contracted Services,57401,Direct Payments,08/05/2013,3301675679,1765,REDACTED PERSONAL DATA
http://statistics.data.gov.uk/id/local-authority/38,Oxfordshire County Council,SCS Pooled Budgets,Community Support Budget - Banbury,Other Agency and Contracted Services,57401,Direct Payments,08/05/2013,3301675679,-650,REDACTED PERSONAL DATA
http://statistics.data.gov.uk/id/local-authority/38,Oxfordshire County Council,SCS Pooled Budgets,Direct Payments South Team,Other Agency and Contracted Services,57401,Direct Payments,08/05/2013,3301675680,1172,REDACTED PERSONAL DATA
http://statistics.data.gov.uk/id/local-authority/38,Oxfordshire County Council,SCS Pooled Budgets,Continuing Health Care,Other Agency and Contracted Services,57401,Direct Payments,08/05/2013,3301675681,1289.24,REDACTED PERSONAL DATA
http://statistics.data.gov.uk/id/local-authority/38,Oxfordshire County Council,SCS Pooled Budgets,Direct Payments City Team,Other Agency and Contracted Services,57401,Direct Payments,08/05/2013,3301675682,509.68,REDACTED PERSONAL DATA
http://statistics.data.gov.uk/id/local-authority/38,Oxfordshire County Council,SCS Pooled Budgets,Community Support Budget - Didcot,Other Agency and Contracted Services,57401,Direct Payments,08/05/2013,3301675684,800,REDACTED PERSONAL DATA
http://statistics.data.gov.uk/id/local-authority/38,Oxfordshire County Council,SCS Pooled Budgets,Direct Payments South Team,Other Agency and Contracted Services,57401,Direct Payments,08/05/2013,3301675687,1226.76,REDACTED PERSONAL DATA
http://statistics.data.gov.uk/id/local-authority/38,Oxfordshire County Council,SCS Pooled Budgets,Direct Payments City Team,Other Agency and Contracted Services,57401,Direct Payments,08/05/2013,3301675690,984.68,REDACTED PERSONAL DATA
http://statistics.data.gov.uk/id/local-authority/38,Oxfordshire County Council,SCS Pooled Budgets,Direct Payments City Team,Other Agency and Contracted Services,57401,Direct Payments,08/05/2013,3301675691,1357.76,REDACTED PERSONAL DATA
http://statistics.data.gov.uk/id/local-authority/38,Oxfordshire County Council,SCS Pooled Budgets,Direct Payments City Team,Other Agency and Contracted Services,57401,Direct Payments,08/05/2013,3301675692,4551.08,REDACTED PERSONAL DATA
http://statistics.data.gov.uk/id/local-authority/38,Oxfordshire County Council,SCS Pooled Budgets,Direct Payments City Team,Other Agency and Contracted Services,57401,Direct Payments,08/05/2013,3301675693,990.76,REDACTED PERSONAL DATA
http://statistics.data.gov.uk/id/local-authority/38,Oxfordshire County Council,SCS Pooled Budgets,Community Support Budget - City,Other Agency and Contracted Services,57401,Direct Payments,08/05/2013,3301675694,2068,REDACTED PERSONAL DATA
http://statistics.data.gov.uk/id/local-authority/38,Oxfordshire County Council,SCS Pooled Budgets,Direct Payments South Team,Other Agency and Contracted Services,57401,Direct Payments,08/05/2013,3301675695,764.6,REDACTED PERSONAL DATA
http://statistics.data.gov.uk/id/local-authority/38,Oxfordshire County Council,SCS Pooled Budgets,Community Support Budget - Witney,Other Agency and Contracted Services,57401,Direct Payments,08/05/2013,3301675696,796,REDACTED PERSONAL DATA
http://statistics.data.gov.uk/id/local-authority/38,Oxfordshire County Council,SCS Pooled Budgets,Direct Payments South Team,Other Agency and Contracted Services,57401,Direct Payments,08/05/2013,3301675697,1053.6,REDACTED PERSONAL DATA
http://statistics.data.gov.uk/id/local-authority/38,Oxfordshire County Council,SCS Pooled Budgets,Community Support Budget - Wantage,Other Agency and Contracted Services,57401,Direct Payments,08/05/2013,3301675699,1944,REDACTED PERSONAL DATA
http://statistics.data.gov.uk/id/local-authority/38,Oxfordshire County Council,SCS Pooled Budgets,Direct Payments South Team,Other Agency and Contracted Services,57401,Direct Payments,08/05/2013,3301675700,709.28,REDACTED PERSONAL DATA
http://statistics.data.gov.uk/id/local-authority/38,Oxfordshire County Council,SCS Pooled Budgets,PD Comm Supp Purchasg Budget - Witney,Other Agency and Contracted Services,57401,Direct Payments,08/05/2013,3301675701,1524,REDACTED PERSONAL DATA
http://statistics.data.gov.uk/id/local-authority/38,Oxfordshire County Council,SCS Pooled Budgets,Community Support Budget - Witney,Other Agency and Contracted Services,57401,Direct Payments,08/05/2013,3301675702,1616.92,REDACTED PERSONAL DATA
http://statistics.data.gov.uk/id/local-authority/38,Oxfordshire County Council,SCS Pooled Budgets,Direct Payments North Team,Other Agency and Contracted Services,57401,Direct Payments,08/05/2013,3301675703,3881.52,REDACTED PERSONAL DATA
http://statistics.data.gov.uk/id/local-authority/38,Oxfordshire County Council,SCS Pooled Budgets,Direct Payments North Team,Other Agency and Contracted Services,57401,Direct Payments,08/05/2013,3301675704,1588,REDACTED PERSONAL DATA
http://statistics.data.gov.uk/id/local-authority/38,Oxfordshire County Council,SCS Pooled Budgets,PD Community Support Budget - Faringdon,Other Agency and Contracted Services,57401,Direct Payments,08/05/2013,3301675705,1825.4,REDACTED PERSONAL DATA
http://statistics.data.gov.uk/id/local-authority/38,Oxfordshire County Council,SCS Pooled Budgets,PD CS Purch Budget - Health S28a JC,Other Agency and Contracted Services,57401,Direct Payments,08/05/2013,3301675705,505.6,REDACTED PERSONAL DATA
http://statistics.data.gov.uk/id/local-authority/38,Oxfordshire County Council,SCS Pooled Budgets,PD Community Support Budget - Faringdon,Other Agency and Contracted Services,57401,Direct Payments,08/05/2013,3301675706,1413.2,REDACTED PERSONAL DATA
http://statistics.data.gov.uk/id/local-authority/38,Oxfordshire County Council,SCS Pooled Budgets,PD Comm Supp Purchasg Budget - Wantage,Other Agency and Contracted Services,57401,Direct Payments,08/05/2013,3301675707,981,REDACTED PERSONAL DATA
http://statistics.data.gov.uk/id/local-authority/38,Oxfordshire County Council,SCS Pooled Budgets,Community Support Budget - Abingdon,Other Agency and Contracted Services,57401,Direct Payments,08/05/2013,3301675710,1380,REDACTED PERSONAL DATA
http://statistics.data.gov.uk/id/local-authority/38,Oxfordshire County Council,SCS Pooled Budgets,PD Comm Supp Purchasg Budget - City,Other Agency and Contracted Services,57401,Direct Payments,08/05/2013,3301675711,1624,REDACTED PERSONAL DATA
http://statistics.data.gov.uk/id/local-authority/38,Oxfordshire County Council,SCS Pooled Budgets,PD Comm Supp Purchasg Budget - City,Other Agency and Contracted Services,57401,Direct Payments,08/05/2013,3301675712,3788.8,REDACTED PERSONAL DATA
http://statistics.data.gov.uk/id/local-authority/38,Oxfordshire County Council,SCS Pooled Budgets,Direct Payments South Team,Other Agency and Contracted Services,57401,Direct Payments,08/05/2013,3301675713,6690.24,REDACTED PERSONAL DATA
http://statistics.data.gov.uk/id/local-authority/38,Oxfordshire County Council,SCS Pooled Budgets,Direct Payments City Team,Other Agency and Contracted Services,57401,Direct Payments,08/05/2013,3301675715,2360.48,REDACTED PERSONAL DATA
http://statistics.data.gov.uk/id/local-authority/38,Oxfordshire County Council,SCS Pooled Budgets,PD Comm Supp Purchasg Budget - City,Other Agency and Contracted Services,57401,Direct Payments,08/05/2013,3301675716,2034.72,REDACTED PERSONAL DATA
http://statistics.data.gov.uk/id/local-authority/38,Oxfordshire County Council,SCS Pooled Budgets,OP Pool Continuing Care Delegated Health,Other Agency and Contracted Services,57401,Direct Payments,08/05/2013,3301675717,508,REDACTED PERSONAL DATA
http://statistics.data.gov.uk/id/local-authority/38,Oxfordshire County Council,SCS Pooled Budgets,Community Support Budget - City,Other Agency and Contracted Services,57401,Direct Payments,08/05/2013,3301675717,2686.68,REDACTED PERSONAL DATA
http://statistics.data.gov.uk/id/local-authority/38,Oxfordshire County Council,SCS Pooled Budgets,Direct Payments City Team,Other Agency and Contracted Services,57401,Direct Payments,08/05/2013,3301675718,1360,REDACTED PERSONAL DATA
http://statistics.data.gov.uk/id/local-authority/38,Oxfordshire County Council,SCS Pooled Budgets,Direct Payments City Team,Other Agency and Contracted Services,57401,Direct Payments,08/05/2013,3301675719,1360,REDACTED PERSONAL DATA
http://statistics.data.gov.uk/id/local-authority/38,Oxfordshire County Council,SCS Pooled Budgets,PD Comm Supp Purchasg Budget - City,Other Agency and Contracted Services,57401,Direct Payments,08/05/2013,3301675720,976.36,REDACTED PERSONAL DATA
http://statistics.data.gov.uk/id/local-authority/38,Oxfordshire County Council,SCS Pooled Budgets,PD Comm Supp Purchasg Budget - City,Other Agency and Contracted Services,57401,Direct Payments,08/05/2013,3301675721,1320,REDACTED PERSONAL DATA
http://statistics.data.gov.uk/id/local-authority/38,Oxfordshire County Council,SCS Pooled Budgets,Direct Payments City Team,Other Agency and Contracted Services,57401,Direct Payments,08/05/2013,3301675722,611.24,REDACTED PERSONAL DATA
http://statistics.data.gov.uk/id/local-authority/38,Oxfordshire County Council,SCS Pooled Budgets,PD Comm Supp Purchasg Budget - Didcot,Other Agency and Contracted Services,57401,Direct Payments,08/05/2013,3301675723,1599.08,REDACTED PERSONAL DATA
http://statistics.data.gov.uk/id/local-authority/38,Oxfordshire County Council,SCS Pooled Budgets,PD Comm Supp Purchasg Budget - City,Other Agency and Contracted Services,57401,Direct Payments,08/05/2013,3301675724,3104,REDACTED PERSONAL DATA
http://statistics.data.gov.uk/id/local-authority/38,Oxfordshire County Council,SCS Pooled Budgets,PD CS Purch Budget - Health S28a JC,Other Agency and Contracted Services,57401,Direct Payments,08/05/2013,3301675724,508,REDACTED PERSONAL DATA
http://statistics.data.gov.uk/id/local-authority/38,Oxfordshire County Council,SCS Pooled Budgets,Direct Payments South Team,Other Agency and Contracted Services,57401,Direct Payments,08/05/2013,3301675726,835.68,REDACTED PERSONAL DATA
http://statistics.data.gov.uk/id/local-authority/38,Oxfordshire County Council,SCS Pooled Budgets,Direct Payments North Team,Other Agency and Contracted Services,57401,Direct Payments,08/05/2013,3301675727,3057.6,REDACTED PERSONAL DATA
http://statistics.data.gov.uk/id/local-authority/38,Oxfordshire County Council,SCS Pooled Budgets,Direct Payments North Team,Other Agency and Contracted Services,57401,Direct Payments,08/05/2013,3301675728,900,REDACTED PERSONAL DATA
http://statistics.data.gov.uk/id/local-authority/38,Oxfordshire County Council,SCS Pooled Budgets,Direct Payments South Team,Other Agency and Contracted Services,57401,Direct Payments,08/05/2013,3301675730,1735.84,REDACTED PERSONAL DATA
http://statistics.data.gov.uk/id/local-authority/38,Oxfordshire County Council,SCS Pooled Budgets,Direct Payments South Team,Other Agency and Contracted Services,57401,Direct Payments,08/05/2013,3301675731,1787.12,REDACTED PERSONAL DATA
http://statistics.data.gov.uk/id/local-authority/38,Oxfordshire County Council,SCS Pooled Budgets,PD Comm Supp Purchasg Budget - Thame,Other Agency and Contracted Services,57401,Direct Payments,08/05/2013,3301675732,1171.56,REDACTED PERSONAL DATA
http://statistics.data.gov.uk/id/local-authority/38,Oxfordshire County Council,SCS Pooled Budgets,Direct Payments South Team,Other Agency and Contracted Services,57401,Direct Payments,08/05/2013,3301675733,576,REDACTED PERSONAL DATA
http://statistics.data.gov.uk/id/local-authority/38,Oxfordshire County Council,SCS Pooled Budgets,PD Comm Supp Purchasg Budget - Thame,Other Agency and Contracted Services,57401,Direct Payments,08/05/2013,3301675735,1236,REDACTED PERSONAL DATA
http://statistics.data.gov.uk/id/local-authority/38,Oxfordshire County Council,SCS Pooled Budgets,Direct Payments South Team,Other Agency and Contracted Services,57401,Direct Payments,08/05/2013,3301675736,4428.4,REDACTED PERSONAL DATA
http://statistics.data.gov.uk/id/local-authority/38,Oxfordshire County Council,SCS Pooled Budgets,Direct Payments South Team,Other Agency and Contracted Services,57401,Direct Payments,08/05/2013,3301675737,1886.76,REDACTED PERSONAL DATA
http://statistics.data.gov.uk/id/local-authority/38,Oxfordshire County Council,SCS Pooled Budgets,Direct Payments City Team,Other Agency and Contracted Services,57401,Direct Payments,08/05/2013,3301675738,3167.92,REDACTED PERSONAL DATA
http://statistics.data.gov.uk/id/local-authority/38,Oxfordshire County Council,SCS Pooled Budgets,Community Support Budget - Bicester,Other Agency and Contracted Services,57401,Direct Payments,08/05/2013,3301675739,880,REDACTED PERSONAL DATA
http://statistics.data.gov.uk/id/local-authority/38,Oxfordshire County Council,SCS Pooled Budgets,Direct Payments North Team,Other Agency and Contracted Services,57401,Direct Payments,08/05/2013,3301675740,600,REDACTED PERSONAL DATA
http://statistics.data.gov.uk/id/local-authority/38,Oxfordshire County Council,SCS Pooled Budgets,PD Comm Supp Purchasg Budget - Witney,Other Agency and Contracted Services,57401,Direct Payments,08/05/2013,3301675741,1217.8,REDACTED PERSONAL DATA
http://statistics.data.gov.uk/id/local-authority/38,Oxfordshire County Council,SCS Pooled Budgets,Community Support Budget - Banbury,Other Agency and Contracted Services,57401,Direct Payments,08/05/2013,3301675742,968,REDACTED PERSONAL DATA
http://statistics.data.gov.uk/id/local-authority/38,Oxfordshire County Council,SCS Pooled Budgets,Direct Payments North Team,Other Agency and Contracted Services,57401,Direct Payments,08/05/2013,3301675743,3426.16,REDACTED PERSONAL DATA
http://statistics.data.gov.uk/id/local-authority/38,Oxfordshire County Council,SCS Pooled Budgets,PD Comm Supp Budget - Banbury,Other Agency and Contracted Services,57401,Direct Payments,08/05/2013,3301675744,2139.4,REDACTED PERSONAL DATA
http://statistics.data.gov.uk/id/local-authority/38,Oxfordshire County Council,SCS Pooled Budgets,PD CS Purch Budget - Health S28a JC,Other Agency and Contracted Services,57401,Direct Payments,08/05/2013,3301675744,627.2,REDACTED PERSONAL DATA
http://statistics.data.gov.uk/id/local-authority/38,Oxfordshire County Council,SCS Pooled Budgets,PD Comm Supp Budget - Banbury,Other Agency and Contracted Services,57401,Direct Payments,08/05/2013,3301675745,1992,REDACTED PERSONAL DATA
http://statistics.data.gov.uk/id/local-authority/38,Oxfordshire County Council,SCS Pooled Budgets,Community Support Budget - Banbury,Other Agency and Contracted Services,57401,Direct Payments,08/05/2013,3301675746,2480,REDACTED PERSONAL DATA
http://statistics.data.gov.uk/id/local-authority/38,Oxfordshire County Council,SCS Pooled Budgets,Direct Payments North Team,Other Agency and Contracted Services,57401,Direct Payments,08/05/2013,3301675747,12203.64,REDACTED PERSONAL DATA
http://statistics.data.gov.uk/id/local-authority/38,Oxfordshire County Council,SCS Pooled Budgets,Direct Payments North Team,Other Agency and Contracted Services,57401,Direct Payments,08/05/2013,3301675748,800,REDACTED PERSONAL DATA
http://statistics.data.gov.uk/id/local-authority/38,Oxfordshire County Council,SCS Pooled Budgets,Direct Payments City Team,Other Agency and Contracted Services,57401,Direct Payments,08/05/2013,3301675749,3041.84,REDACTED PERSONAL DATA
http://statistics.data.gov.uk/id/local-authority/38,Oxfordshire County Council,SCS Pooled Budgets,Community Support Budget - Abingdon,Other Agency and Contracted Services,57401,Direct Payments,08/05/2013,3301675751,844,REDACTED PERSONAL DATA
http://statistics.data.gov.uk/id/local-authority/38,Oxfordshire County Council,SCS Pooled Budgets,Community Support Budget - Banbury,Other Agency and Contracted Services,57401,Direct Payments,08/05/2013,3301675754,1312,REDACTED PERSONAL DATA
http://statistics.data.gov.uk/id/local-authority/38,Oxfordshire County Council,SCS Pooled Budgets,Direct Payments South Team,Other Agency and Contracted Services,57401,Direct Payments,08/05/2013,3301675755,858.16,REDACTED PERSONAL DATA
http://statistics.data.gov.uk/id/local-authority/38,Oxfordshire County Council,SCS Pooled Budgets,Community Support Budget - City,Other Agency and Contracted Services,57401,Direct Payments,08/05/2013,3301675757,2284,REDACTED PERSONAL DATA
http://statistics.data.gov.uk/id/local-authority/38,Oxfordshire County Council,SCS Pooled Budgets,Community Support Budget - Banbury,Other Agency and Contracted Services,57401,Direct Payments,08/05/2013,3301675758,520,Citibank NA London
http://statistics.data.gov.uk/id/local-authority/38,Oxfordshire County Council,SCS Pooled Budgets,PD Comm Supp Purchasg Budget - City,Other Agency and Contracted Services,57401,Direct Payments,08/05/2013,3301675759,760.64,Citibank NA London
http://statistics.data.gov.uk/id/local-authority/38,Oxfordshire County Council,SCS Pooled Budgets,Direct Payments South Team,Other Agency and Contracted Services,57401,Direct Payments,08/05/2013,3301675760,1192.92,Citibank NA London
http://statistics.data.gov.uk/id/local-authority/38,Oxfordshire County Council,SCS Pooled Budgets,Direct Payments South Team,Other Agency and Contracted Services,57401,Direct Payments,08/05/2013,3301675761,566.92,Citibank NA London
http://statistics.data.gov.uk/id/local-authority/38,Oxfordshire County Council,SCS Pooled Budgets,Community Support Budget - Banbury,Other Agency and Contracted Services,57401,Direct Payments,08/05/2013,3301675764,740,Citibank NA London
http://statistics.data.gov.uk/id/local-authority/38,Oxfordshire County Council,SCS Pooled Budgets,Community Support Budget - Banbury,Other Agency and Contracted Services,57401,Direct Payments,08/05/2013,3301675764,555,Citibank NA London
http://statistics.data.gov.uk/id/local-authority/38,Oxfordshire County Council,SCS Pooled Budgets,Direct Payments South Team,Other Agency and Contracted Services,57401,Direct Payments,08/05/2013,3301675767,5777.2,Citibank NA London
http://statistics.data.gov.uk/id/local-authority/38,Oxfordshire County Council,SCS Pooled Budgets,PD Comm Supp Purchasg Budget - Didcot,Other Agency and Contracted Services,57401,Direct Payments,08/05/2013,3301675769,807.48,WK4 Advance Housing & Support
http://statistics.data.gov.uk/id/local-authority/38,Oxfordshire County Council,SCS Pooled Budgets,PD CS Purch Budget - Health S28a JC,Other Agency and Contracted Services,57401,Direct Payments,08/05/2013,3301675769,1000.52,WK4 Advance Housing & Support
http://statistics.data.gov.uk/id/local-authority/38,Oxfordshire County Council,SCS Pooled Budgets,Community Support Budget - City,Other Agency and Contracted Services,57401,Direct Payments,08/05/2013,3301675770,1244,WK4 Advance Housing & Support
http://statistics.data.gov.uk/id/local-authority/38,Oxfordshire County Council,SCS Pooled Budgets,Community Support Budget - City,Other Agency and Contracted Services,57401,Direct Payments,08/05/2013,3301675773,1024,WK4 Advance Housing & Support
http://statistics.data.gov.uk/id/local-authority/38,Oxfordshire County Council,SCS Pooled Budgets,PD Comm Supp Budget - Banbury,Other Agency and Contracted Services,57401,Direct Payments,08/05/2013,3301675774,3000.6,WK4 Advance Housing & Support
http://statistics.data.gov.uk/id/local-authority/38,Oxfordshire County Council,SCS Pooled Budgets,Community Support Budget - Witney,Other Agency and Contracted Services,57401,Direct Payments,08/05/2013,3301675775,684,WK4 Advance Housing & Support
http://statistics.data.gov.uk/id/local-authority/38,Oxfordshire County Council,SCS Pooled Budgets,Community Support Budget - Bicester,Other Agency and Contracted Services,57401,Direct Payments,08/05/2013,3301675779,1036,WK4 Advance Housing & Support
http://statistics.data.gov.uk/id/local-authority/38,Oxfordshire County Council,SCS Pooled Budgets,OP Pool Continuing Care Delegated Health,Other Agency and Contracted Services,57401,Direct Payments,08/05/2013,3301675780,919.36,WK4 Advance Housing & Support
http://statistics.data.gov.uk/id/local-authority/38,Oxfordshire County Council,SCS Pooled Budgets,Community Support Budget - City,Other Agency and Contracted Services,57401,Direct Payments,08/05/2013,3301675780,2532.64,WK4 Advance Housing & Support
http://statistics.data.gov.uk/id/local-authority/38,Oxfordshire County Council,SCS Pooled Budgets,Community Support Budget - Banbury,Other Agency and Contracted Services,57401,Direct Payments,08/05/2013,3301675782,956,WK4 Advance Housing & Support
http://statistics.data.gov.uk/id/local-authority/38,Oxfordshire County Council,SCS Pooled Budgets,Community Support Budget - Witney,Other Agency and Contracted Services,57401,Direct Payments,08/05/2013,3301675784,624,WK4 Advance Housing & Support
http://statistics.data.gov.uk/id/local-authority/38,Oxfordshire County Council,SCS Pooled Budgets,Community Support Budget - City,Other Agency and Contracted Services,57401,Direct Payments,08/05/2013,3301675785,1584,WK4 Advance Housing & Support
http://statistics.data.gov.uk/id/local-authority/38,Oxfordshire County Council,SCS Pooled Budgets,Community Support Budget - Abingdon,Other Agency and Contracted Services,57401,Direct Payments,08/05/2013,3301675787,2396,WK4 Advance Housing & Support
http://statistics.data.gov.uk/id/local-authority/38,Oxfordshire County Council,SCS Pooled Budgets,Community Support Budget - Chipping Nort,Other Agency and Contracted Services,57401,Direct Payments,08/05/2013,3301675788,1024,WK4 Advance Housing & Support
http://statistics.data.gov.uk/id/local-authority/38,Oxfordshire County Council,SCS Pooled Budgets,OP Pool Continuing Care Delegated Health,Other Agency and Contracted Services,57401,Direct Payments,08/05/2013,3301675789,735.48,WK4 Advance Housing & Support
http://statistics.data.gov.uk/id/local-authority/38,Oxfordshire County Council,SCS Pooled Budgets,Community Support Budget - Banbury,Other Agency and Contracted Services,57401,Direct Payments,08/05/2013,3301675789,2104.52,WK4 Advance Housing & Support
http://statistics.data.gov.uk/id/local-authority/38,Oxfordshire County Council,SCS Pooled Budgets,Community Support Budget - Banbury,Other Agency and Contracted Services,57401,Direct Payments,08/05/2013,3301675789,4509.69,WK4 Advance Housing & Support
http://statistics.data.gov.uk/id/local-authority/38,Oxfordshire County Council,SCS Pooled Budgets,OP Pool Continuing Care Delegated Health,Other Agency and Contracted Services,57401,Direct Payments,08/05/2013,3301675789,1576.03,WK4 Advance Housing & Support
http://statistics.data.gov.uk/id/local-authority/38,Oxfordshire County Council,SCS Pooled Budgets,Community Support Budget - Banbury,Other Agency and Contracted Services,57401,Direct Payments,08/05/2013,3301675789,-5442.86,WK4 Advance Housing & Support
http://statistics.data.gov.uk/id/local-authority/38,Oxfordshire County Council,SCS Pooled Budgets,Direct Payments South Team,Other Agency and Contracted Services,57401,Direct Payments,08/05/2013,3301675790,1696,WK4 Advance Housing & Support
http://statistics.data.gov.uk/id/local-authority/38,Oxfordshire County Council,SCS Pooled Budgets,PD Comm Supp Purchasg Budget - Wantage,Other Agency and Contracted Services,57401,Direct Payments,08/05/2013,3301675791,1240,WK4 Advance Housing & Support
http://statistics.data.gov.uk/id/local-authority/38,Oxfordshire County Council,SCS Pooled Budgets,PD Comm Supp Purchasg Budget - Abingdon,Other Agency and Contracted Services,57401,Direct Payments,08/05/2013,3301675792,2324,WK4 Advance Housing & Support
http://statistics.data.gov.uk/id/local-authority/38,Oxfordshire County Council,SCS Pooled Budgets,Community Support Budget - City,Other Agency and Contracted Services,57401,Direct Payments,08/05/2013,3301675793,568,WK4 Advance Housing & Support
http://statistics.data.gov.uk/id/local-authority/38,Oxfordshire County Council,SCS Pooled Budgets,Community Support Budget - Chipping Nort,Other Agency and Contracted Services,57401,Direct Payments,08/05/2013,3301675794,1444,WK4 Advance Housing & Support
http://statistics.data.gov.uk/id/local-authority/38,Oxfordshire County Council,SCS Pooled Budgets,Community Support Budget - City,Other Agency and Contracted Services,57401,Direct Payments,08/05/2013,3301675796,624,WK4 Advance Housing & Support
http://statistics.data.gov.uk/id/local-authority/38,Oxfordshire County Council,SCS Pooled Budgets,Community Support Budget - Didcot,Other Agency and Contracted Services,57401,Direct Payments,08/05/2013,3301675797,536,WK4 Advance Housing & Support
http://statistics.data.gov.uk/id/local-authority/38,Oxfordshire County Council,SCS Pooled Budgets,Community Support Budget - Witney,Other Agency and Contracted Services,57401,Direct Payments,08/05/2013,3301675799,628,WK4 Advance Housing & Support
http://statistics.data.gov.uk/id/local-authority/38,Oxfordshire County Council,SCS Pooled Budgets,Community Support Budget - Didcot,Other Agency and Contracted Services,57401,Direct Payments,08/05/2013,3301675800,902.4,WK4 Advance Housing & Support
http://statistics.data.gov.uk/id/local-authority/38,Oxfordshire County Council,SCS Pooled Budgets,Community Support Budget - Henley,Other Agency and Contracted Services,57401,Direct Payments,08/05/2013,3301675802,556,WK4 Advance Housing & Support
http://statistics.data.gov.uk/id/local-authority/38,Oxfordshire County Council,SCS Pooled Budgets,Community Support Budget - Kidlington,Other Agency and Contracted Services,57401,Direct Payments,08/05/2013,3301675803,1881.08,WK4 Advance Housing & Support
http://statistics.data.gov.uk/id/local-authority/38,Oxfordshire County Council,SCS Pooled Budgets,Direct Payments South Team,Other Agency and Contracted Services,57401,Direct Payments,08/05/2013,3301675804,933.24,WK4 Advance Housing & Support
http://statistics.data.gov.uk/id/local-authority/38,Oxfordshire County Council,SCS Pooled Budgets,Direct Payments City Team,Other Agency and Contracted Services,57401,Direct Payments,08/05/2013,3301675805,1789.48,WK4 Advance Housing & Support
http://statistics.data.gov.uk/id/local-authority/38,Oxfordshire County Council,SCS Pooled Budgets,Community Support Budget - Didcot,Other Agency and Contracted Services,57401,Direct Payments,08/05/2013,3301675806,2660,WK4 Advance Housing & Support
http://statistics.data.gov.uk/id/local-authority/38,Oxfordshire County Council,SCS Pooled Budgets,Community Support Budget - Banbury,Other Agency and Contracted Services,57401,Direct Payments,08/05/2013,3301675807,1108,WK4 Advance Housing & Support
http://statistics.data.gov.uk/id/local-authority/38,Oxfordshire County Council,SCS Pooled Budgets,PD Community Support Budget - Kidlington,Other Agency and Contracted Services,57401,Direct Payments,08/05/2013,3301675808,1900,WK4 Advance Housing & Support
http://statistics.data.gov.uk/id/local-authority/38,Oxfordshire County Council,SCS Pooled Budgets,Community Support Budget - Bicester,Other Agency and Contracted Services,57401,Direct Payments,08/05/2013,3301675810,760,WK4 Advance Housing & Support
http://statistics.data.gov.uk/id/local-authority/38,Oxfordshire County Council,SCS Pooled Budgets,PD Comm Supp Budget - Banbury,Other Agency and Contracted Services,57401,Direct Payments,08/05/2013,3301675811,1024,WK4 Advance Housing & Support
http://statistics.data.gov.uk/id/local-authority/38,Oxfordshire County Council,SCS Pooled Budgets,PD Community Support Budget - Faringdon,Other Agency and Contracted Services,57401,Direct Payments,08/05/2013,3301675812,1215.2,WK4 Advance Housing & Support
http://statistics.data.gov.uk/id/local-authority/38,Oxfordshire County Council,SCS Pooled Budgets,PD Comm Supp Purchasg Budget - Didcot,Other Agency and Contracted Services,57401,Direct Payments,08/05/2013,3301675813,2588,WK4 Advance Housing & Support
http://statistics.data.gov.uk/id/local-authority/38,Oxfordshire County Council,SCS Pooled Budgets,PD Comm Supp Purchasg Budget - Didcot,Other Agency and Contracted Services,57401,Direct Payments,08/05/2013,3301675814,1904,WK4 Advance Housing & Support
http://statistics.data.gov.uk/id/local-authority/38,Oxfordshire County Council,SCS Pooled Budgets,PD Comm Supp Purchasg Budget - Abingdon,Other Agency and Contracted Services,57401,Direct Payments,08/05/2013,3301675815,708,WK4 Advance Housing & Support
http://statistics.data.gov.uk/id/local-authority/38,Oxfordshire County Council,SCS Pooled Budgets,Direct Payments North Team,Other Agency and Contracted Services,57401,Direct Payments,08/05/2013,3301675816,2000,WK4 Advance Housing & Support
http://statistics.data.gov.uk/id/local-authority/38,Oxfordshire County Council,SCS Pooled Budgets,PD Comm Supp Purchasg Budget - City,Other Agency and Contracted Services,57401,Direct Payments,08/05/2013,3301675817,911.4,WK4 Advance Housing & Support
http://statistics.data.gov.uk/id/local-authority/38,Oxfordshire County Council,SCS Pooled Budgets,Community Support Budget - Banbury,Other Agency and Contracted Services,57401,Direct Payments,08/05/2013,3301675818,573.6,WK4 Advance Housing & Support
http://statistics.data.gov.uk/id/local-authority/38,Oxfordshire County Council,SCS Pooled Budgets,Community Support Budget - Abingdon,Other Agency and Contracted Services,57401,Direct Payments,08/05/2013,3301675819,972,WK4 Advance Housing & Support
http://statistics.data.gov.uk/id/local-authority/38,Oxfordshire County Council,SCS Pooled Budgets,Community Support Budget - Wantage,Other Agency and Contracted Services,57401,Direct Payments,08/05/2013,3301675820,524,WK4 Advance Housing & Support
http://statistics.data.gov.uk/id/local-authority/38,Oxfordshire County Council,SCS Pooled Budgets,PD Comm Supp Purchasg Budget - Witney,Other Agency and Contracted Services,57401,Direct Payments,08/05/2013,3301675821,1020,WK4 Advance Housing & Support
http://statistics.data.gov.uk/id/local-authority/38,Oxfordshire County Council,SCS Pooled Budgets,Community Support Budget - Chipping Nort,Other Agency and Contracted Services,57401,Direct Payments,08/05/2013,3301675822,852,WK4 Advance Housing & Support
http://statistics.data.gov.uk/id/local-authority/38,Oxfordshire County Council,SCS Pooled Budgets,Community Support Budget - Witney,Other Agency and Contracted Services,57401,Direct Payments,08/05/2013,3301675826,788,WK4 Advance Housing & Support
http://statistics.data.gov.uk/id/local-authority/38,Oxfordshire County Council,SCS Pooled Budgets,Community Support Budget - Bicester,Other Agency and Contracted Services,57401,Direct Payments,08/05/2013,3301675827,1020,WK4 Advance Housing & Support
http://statistics.data.gov.uk/id/local-authority/38,Oxfordshire County Council,SCS Pooled Budgets,Community Support Budget - City,Other Agency and Contracted Services,57401,Direct Payments,08/05/2013,3301675828,540,WK4 Advance Housing & Support
http://statistics.data.gov.uk/id/local-authority/38,Oxfordshire County Council,SCS Pooled Budgets,Community Support Budget - Banbury,Other Agency and Contracted Services,57401,Direct Payments,08/05/2013,3301675829,785.24,WK4 Advance Housing & Support
http://statistics.data.gov.uk/id/local-authority/38,Oxfordshire County Council,SCS Pooled Budgets,Community Support Budget - Banbury,Other Agency and Contracted Services,57401,Direct Payments,08/05/2013,3301675829,981.55,WK4 Advance Housing & Support
http://statistics.data.gov.uk/id/local-authority/38,Oxfordshire County Council,SCS Pooled Budgets,Community Support Budget - Banbury,Other Agency and Contracted Services,57401,Direct Payments,08/05/2013,3301675829,-854.6,WK4 Advance Housing & Support
http://statistics.data.gov.uk/id/local-authority/38,Oxfordshire County Council,SCS Pooled Budgets,Community Support Budget - City,Other Agency and Contracted Services,57401,Direct Payments,08/05/2013,3301675832,658.04,WK4 Advance Housing & Support
http://statistics.data.gov.uk/id/local-authority/38,Oxfordshire County Council,SCS Pooled Budgets,PD Comm Supp Purchasg Budget - City,Other Agency and Contracted Services,57401,Direct Payments,08/05/2013,3301675833,1099.2,WK4 Advance Housing & Support
http://statistics.data.gov.uk/id/local-authority/38,Oxfordshire County Council,SCS Pooled Budgets,Personal Health Budgets PD (PCT),Other Agency and Contracted Services,57401,Direct Payments,08/05/2013,3301675834,2577.6,WK4 Advance Housing & Support
http://statistics.data.gov.uk/id/local-authority/38,Oxfordshire County Council,SCS Pooled Budgets,PD Community Support Budget - Kidlington,Other Agency and Contracted Services,57401,Direct Payments,08/05/2013,3301675835,1772,WK4 Advance Housing & Support
http://statistics.data.gov.uk/id/local-authority/38,Oxfordshire County Council,SCS Pooled Budgets,Direct Payments South Team,Other Agency and Contracted Services,57401,Direct Payments,08/05/2013,3301675836,1736,WK4 Advance Housing & Support
http://statistics.data.gov.uk/id/local-authority/38,Oxfordshire County Council,SCS Pooled Budgets,Community Support Budget - City,Other Agency and Contracted Services,57401,Direct Payments,08/05/2013,3301675837,949.52,WK4 Advance Housing & Support
http://statistics.data.gov.uk/id/local-authority/38,Oxfordshire County Council,SCS Pooled Budgets,Community Support Budget - Thame,Other Agency and Contracted Services,57401,Direct Payments,08/05/2013,3301675838,551.04,WK4 Advance Housing & Support
http://statistics.data.gov.uk/id/local-authority/38,Oxfordshire County Council,SCS Pooled Budgets,PD Comm Supp Purchasg Budget - Witney,Other Agency and Contracted Services,57401,Direct Payments,08/05/2013,3301675839,1084,WK4 Advance Housing & Support
http://statistics.data.gov.uk/id/local-authority/38,Oxfordshire County Council,SCS Pooled Budgets,Community Support Budget - Witney,Other Agency and Contracted Services,57401,Direct Payments,08/05/2013,3301675840,1052,WK4 Advance Housing & Support
http://statistics.data.gov.uk/id/local-authority/38,Oxfordshire County Council,SCS Pooled Budgets,Community Support Budget - Witney,Other Agency and Contracted Services,57401,Direct Payments,08/05/2013,3301675841,1836,WK4 Advance Housing & Support
http://statistics.data.gov.uk/id/local-authority/38,Oxfordshire County Council,SCS Pooled Budgets,Community Support Budget - Henley,Other Agency and Contracted Services,57401,Direct Payments,08/05/2013,3301675842,648.88,WK4 Advance Housing & Support
http://statistics.data.gov.uk/id/local-authority/38,Oxfordshire County Council,SCS Pooled Budgets,PD Comm Supp Purchasg Budget - Witney,Other Agency and Contracted Services,57401,Direct Payments,08/05/2013,3301675843,524,WK4 Advance Housing & Support
http://statistics.data.gov.uk/id/local-authority/38,Oxfordshire County Council,SCS Pooled Budgets,PD Comm Supp Purchasg Budget - City,Other Agency and Contracted Services,57401,Direct Payments,08/05/2013,3301675845,3152,WK4 Advance Housing & Support
http://statistics.data.gov.uk/id/local-authority/38,Oxfordshire County Council,SCS Pooled Budgets,PD Comm Supp Budget - Banbury,Other Agency and Contracted Services,57401,Direct Payments,08/05/2013,3301675847,616,WK4 Advance Housing & Support
http://statistics.data.gov.uk/id/local-authority/38,Oxfordshire County Council,SCS Pooled Budgets,PHB OP Package,Other Agency and Contracted Services,57401,Direct Payments,08/05/2013,3301675848,4256.96,WK4 Advance Housing & Support
http://statistics.data.gov.uk/id/local-authority/38,Oxfordshire County Council,SCS Pooled Budgets,Community Support Budget - Thame,Other Agency and Contracted Services,57401,Direct Payments,08/05/2013,3301675849,616,WK4 Advance Housing & Support
http://statistics.data.gov.uk/id/local-authority/38,Oxfordshire County Council,SCS Pooled Budgets,Community Support Budget - Abingdon,Other Agency and Contracted Services,57401,Direct Payments,08/05/2013,3301675850,564,WK4 Advance Housing & Support
http://statistics.data.gov.uk/id/local-authority/38,Oxfordshire County Council,SCS Pooled Budgets,Community Support Budget - Banbury,Other Agency and Contracted Services,57401,Direct Payments,08/05/2013,3301675851,1956,WK4 Advance Housing & Support
http://statistics.data.gov.uk/id/local-authority/38,Oxfordshire County Council,SCS Pooled Budgets,Community Support Budget - Bicester,Other Agency and Contracted Services,57401,Direct Payments,08/05/2013,3301675852,1060,WK4 Advance Housing & Support
http://statistics.data.gov.uk/id/local-authority/38,Oxfordshire County Council,SCS Pooled Budgets,Community Support Budget - Witney,Other Agency and Contracted Services,57401,Direct Payments,08/05/2013,3301675853,1068,WK4 Advance Housing & Support
http://statistics.data.gov.uk/id/local-authority/38,Oxfordshire County Council,SCS Pooled Budgets,Community Support Budget - Banbury,Other Agency and Contracted Services,57401,Direct Payments,08/05/2013,3301675854,1055.2,WK4 Advance Housing & Support
http://statistics.data.gov.uk/id/local-authority/38,Oxfordshire County Council,SCS Pooled Budgets,Community Support Budget - City,Other Agency and Contracted Services,57401,Direct Payments,08/05/2013,3301675855,916,WK4 Advance Housing & Support
http://statistics.data.gov.uk/id/local-authority/38,Oxfordshire County Council,SCS Pooled Budgets,Community Support Budget - Thame,Other Agency and Contracted Services,57401,Direct Payments,08/05/2013,3301675856,1228,WK4 Advance Housing & Support
http://statistics.data.gov.uk/id/local-authority/38,Oxfordshire County Council,SCS Pooled Budgets,Community Support Budget - Banbury,Other Agency and Contracted Services,57401,Direct Payments,08/05/2013,3301675857,1972,WK4 Advance Housing & Support
http://statistics.data.gov.uk/id/local-authority/38,Oxfordshire County Council,SCS Pooled Budgets,Community Support Budget - Wantage,Other Agency and Contracted Services,57401,Direct Payments,08/05/2013,3301675859,2628,WK4 Advance Housing & Support
http://statistics.data.gov.uk/id/local-authority/38,Oxfordshire County Council,SCS Pooled Budgets,Community Support Budget - Abingdon,Other Agency and Contracted Services,57401,Direct Payments,08/05/2013,3301675860,1228,WK4 Advance Housing & Support
http://statistics.data.gov.uk/id/local-authority/38,Oxfordshire County Council,SCS Pooled Budgets,Community Support Budget - Chipping Nort,Other Agency and Contracted Services,57401,Direct Payments,08/05/2013,3301675863,1432,WK4 Advance Housing & Support
http://statistics.data.gov.uk/id/local-authority/38,Oxfordshire County Council,SCS Pooled Budgets,Community Support Budget - Bicester,Other Agency and Contracted Services,57401,Direct Payments,08/05/2013,3301675864,844,WK4 Advance Housing & Support
http://statistics.data.gov.uk/id/local-authority/38,Oxfordshire County Council,SCS Pooled Budgets,Community Support Budget - Banbury,Other Agency and Contracted Services,57401,Direct Payments,08/05/2013,3301675865,880,WK4 Advance Housing & Support
http://statistics.data.gov.uk/id/local-authority/38,Oxfordshire County Council,SCS Pooled Budgets,Community Support Budget - Henley,Other Agency and Contracted Services,57401,Direct Payments,08/05/2013,3301675866,932,WK4 Advance Housing & Support
http://statistics.data.gov.uk/id/local-authority/38,Oxfordshire County Council,SCS Pooled Budgets,PD Comm Supp Purchasg Budget - Witney,Other Agency and Contracted Services,57401,Direct Payments,08/05/2013,3301675868,500,WK4 Advance Housing & Support
http://statistics.data.gov.uk/id/local-authority/38,Oxfordshire County Council,SCS Pooled Budgets,Community Support Budget - Bicester,Other Agency and Contracted Services,57401,Direct Payments,08/05/2013,3301675869,964.8,WK4 Advance Housing & Support
http://statistics.data.gov.uk/id/local-authority/38,Oxfordshire County Council,SCS Pooled Budgets,PD Comm Supp Purchasg Budget - Didcot,Other Agency and Contracted Services,57401,Direct Payments,08/05/2013,3301675870,607.6,WK4 Advance Housing & Support
http://statistics.data.gov.uk/id/local-authority/38,Oxfordshire County Council,SCS Pooled Budgets,Community Support Budget - Banbury,Other Agency and Contracted Services,57401,Direct Payments,08/05/2013,3301675872,640,WK4 Advance Housing & Support
http://statistics.data.gov.uk/id/local-authority/38,Oxfordshire County Council,SCS Pooled Budgets,Community Support Budget - Abingdon,Other Agency and Contracted Services,57401,Direct Payments,08/05/2013,3301675874,633.84,WK4 Advance Housing & Support
http://statistics.data.gov.uk/id/local-authority/38,Oxfordshire County Council,SCS Pooled Budgets,Community Support Budget - City,Other Agency and Contracted Services,57401,Direct Payments,08/05/2013,3301675875,3268.86,WK4 Advance Housing & Support
http://statistics.data.gov.uk/id/local-authority/38,Oxfordshire County Council,SCS Pooled Budgets,Community Support Budget - City,Other Agency and Contracted Services,57401,Direct Payments,08/05/2013,3301675875,2692,WK4 Advance Housing & Support
http://statistics.data.gov.uk/id/local-authority/38,Oxfordshire County Council,SCS Pooled Budgets,PD Comm Supp Purchasg Budget - City,Other Agency and Contracted Services,57401,Direct Payments,08/05/2013,3301675876,692,WK4 Advance Housing & Support
http://statistics.data.gov.uk/id/local-authority/38,Oxfordshire County Council,SCS Pooled Budgets,Community Support Budget - Bicester,Other Agency and Contracted Services,57401,Direct Payments,08/05/2013,3301675879,1028,WK4 Advance Housing & Support
http://statistics.data.gov.uk/id/local-authority/38,Oxfordshire County Council,SCS Pooled Budgets,Direct Payments City Team,Other Agency and Contracted Services,57401,Direct Payments,08/05/2013,3301675880,8328,WK4 Advance Housing & Support
http://statistics.data.gov.uk/id/local-authority/38,Oxfordshire County Council,SCS Pooled Budgets,OP Pool Continuing Care Delegated Health,Other Agency and Contracted Services,57401,Direct Payments,08/05/2013,3301675882,708.4,WK4 Advance Housing & Support
http://statistics.data.gov.uk/id/local-authority/38,Oxfordshire County Council,SCS Pooled Budgets,Community Support Budget - City,Other Agency and Contracted Services,57401,Direct Payments,08/05/2013,3301675882,1236.76,WK4 Advance Housing & Support
http://statistics.data.gov.uk/id/local-authority/38,Oxfordshire County Council,SCS Pooled Budgets,Community Support Budget - Faringdon,Other Agency and Contracted Services,57401,Direct Payments,08/05/2013,3301675884,1444,WK4 Advance Housing & Support
http://statistics.data.gov.uk/id/local-authority/38,Oxfordshire County Council,SCS Pooled Budgets,PD Comm Supp Budgt - Bicester/Kidlington,Other Agency and Contracted Services,57401,Direct Payments,08/05/2013,3301675886,2572,WK4 Advance Housing & Support
http://statistics.data.gov.uk/id/local-authority/38,Oxfordshire County Council,SCS Pooled Budgets,PD Community Support Budget - Faringdon,Other Agency and Contracted Services,57401,Direct Payments,08/05/2013,3301675887,1132,WK4 Advance Housing & Support
http://statistics.data.gov.uk/id/local-authority/38,Oxfordshire County Council,SCS Pooled Budgets,Direct Payments City Team,Other Agency and Contracted Services,57401,Direct Payments,08/05/2013,3301675888,660,WK4 Advance Housing & Support
http://statistics.data.gov.uk/id/local-authority/38,Oxfordshire County Council,SCS Pooled Budgets,Direct Payments City Team,Other Agency and Contracted Services,57401,Direct Payments,08/05/2013,3301675888,966.43,WK4 Advance Housing & Support
http://statistics.data.gov.uk/id/local-authority/38,Oxfordshire County Council,SCS Pooled Budgets,PD Comm Supp Purchasg Budget - Witney,Other Agency and Contracted Services,57401,Direct Payments,08/05/2013,3301675889,1316,WK4 Advance Housing & Support
http://statistics.data.gov.uk/id/local-authority/38,Oxfordshire County Council,SCS Pooled Budgets,PD Comm Supp Purchasg Budget - Abingdon,Other Agency and Contracted Services,57401,Direct Payments,08/05/2013,3301675891,868,WK4 Advance Housing & Support
http://statistics.data.gov.uk/id/local-authority/38,Oxfordshire County Council,SCS Pooled Budgets,Community Support Budget - Abingdon,Other Agency and Contracted Services,57401,Direct Payments,08/05/2013,3301675892,692,WK4 Advance Housing & Support
http://statistics.data.gov.uk/id/local-authority/38,Oxfordshire County Council,SCS Pooled Budgets,Direct Payments North Team,Other Agency and Contracted Services,57401,Direct Payments,08/05/2013,3301675895,600,WK4 Advance Housing & Support
http://statistics.data.gov.uk/id/local-authority/38,Oxfordshire County Council,SCS Pooled Budgets,PD Comm Supp Purchasg Budget - Witney,Other Agency and Contracted Services,57401,Direct Payments,08/05/2013,3301675899,1372,WK4 Advance Housing & Support
http://statistics.data.gov.uk/id/local-authority/38,Oxfordshire County Council,SCS Pooled Budgets,Direct Payments City Team,Other Agency and Contracted Services,57401,Direct Payments,08/05/2013,3301675901,658,WK4 Advance Housing & Support
http://statistics.data.gov.uk/id/local-authority/38,Oxfordshire County Council,SCS Pooled Budgets,Direct Payments North Team,Other Agency and Contracted Services,57401,Direct Payments,08/05/2013,3301675902,2745.24,WK4 Advance Housing & Support
http://statistics.data.gov.uk/id/local-authority/38,Oxfordshire County Council,SCS Pooled Budgets,Community Support Budget - Chipping Nort,Other Agency and Contracted Services,57401,Direct Payments,08/05/2013,3301675903,628,WK4 Advance Housing & Support
http://statistics.data.gov.uk/id/local-authority/38,Oxfordshire County Council,SCS Pooled Budgets,Community Support Budget - Abingdon,Other Agency and Contracted Services,57401,Direct Payments,08/05/2013,3301675904,1380,WK4 Advance Housing & Support
http://statistics.data.gov.uk/id/local-authority/38,Oxfordshire County Council,SCS Pooled Budgets,Community Support Budget - Witney,Other Agency and Contracted Services,57401,Direct Payments,08/05/2013,3301675905,818.8,WK4 Advance Housing & Support
http://statistics.data.gov.uk/id/local-authority/38,Oxfordshire County Council,SCS Pooled Budgets,Community Support Budget - City,Other Agency and Contracted Services,57401,Direct Payments,08/05/2013,3301675906,2328.28,WK4 Advance Housing & Support
http://statistics.data.gov.uk/id/local-authority/38,Oxfordshire County Council,SCS Pooled Budgets,PD Community Support Budget - Kidlington,Other Agency and Contracted Services,57401,Direct Payments,08/05/2013,3301675908,1040,WK4 Advance Housing & Support
http://statistics.data.gov.uk/id/local-authority/38,Oxfordshire County Council,SCS Pooled Budgets,Community Support Budget - Witney,Other Agency and Contracted Services,57401,Direct Payments,08/05/2013,3301675909,818.04,WK4 Advance Housing & Support
http://statistics.data.gov.uk/id/local-authority/38,Oxfordshire County Council,SCS Pooled Budgets,Direct Payments North Team,Other Agency and Contracted Services,57401,Direct Payments,08/05/2013,3301675910,600,WK4 Advance Housing & Support
http://statistics.data.gov.uk/id/local-authority/38,Oxfordshire County Council,SCS Pooled Budgets,PD Comm Supp Purchasg Budget - City,Other Agency and Contracted Services,57401,Direct Payments,08/05/2013,3301675911,600,WK4 Advance Housing & Support
http://statistics.data.gov.uk/id/local-authority/38,Oxfordshire County Council,SCS Pooled Budgets,Community Support Budget - Witney,Other Agency and Contracted Services,57401,Direct Payments,08/05/2013,3301675912,540,WK4 Advance Housing & Support
http://statistics.data.gov.uk/id/local-authority/38,Oxfordshire County Council,SCS Pooled Budgets,Community Support Budget - Witney,Other Agency and Contracted Services,57401,Direct Payments,08/05/2013,3301675914,612,WK4 Advance Housing & Support
http://statistics.data.gov.uk/id/local-authority/38,Oxfordshire County Council,SCS Pooled Budgets,Community Support Budget - Thame,Other Agency and Contracted Services,57401,Direct Payments,08/05/2013,3301675915,688,WK4 Advance Housing & Support
http://statistics.data.gov.uk/id/local-authority/38,Oxfordshire County Council,SCS Pooled Budgets,PD Comm Supp Purchasg Budget - Witney,Other Agency and Contracted Services,57401,Direct Payments,08/05/2013,3301675917,724,WK4 Advance Housing & Support
http://statistics.data.gov.uk/id/local-authority/38,Oxfordshire County Council,SCS Pooled Budgets,PD Comm Supp Purchasg Budget - City,Other Agency and Contracted Services,57401,Direct Payments,08/05/2013,3301675918,4492,WK4 Advance Housing & Support
http://statistics.data.gov.uk/id/local-authority/38,Oxfordshire County Council,SCS Pooled Budgets,Community Support Budget - Chipping Nort,Other Agency and Contracted Services,57401,Direct Payments,08/05/2013,3301675920,576,WK4 Advance Housing & Support
http://statistics.data.gov.uk/id/local-authority/38,Oxfordshire County Council,SCS Pooled Budgets,Community Support Budget - Banbury,Other Agency and Contracted Services,57401,Direct Payments,08/05/2013,3301675923,1168,WK4 Advance Housing & Support
http://statistics.data.gov.uk/id/local-authority/38,Oxfordshire County Council,SCS Pooled Budgets,PD Comm Supp Purchasg Budget - City,Other Agency and Contracted Services,57401,Direct Payments,08/05/2013,3301675924,1060,WK4 Advance Housing & Support
http://statistics.data.gov.uk/id/local-authority/38,Oxfordshire County Council,SCS Pooled Budgets,Community Support Budget - Bicester,Other Agency and Contracted Services,57401,Direct Payments,08/05/2013,3301675926,1024,WK4 Advance Housing & Support
http://statistics.data.gov.uk/id/local-authority/38,Oxfordshire County Council,SCS Pooled Budgets,Community Support Budget - Henley,Other Agency and Contracted Services,57401,Direct Payments,08/05/2013,3301675927,564,WK4 Advance Housing & Support
http://statistics.data.gov.uk/id/local-authority/38,Oxfordshire County Council,SCS Pooled Budgets,Community Support Budget - Didcot,Other Agency and Contracted Services,57401,Direct Payments,08/05/2013,3301675928,2216,WK4 Advance Housing & Support
http://statistics.data.gov.uk/id/local-authority/38,Oxfordshire County Council,SCS Pooled Budgets,PD Comm Supp Purchasg Budget - Witney,Other Agency and Contracted Services,57401,Direct Payments,08/05/2013,3301675931,1215.2,WK4 Advance Housing & Support
http://statistics.data.gov.uk/id/local-authority/38,Oxfordshire County Council,SCS Pooled Budgets,Community Support Budget - Witney,Other Agency and Contracted Services,57401,Direct Payments,08/05/2013,3301675932,776,WK4 Advance Housing & Support
http://statistics.data.gov.uk/id/local-authority/38,Oxfordshire County Council,SCS Pooled Budgets,Community Support Budget - Witney,Other Agency and Contracted Services,57401,Direct Payments,08/05/2013,3301675933,780,WK4 Advance Housing & Support
http://statistics.data.gov.uk/id/local-authority/38,Oxfordshire County Council,SCS Pooled Budgets,Direct Payments North Team,Other Agency and Contracted Services,57401,Direct Payments,08/05/2013,3301675936,814.16,WK4 Advance Housing & Support
http://statistics.data.gov.uk/id/local-authority/38,Oxfordshire County Council,SCS Pooled Budgets,Direct Payments South Team,Other Agency and Contracted Services,57401,Direct Payments,08/05/2013,3301675939,1014.16,WK4 Advance Housing & Support
http://statistics.data.gov.uk/id/local-authority/38,Oxfordshire County Council,SCS Pooled Budgets,Community Support Budget - Abingdon,Other Agency and Contracted Services,57401,Direct Payments,08/05/2013,3301675940,1420,WK4 Advance Housing & Support
http://statistics.data.gov.uk/id/local-authority/38,Oxfordshire County Council,SCS Pooled Budgets,Direct Payments South Team,Other Agency and Contracted Services,57401,Direct Payments,08/05/2013,3301675941,1203.6,WK4 Advance Housing & Support
http://statistics.data.gov.uk/id/local-authority/38,Oxfordshire County Council,SCS Pooled Budgets,Community Support Budget - Abingdon,Other Agency and Contracted Services,57401,Direct Payments,08/05/2013,3301675942,552.64,WK4 Advance Housing & Support
http://statistics.data.gov.uk/id/local-authority/38,Oxfordshire County Council,SCS Pooled Budgets,PD Comm Supp Purchasg Budget - City,Other Agency and Contracted Services,57401,Direct Payments,08/05/2013,3301675943,1512,WK4 Advance Housing & Support
http://statistics.data.gov.uk/id/local-authority/38,Oxfordshire County Council,SCS Pooled Budgets,Community Support Budget - City,Other Agency and Contracted Services,57401,Direct Payments,08/05/2013,3301675945,1112,WK4 Advance Housing & Support
http://statistics.data.gov.uk/id/local-authority/38,Oxfordshire County Council,SCS Pooled Budgets,PD Comm Supp Purchasg Budget - City,Other Agency and Contracted Services,57401,Direct Payments,08/05/2013,3301675949,1921.44,WK4 Advance Housing & Support
http://statistics.data.gov.uk/id/local-authority/38,Oxfordshire County Council,SCS Pooled Budgets,Direct Payments City Team,Other Agency and Contracted Services,57401,Direct Payments,08/05/2013,3301675950,3605,WK4 Advance Housing & Support
http://statistics.data.gov.uk/id/local-authority/38,Oxfordshire County Council,SCS Pooled Budgets,Direct Payments City Team,Other Agency and Contracted Services,57401,Direct Payments,08/05/2013,3301675951,1428.72,WK4 Advance Housing & Support
http://statistics.data.gov.uk/id/local-authority/38,Oxfordshire County Council,SCS Pooled Budgets,Direct Payments South Team,Other Agency and Contracted Services,57401,Direct Payments,08/05/2013,3301675953,3172.12,WK4 Advance Housing & Support
http://statistics.data.gov.uk/id/local-authority/38,Oxfordshire County Council,SCS Pooled Budgets,PD Comm Supp Purchasg Budget - Didcot,Other Agency and Contracted Services,57401,Direct Payments,08/05/2013,3301675954,1592,WK4 Advance Housing & Support
http://statistics.data.gov.uk/id/local-authority/38,Oxfordshire County Council,SCS Pooled Budgets,Personal Health Budgets PD (PCT),Other Agency and Contracted Services,57401,Direct Payments,08/05/2013,3301675955,10762.8,WK4 Advance Housing & Support
http://statistics.data.gov.uk/id/local-authority/38,Oxfordshire County Council,SCS Pooled Budgets,Direct Payments South Team,Other Agency and Contracted Services,57401,Direct Payments,08/05/2013,3301675956,1074.56,WK4 Advance Housing & Support
http://statistics.data.gov.uk/id/local-authority/38,Oxfordshire County Council,SCS Pooled Budgets,PD Comm Supp Budget - Banbury,Other Agency and Contracted Services,57401,Direct Payments,08/05/2013,3301675958,1340,WK4 Advance Housing & Support
http://statistics.data.gov.uk/id/local-authority/38,Oxfordshire County Council,SCS Pooled Budgets,Community Support Budget - Bicester,Other Agency and Contracted Services,57401,Direct Payments,08/05/2013,3301675959,876,WK4 Advance Housing & Support
http://statistics.data.gov.uk/id/local-authority/38,Oxfordshire County Council,SCS Pooled Budgets,Community Support Budget - Bicester,Other Agency and Contracted Services,57401,Direct Payments,08/05/2013,3301675960,1016,WK4 Advance Housing & Support
http://statistics.data.gov.uk/id/local-authority/38,Oxfordshire County Council,SCS Pooled Budgets,Direct Payments City Team,Other Agency and Contracted Services,57401,Direct Payments,08/05/2013,3301675961,6348.24,WK4 Advance Housing & Support
http://statistics.data.gov.uk/id/local-authority/38,Oxfordshire County Council,SCS Pooled Budgets,Community Support Budget - Witney,Other Agency and Contracted Services,57401,Direct Payments,08/05/2013,3301675963,976.48,WK4 Advance Housing & Support
http://statistics.data.gov.uk/id/local-authority/38,Oxfordshire County Council,SCS Pooled Budgets,Community Support Budget - Banbury,Other Agency and Contracted Services,57401,Direct Payments,08/05/2013,3301675964,1296,WK4 Advance Housing & Support
http://statistics.data.gov.uk/id/local-authority/38,Oxfordshire County Council,SCS Pooled Budgets,PD Comm Supp Budget - Banbury,Other Agency and Contracted Services,57401,Direct Payments,08/05/2013,3301675965,708,WK4 Advance Housing & Support
http://statistics.data.gov.uk/id/local-authority/38,Oxfordshire County Council,SCS Pooled Budgets,Community Support Budget - Banbury,Other Agency and Contracted Services,57401,Direct Payments,08/05/2013,3301675966,1472,WK4 Advance Housing & Support
http://statistics.data.gov.uk/id/local-authority/38,Oxfordshire County Council,SCS Pooled Budgets,Community Support Budget - Banbury,Other Agency and Contracted Services,57401,Direct Payments,08/05/2013,3301675968,3584.52,WK4 Advance Housing & Support
http://statistics.data.gov.uk/id/local-authority/38,Oxfordshire County Council,SCS Pooled Budgets,OP Pool Continuing Care Delegated Health,Other Agency and Contracted Services,57401,Direct Payments,08/05/2013,3301675968,735.48,WK4 Advance Housing & Support
http://statistics.data.gov.uk/id/local-authority/38,Oxfordshire County Council,SCS Pooled Budgets,Direct Payments North Team,Other Agency and Contracted Services,57401,Direct Payments,08/05/2013,3301675971,2141.76,WK4 Advance Housing & Support
http://statistics.data.gov.uk/id/local-authority/38,Oxfordshire County Council,SCS Pooled Budgets,Community Support Budget - Thame,Other Agency and Contracted Services,57401,Direct Payments,08/05/2013,3301675972,3420,WK4 Advance Housing & Support
http://statistics.data.gov.uk/id/local-authority/38,Oxfordshire County Council,SCS Pooled Budgets,Community Support Budget - Banbury,Other Agency and Contracted Services,57401,Direct Payments,08/05/2013,3301675974,688,WK4 Advance Housing & Support
http://statistics.data.gov.uk/id/local-authority/38,Oxfordshire County Council,SCS Pooled Budgets,Community Support Budget - Bicester,Other Agency and Contracted Services,57401,Direct Payments,08/05/2013,3301675975,1849.6,WK4 Advance Housing & Support
http://statistics.data.gov.uk/id/local-authority/38,Oxfordshire County Council,SCS Pooled Budgets,Direct Payments North Team,Other Agency and Contracted Services,57401,Direct Payments,08/05/2013,3301675977,1314.48,WK4 Advance Housing & Support
http://statistics.data.gov.uk/id/local-authority/38,Oxfordshire County Council,SCS Pooled Budgets,Community Support Budget - Abingdon,Other Agency and Contracted Services,57401,Direct Payments,08/05/2013,3301675978,576,WK4 Advance Housing & Support
http://statistics.data.gov.uk/id/local-authority/38,Oxfordshire County Council,SCS Pooled Budgets,PD Comm Supp Purchasg Budget - Witney,Other Agency and Contracted Services,57401,Direct Payments,08/05/2013,3301675979,688,WK4 Advance Housing & Support
http://statistics.data.gov.uk/id/local-authority/38,Oxfordshire County Council,SCS Pooled Budgets,Direct Payments North Team,Other Agency and Contracted Services,57401,Direct Payments,08/05/2013,3301675980,1361.4,WK4 Advance Housing & Support
http://statistics.data.gov.uk/id/local-authority/38,Oxfordshire County Council,SCS Pooled Budgets,Direct Payments South Team,Other Agency and Contracted Services,57401,Direct Payments,08/05/2013,3301675981,661.8,WK4 Advance Housing & Support
http://statistics.data.gov.uk/id/local-authority/38,Oxfordshire County Council,SCS Pooled Budgets,PD Comm Supp Purchasg Budget - Thame,Other Agency and Contracted Services,57401,Direct Payments,08/05/2013,3301675983,1036,WK4 Advance Housing & Support
http://statistics.data.gov.uk/id/local-authority/38,Oxfordshire County Council,SCS Pooled Budgets,PD Comm Supp Purchasg Budget - City,Other Agency and Contracted Services,57401,Direct Payments,08/05/2013,3301675985,1172,WK4 Advance Housing & Support
http://statistics.data.gov.uk/id/local-authority/38,Oxfordshire County Council,SCS Pooled Budgets,Community Support Budget - Didcot,Other Agency and Contracted Services,57401,Direct Payments,08/05/2013,3301676134,1392,WK4 Advance Housing & Support
http://statistics.data.gov.uk/id/local-authority/38,Oxfordshire County Council,SCS Pooled Budgets,Community Support Budget - City,Other Agency and Contracted Services,57401,Direct Payments,08/05/2013,3301676135,3607.14,WK4 Advance Housing & Support
http://statistics.data.gov.uk/id/local-authority/38,Oxfordshire County Council,SCS Pooled Budgets,Community Support Budget - City,Other Agency and Contracted Services,57401,Direct Payments,08/05/2013,3301676135,-1564.29,WK4 Advance Housing & Support
http://statistics.data.gov.uk/id/local-authority/38,Oxfordshire County Council,SCS Pooled Budgets,Community Support Budget - Didcot,Other Agency and Contracted Services,57401,Direct Payments,08/05/2013,3301676136,6963,REDACTED PERSONAL DATA
http://statistics.data.gov.uk/id/local-authority/38,Oxfordshire County Council,SCS Pooled Budgets,Community Support Budget - Didcot,Other Agency and Contracted Services,57401,Direct Payments,08/05/2013,3301676136,-4400,REDACTED PERSONAL DATA
http://statistics.data.gov.uk/id/local-authority/38,Oxfordshire County Council,Chief Executive & Business Support,Big Society Fund,Grants and Subscriptions,47100,Grants to Voluntary,08/05/2013,3301676167,1700,Oxford Sailing Club
http://statistics.data.gov.uk/id/local-authority/38,Oxfordshire County Council,SCS Pooled Budgets,Life of Your Own Carers Grants,Other Agency and Contracted Services,57401,Direct Payments,09/05/2013,3301676571,600,REDACTED PERSONAL DATA
http://statistics.data.gov.uk/id/local-authority/38,Oxfordshire County Council,SCS Pooled Budgets,Direct Payments City Team,Other Agency and Contracted Services,57401,Direct Payments,09/05/2013,3301676576,9420.19,REDACTED PERSONAL DATA
http://statistics.data.gov.uk/id/local-authority/38,Oxfordshire County Council,Highways & Transport,Traffic Signals Principal Roads,Private Contractors,56202,Maint Costs 2nd Sche,10/05/2013,3301676724,2260.34,SIEMENS PLC
http://statistics.data.gov.uk/id/local-authority/38,Oxfordshire County Council,Social & Community Services,PCT SDS Funding,Other Agency and Contracted Services,57300,Home Support (Ext) OS&HCD,10/05/2013,3301676786,1660.71,Brook House Residential
http://statistics.data.gov.uk/id/local-authority/38,Oxfordshire County Council,Social & Community Services,External Day Care,Other Agency and Contracted Services,57400,Day Care External Pr,10/05/2013,3301676829,772,Age UK Oxfordshire
http://statistics.data.gov.uk/id/local-authority/38,Oxfordshire County Council,Highways & Transport,Localities,Private Contractors,56400,Major Contracts,10/05/2013,3301676868,1146.96,Marwood Electrical Co Ltd
http://statistics.data.gov.uk/id/local-authority/38,Oxfordshire County Council,Growth & Infrastructure,Property Holding Code For Reallocation,Balance Sheet General,B2030,Goods Received not Invoiced,10/05/2013,3301676871,7436.75,Atkins Ltd
http://statistics.data.gov.uk/id/local-authority/38,Oxfordshire County Council,Growth & Infrastructure,Property Holding Code For Reallocation,Balance Sheet General,B2030,Goods Received not Invoiced,10/05/2013,3301676872,763.38,Atkins Ltd
http://statistics.data.gov.uk/id/local-authority/38,Oxfordshire County Council,Highways & Transport,"Electrical NP Rds, Street Lighting",Private Contractors,56400,Major Contracts,10/05/2013,3301676940,872,Solagen Ltd
http://statistics.data.gov.uk/id/local-authority/38,Oxfordshire County Council,Highways & Transport,"Electrical NP Rds, Street Lighting",Private Contractors,56400,Major Contracts,10/05/2013,3301676941,4995,Solagen Ltd
http://statistics.data.gov.uk/id/local-authority/38,Oxfordshire County Council,Highways & Transport,Localities,Private Contractors,56400,Major Contracts,10/05/2013,3301676942,4995,Solagen Ltd
http://statistics.data.gov.uk/id/local-authority/38,Oxfordshire County Council,Highways & Transport,Localities,Private Contractors,56400,Major Contracts,10/05/2013,3301676943,4995,Solagen Ltd
http://statistics.data.gov.uk/id/local-authority/38,Oxfordshire County Council,Chief Executive & Business Support,Big Society Fund,Grants and Subscriptions,47100,Grants to Voluntary,14/05/2013,3301677282,4999,Age UK Oxfordshire
http://statistics.data.gov.uk/id/local-authority/38,Oxfordshire County Council,Children's Social Care,Service Manager - Disabilities,Other Agency and Contracted Services,57401,Direct Payments,14/05/2013,3301677293,992.1,REDACTED PERSONAL DATA
http://statistics.data.gov.uk/id/local-authority/38,Oxfordshire County Council,STD Insurance,Motor Fleet,Motor Insurance Fund Rev AC,Z5151,Motor IF Own Damage,14/05/2013,3301677441,434.08,AWP Body Repairs
http://statistics.data.gov.uk/id/local-authority/38,Oxfordshire County Council,SCS Pooled Budgets,PCT Carers,Other Agency and Contracted Services,57401,Direct Payments,14/05/2013,3301677442,750,REDACTED PERSONAL DATA
http://statistics.data.gov.uk/id/local-authority/38,Oxfordshire County Council,Social & Community Services,PCT Carers GP Breaks Funding,Other Agency and Contracted Services,57401,Direct Payments,14/05/2013,3301677615,750,REDACTED PERSONAL DATA
http://statistics.data.gov.uk/id/local-authority/38,Oxfordshire County Council,SCS Pooled Budgets,PCT Carers,Other Agency and Contracted Services,57401,Direct Payments,14/05/2013,3301677616,750,REDACTED PERSONAL DATA
http://statistics.data.gov.uk/id/local-authority/38,Oxfordshire County Council,SCS Pooled Budgets,Life Of Your Own Grant West,Other Agency and Contracted Services,57401,Direct Payments,14/05/2013,3301677617,600,REDACTED PERSONAL DATA
http://statistics.data.gov.uk/id/local-authority/38,Oxfordshire County Council,SCS Pooled Budgets,Life Of Your Own Grant West,Other Agency and Contracted Services,57401,Direct Payments,14/05/2013,3301677618,600,REDACTED PERSONAL DATA
http://statistics.data.gov.uk/id/local-authority/38,Oxfordshire County Council,SCS Pooled Budgets,Life Of Your Own Grant West,Other Agency and Contracted Services,57401,Direct Payments,14/05/2013,3301677620,600,REDACTED PERSONAL DATA
http://statistics.data.gov.uk/id/local-authority/38,Oxfordshire County Council,SCS Pooled Budgets,Carers Break / Respite Project,Other Agency and Contracted Services,57401,Direct Payments,14/05/2013,3301677622,750,REDACTED PERSONAL DATA
http://statistics.data.gov.uk/id/local-authority/38,Oxfordshire County Council,SCS Pooled Budgets,Carers Break / Respite Project,Other Agency and Contracted Services,57401,Direct Payments,14/05/2013,3301677623,750,REDACTED PERSONAL DATA
http://statistics.data.gov.uk/id/local-authority/38,Oxfordshire County Council,SCS Pooled Budgets,Carers Break / Respite Project,Other Agency and Contracted Services,57401,Direct Payments,14/05/2013,3301677626,750,REDACTED PERSONAL DATA
http://statistics.data.gov.uk/id/local-authority/38,Oxfordshire County Council,SCS Pooled Budgets,Life Of Your Own Grant West,Other Agency and Contracted Services,57401,Direct Payments,14/05/2013,3301677627,600,REDACTED PERSONAL DATA
http://statistics.data.gov.uk/id/local-authority/38,Oxfordshire County Council,SCS Pooled Budgets,PCT Carers,Other Agency and Contracted Services,57401,Direct Payments,14/05/2013,3301677629,750,REDACTED PERSONAL DATA
http://statistics.data.gov.uk/id/local-authority/38,Oxfordshire County Council,SCS Pooled Budgets,Carers Break / Respite Project,Other Agency and Contracted Services,57401,Direct Payments,14/05/2013,3301677631,750,REDACTED PERSONAL DATA
http://statistics.data.gov.uk/id/local-authority/38,Oxfordshire County Council,SCS Pooled Budgets,Life Of Your Own Grant South,Other Agency and Contracted Services,57401,Direct Payments,14/05/2013,3301677632,600,REDACTED PERSONAL DATA
http://statistics.data.gov.uk/id/local-authority/38,Oxfordshire County Council,SCS Pooled Budgets,Life of Your Own Carers Grants,Other Agency and Contracted Services,57401,Direct Payments,14/05/2013,3301677633,600,REDACTED PERSONAL DATA
http://statistics.data.gov.uk/id/local-authority/38,Oxfordshire County Council,SCS Pooled Budgets,Carers Break / Respite Project,Other Agency and Contracted Services,57401,Direct Payments,14/05/2013,3301677634,750,REDACTED PERSONAL DATA
http://statistics.data.gov.uk/id/local-authority/38,Oxfordshire County Council,SCS Pooled Budgets,Life Of Your Own Grant South,Other Agency and Contracted Services,57401,Direct Payments,14/05/2013,3301677635,600,REDACTED PERSONAL DATA
http://statistics.data.gov.uk/id/local-authority/38,Oxfordshire County Council,SCS Pooled Budgets,Life Of Your Own Grant South,Other Agency and Contracted Services,57401,Direct Payments,14/05/2013,3301677638,600,REDACTED PERSONAL DATA
http://statistics.data.gov.uk/id/local-authority/38,Oxfordshire County Council,SCS Pooled Budgets,Carers Break / Respite Project,Other Agency and Contracted Services,57401,Direct Payments,14/05/2013,3301677639,750,REDACTED PERSONAL DATA
http://statistics.data.gov.uk/id/local-authority/38,Oxfordshire County Council,SCS Pooled Budgets,Carers Break / Respite Project,Other Agency and Contracted Services,57401,Direct Payments,14/05/2013,3301677645,750,REDACTED PERSONAL DATA
http://statistics.data.gov.uk/id/local-authority/38,Oxfordshire County Council,SCS Pooled Budgets,Life of Your Own Carers Grants,Other Agency and Contracted Services,57401,Direct Payments,14/05/2013,3301677647,600,REDACTED PERSONAL DATA
http://statistics.data.gov.uk/id/local-authority/38,Oxfordshire County Council,SCS Pooled Budgets,Carers Break / Respite Project,Other Agency and Contracted Services,57401,Direct Payments,14/05/2013,3301677648,750,REDACTED PERSONAL DATA
http://statistics.data.gov.uk/id/local-authority/38,Oxfordshire County Council,SCS Pooled Budgets,Carers Break / Respite Project,Other Agency and Contracted Services,57401,Direct Payments,14/05/2013,3301677649,750,REDACTED PERSONAL DATA
http://statistics.data.gov.uk/id/local-authority/38,Oxfordshire County Council,SCS Pooled Budgets,Carers Break / Respite Project,Other Agency and Contracted Services,57401,Direct Payments,14/05/2013,3301677650,750,REDACTED PERSONAL DATA
http://statistics.data.gov.uk/id/local-authority/38,Oxfordshire County Council,SCS Pooled Budgets,Carers Break / Respite Project,Other Agency and Contracted Services,57401,Direct Payments,14/05/2013,3301677651,750,REDACTED PERSONAL DATA
http://statistics.data.gov.uk/id/local-authority/38,Oxfordshire County Council,Schools,Gillotts School,Planned R&M,21000,Repair & Maintenance (Non-Delegated),31/05/2013,3301677652,6515,Gillotts School (Academy)
http://statistics.data.gov.uk/id/local-authority/38,Oxfordshire County Council,Education & Early Intervention,2 Year Old Funding,Voluntary Associations,55100,Fees to Non Maintain,14/05/2013,3301677657,3302.85,Wantage Preschool
http://statistics.data.gov.uk/id/local-authority/38,Oxfordshire County Council,SCS Pooled Budgets,Carers Break / Respite Project,Other Agency and Contracted Services,57401,Direct Payments,14/05/2013,3301677658,750,REDACTED PERSONAL DATA
http://statistics.data.gov.uk/id/local-authority/38,Oxfordshire County Council,STD Insurance,Property,Property Insurance Fund Rev AC,Z5356,Property IF Additional Expenses,14/05/2013,3301677661,697.5,Securipol Limited
http://statistics.data.gov.uk/id/local-authority/38,Oxfordshire County Council,Education & Early Intervention,2 Year Old Funding,Voluntary Associations,55100,Fees to Non Maintain,14/05/2013,3301677684,640.2,Dorchester Pre-School
http://statistics.data.gov.uk/id/local-authority/38,Oxfordshire County Council,STD Insurance,Motor Fleet,Motor Insurance Fund Rev AC,Z5151,Motor IF Own Damage,20/05/2013,3301677691,457.06,Mobile Windscreens
http://statistics.data.gov.uk/id/local-authority/38,Oxfordshire County Council,SCS Pooled Budgets,Community Support Budget - City,Other Agency and Contracted Services,57401,Direct Payments,14/05/2013,3301677731,800,1 Off Advance Housing & Support
http://statistics.data.gov.uk/id/local-authority/38,Oxfordshire County Council,SCS Pooled Budgets,Community Support Budget - Wantage,Other Agency and Contracted Services,57401,Direct Payments,14/05/2013,3301677732,2500,1 Off Advance Housing & Support
http://statistics.data.gov.uk/id/local-authority/38,Oxfordshire County Council,SCS Pooled Budgets,PD Comm Supp Purchasg Budget - Abingdon,Other Agency and Contracted Services,57401,Direct Payments,14/05/2013,3301677733,2100.5,1 Off Advance Housing & Support
http://statistics.data.gov.uk/id/local-authority/38,Oxfordshire County Council,Highways & Transport,"Electrical NP Rds, Street Lighting",Private Contractors,56400,Major Contracts,14/05/2013,3301677754,445,WPD Midlands Networks Services Ltd
http://statistics.data.gov.uk/id/local-authority/38,Oxfordshire County Council,Highways & Transport,"Electrical NP Rds, Street Lighting",Private Contractors,56400,Major Contracts,14/05/2013,3301677755,890,WPD Midlands Networks Services Ltd
http://statistics.data.gov.uk/id/local-authority/38,Oxfordshire County Council,Highways & Transport,"Electrical NP Rds, Street Lighting",Private Contractors,56400,Major Contracts,14/05/2013,3301677756,445,WPD Midlands Networks Services Ltd
http://statistics.data.gov.uk/id/local-authority/38,Oxfordshire County Council,Highways & Transport,"Electrical NP Rds, Street Lighting",Private Contractors,56400,Major Contracts,14/05/2013,3301677757,445,WPD Midlands Networks Services Ltd
http://statistics.data.gov.uk/id/local-authority/38,Oxfordshire County Council,Highways & Transport,"Electrical NP Rds, Street Lighting",Private Contractors,56400,Major Contracts,14/05/2013,3301677758,445,WPD Midlands Networks Services Ltd
http://statistics.data.gov.uk/id/local-authority/38,Oxfordshire County Council,Highways & Transport,"Electrical NP Rds, Street Lighting",Private Contractors,56400,Major Contracts,14/05/2013,3301677759,890,WPD Midlands Networks Services Ltd
http://statistics.data.gov.uk/id/local-authority/38,Oxfordshire County Council,Highways & Transport,"Electrical NP Rds, Street Lighting",Private Contractors,56400,Major Contracts,14/05/2013,3301677760,445,WPD Midlands Networks Services Ltd
http://statistics.data.gov.uk/id/local-authority/38,Oxfordshire County Council,Highways & Transport,"Electrical NP Rds, Street Lighting",Private Contractors,56400,Major Contracts,14/05/2013,3301677761,890,WPD Midlands Networks Services Ltd
http://statistics.data.gov.uk/id/local-authority/38,Oxfordshire County Council,Highways & Transport,"Electrical NP Rds, Street Lighting",Private Contractors,56400,Major Contracts,14/05/2013,3301677762,1335,WPD Midlands Networks Services Ltd
http://statistics.data.gov.uk/id/local-authority/38,Oxfordshire County Council,Highways & Transport,"Electrical NP Rds, Street Lighting",Private Contractors,56400,Major Contracts,14/05/2013,3301677763,445,WPD Midlands Networks Services Ltd
http://statistics.data.gov.uk/id/local-authority/38,Oxfordshire County Council,Social & Community Services,Community Support Budget - City East,Other Agency and Contracted Services,57300,Home Support (Ext) OS&HCD,14/05/2013,3301677769,3861,Kcare Nursing Agency
http://statistics.data.gov.uk/id/local-authority/38,Oxfordshire County Council,Social & Community Services,Community Support Budget - City East,Other Agency and Contracted Services,57300,Home Support (Ext) OS&HCD,14/05/2013,3301677770,1860,Ashamber Homes Limited
http://statistics.data.gov.uk/id/local-authority/38,Oxfordshire County Council,Social & Community Services,Community Support Budget - City East,Other Agency and Contracted Services,57300,Home Support (Ext) OS&HCD,14/05/2013,3301677772,540,My World
http://statistics.data.gov.uk/id/local-authority/38,Oxfordshire County Council,Social & Community Services,Community Support Budget - City East,Other Agency and Contracted Services,57300,Home Support (Ext) OS&HCD,14/05/2013,3301677778,1914.08,Advance Housing & Support Ltd
http://statistics.data.gov.uk/id/local-authority/38,Oxfordshire County Council,SCS Pooled Budgets,Other Services,Voluntary Associations,55400,Service Agreements-A,14/05/2013,3301677779,12019.3,Advance Housing & Support Ltd
http://statistics.data.gov.uk/id/local-authority/38,Oxfordshire County Council,Social & Community Services,Community Support Budget - City East,Other Agency and Contracted Services,57300,Home Support (Ext) OS&HCD,14/05/2013,3301677780,1595.2,Advance Housing & Support Ltd
http://statistics.data.gov.uk/id/local-authority/38,Oxfordshire County Council,SCS Pooled Budgets,Other Services,Voluntary Associations,55400,Service Agreements-A,14/05/2013,3301677781,11909.5,Advance Housing & Support Ltd
http://statistics.data.gov.uk/id/local-authority/38,Oxfordshire County Council,Social & Community Services,Community Support Budget - City East,Other Agency and Contracted Services,57300,Home Support (Ext) OS&HCD,14/05/2013,3301677782,1985.62,Advance Housing & Support Ltd
http://statistics.data.gov.uk/id/local-authority/38,Oxfordshire County Council,Social & Community Services,Community Support Budget - City East,Other Agency and Contracted Services,57300,Home Support (Ext) OS&HCD,14/05/2013,3301677783,1595.2,Advance Housing & Support Ltd
http://statistics.data.gov.uk/id/local-authority/38,Oxfordshire County Council,Social & Community Services,Community Support Budget - City East,Other Agency and Contracted Services,57300,Home Support (Ext) OS&HCD,14/05/2013,3301677784,2036.72,Advance Housing & Support Ltd
http://statistics.data.gov.uk/id/local-authority/38,Oxfordshire County Council,Social & Community Services,Community Support Budget - City East,Other Agency and Contracted Services,57300,Home Support (Ext) OS&HCD,14/05/2013,3301677785,1355.92,Advance Housing & Support Ltd
http://statistics.data.gov.uk/id/local-authority/38,Oxfordshire County Council,SCS Pooled Budgets,PCT Carers,Other Agency and Contracted Services,57401,Direct Payments,14/05/2013,3301677797,750,REDACTED PERSONAL DATA
http://statistics.data.gov.uk/id/local-authority/38,Oxfordshire County Council,STD Insurance,Motor Fleet,Motor Insurance Fund Rev AC,Z5151,Motor IF Own Damage,14/05/2013,3301677904,434.56,AWP Body Repairs
http://statistics.data.gov.uk/id/local-authority/38,Oxfordshire County Council,STD Insurance,Motor Fleet,Motor Insurance Fund Rev AC,Z5151,Motor IF Own Damage,14/05/2013,3301677906,679.48,AWP Body Repairs
http://statistics.data.gov.uk/id/local-authority/38,Oxfordshire County Council,STD Insurance,Property,Property Insurance Fund Rev AC,Z5356,Property IF Additional Expenses,14/05/2013,3301677907,3048.75,Securipol Limited
http://statistics.data.gov.uk/id/local-authority/38,Oxfordshire County Council,STD Insurance,Property,Property Insurance Fund Rev AC,Z5356,Property IF Additional Expenses,14/05/2013,3301677908,465,Securipol Limited
http://statistics.data.gov.uk/id/local-authority/38,Oxfordshire County Council,Oxfordshire Customer Services,MIS Payroll Workflow,Balance Sheet General,B7110,Personal Accident Scheme,15/05/2013,3301678110,962.11,Chartis Insurance UK Ltd
http://statistics.data.gov.uk/id/local-authority/38,Oxfordshire County Council,Oxfordshire Customer Services,MIS Payroll Workflow,Balance Sheet General,B7111,Court Orders,15/05/2013,3301678112,815.2,Cherwell DC
http://statistics.data.gov.uk/id/local-authority/38,Oxfordshire County Council,Oxfordshire Customer Services,MIS Payroll Workflow,Balance Sheet General,B7111,Court Orders,15/05/2013,3301678113,3067.77,Child Support Agency
http://statistics.data.gov.uk/id/local-authority/38,Oxfordshire County Council,Oxfordshire Customer Services,MIS Payroll Workflow,Balance Sheet General,B7115,Fire Brigade Union Subs,15/05/2013,3301678114,7643.69,Fire Brigades Union
http://statistics.data.gov.uk/id/local-authority/38,Oxfordshire County Council,Oxfordshire Customer Services,MIS Payroll Workflow,Balance Sheet General,B7114,Fire Service National Benevolent,15/05/2013,3301678115,883.29,The Fire Fighters Charity Regular G
http://statistics.data.gov.uk/id/local-authority/38,Oxfordshire County Council,Oxfordshire Customer Services,MIS Payroll Workflow,Balance Sheet General,B7113,GMBU Subscriptions,15/05/2013,3301678120,1327.57,G M B
http://statistics.data.gov.uk/id/local-authority/38,Oxfordshire County Council,Oxfordshire Customer Services,MIS Payroll Workflow,Balance Sheet General,B7105,Unison Subscription,15/05/2013,3301678127,20680.45,Unison
http://statistics.data.gov.uk/id/local-authority/38,Oxfordshire County Council,Oxfordshire Customer Services,MIS Payroll Workflow,Balance Sheet General,B7100,Local Government Pension Scheme,15/05/2013,3301678131,3160625.66,Oxfordshire County Council
http://statistics.data.gov.uk/id/local-authority/38,Oxfordshire County Council,Oxfordshire Customer Services,MIS Payroll Workflow,Balance Sheet General,B7104,NHS Pension Scheme,15/05/2013,3301678132,19262.99,NHS Pension Scheme
http://statistics.data.gov.uk/id/local-authority/38,Oxfordshire County Council,SCS Pooled Budgets,Direct Payments South Team,Other Agency and Contracted Services,57401,Direct Payments,15/05/2013,3301678186,1179.68,WK1 Advance Housing & Support
http://statistics.data.gov.uk/id/local-authority/38,Oxfordshire County Council,SCS Pooled Budgets,Direct Payments North Team,Other Agency and Contracted Services,57401,Direct Payments,15/05/2013,3301678189,600,WK1 Advance Housing & Support
http://statistics.data.gov.uk/id/local-authority/38,Oxfordshire County Council,SCS Pooled Budgets,PD Comm Supp Budget - Banbury,Other Agency and Contracted Services,57401,Direct Payments,15/05/2013,3301678190,1036,WK1 Advance Housing & Support
http://statistics.data.gov.uk/id/local-authority/38,Oxfordshire County Council,SCS Pooled Budgets,Community Support Budget - Didcot,Other Agency and Contracted Services,57401,Direct Payments,15/05/2013,3301678191,1528,WK1 Advance Housing & Support
http://statistics.data.gov.uk/id/local-authority/38,Oxfordshire County Council,SCS Pooled Budgets,Community Support Budget - Banbury,Other Agency and Contracted Services,57401,Direct Payments,15/05/2013,3301678192,8772.86,WK1 Advance Housing & Support
http://statistics.data.gov.uk/id/local-authority/38,Oxfordshire County Council,SCS Pooled Budgets,Community Support Budget - Banbury,Other Agency and Contracted Services,57401,Direct Payments,15/05/2013,3301678192,2760,WK1 Advance Housing & Support
http://statistics.data.gov.uk/id/local-authority/38,Oxfordshire County Council,SCS Pooled Budgets,PD Comm Supp Budgt - Bicester/Kidlington,Other Agency and Contracted Services,57401,Direct Payments,15/05/2013,3301678193,1604,WK1 Advance Housing & Support
http://statistics.data.gov.uk/id/local-authority/38,Oxfordshire County Council,SCS Pooled Budgets,Community Support Budget - Chipping Nort,Other Agency and Contracted Services,57401,Direct Payments,15/05/2013,3301678194,2300.24,WK1 Advance Housing & Support
http://statistics.data.gov.uk/id/local-authority/38,Oxfordshire County Council,SCS Pooled Budgets,OP Pool Continuing Care Delegated Health,Other Agency and Contracted Services,57401,Direct Payments,15/05/2013,3301678194,715.76,WK1 Advance Housing & Support
http://statistics.data.gov.uk/id/local-authority/38,Oxfordshire County Council,SCS Pooled Budgets,Community Support Budget - Thame,Other Agency and Contracted Services,57401,Direct Payments,15/05/2013,3301678195,776,WK1 Advance Housing & Support
http://statistics.data.gov.uk/id/local-authority/38,Oxfordshire County Council,SCS Pooled Budgets,PD Comm Supp Purchasg Budget - Witney,Other Agency and Contracted Services,57401,Direct Payments,15/05/2013,3301678196,720,WK1 Advance Housing & Support
http://statistics.data.gov.uk/id/local-authority/38,Oxfordshire County Council,SCS Pooled Budgets,Community Support Budget - Witney,Other Agency and Contracted Services,57401,Direct Payments,15/05/2013,3301678197,887.2,WK1 Advance Housing & Support
http://statistics.data.gov.uk/id/local-authority/38,Oxfordshire County Council,SCS Pooled Budgets,PD Comm Supp Purchasg Budget - Henley,Other Agency and Contracted Services,57401,Direct Payments,15/05/2013,3301678198,830.4,WK1 Advance Housing & Support
http://statistics.data.gov.uk/id/local-authority/38,Oxfordshire County Council,SCS Pooled Budgets,Direct Payments North Team,Other Agency and Contracted Services,57401,Direct Payments,15/05/2013,3301678203,1857,WK1 Advance Housing & Support
http://statistics.data.gov.uk/id/local-authority/38,Oxfordshire County Council,SCS Pooled Budgets,PD Comm Supp Purchasg Budget - City,Other Agency and Contracted Services,57401,Direct Payments,15/05/2013,3301678204,842.08,WK1 Advance Housing & Support
http://statistics.data.gov.uk/id/local-authority/38,Oxfordshire County Council,SCS Pooled Budgets,Community Support Budget - City,Other Agency and Contracted Services,57401,Direct Payments,15/05/2013,3301678205,628,WK1 Advance Housing & Support
http://statistics.data.gov.uk/id/local-authority/38,Oxfordshire County Council,SCS Pooled Budgets,PD Comm Supp Purchasg Budget - Didcot,Other Agency and Contracted Services,57401,Direct Payments,15/05/2013,3301678206,848,WK1 Advance Housing & Support
http://statistics.data.gov.uk/id/local-authority/38,Oxfordshire County Council,SCS Pooled Budgets,Community Support Budget - Witney,Other Agency and Contracted Services,57401,Direct Payments,15/05/2013,3301678207,1000,WK1 Advance Housing & Support
http://statistics.data.gov.uk/id/local-authority/38,Oxfordshire County Council,SCS Pooled Budgets,Community Support Budget - Thame,Other Agency and Contracted Services,57401,Direct Payments,15/05/2013,3301678208,604,WK1 Advance Housing & Support
http://statistics.data.gov.uk/id/local-authority/38,Oxfordshire County Council,SCS Pooled Budgets,Community Support Budget - Banbury,Other Agency and Contracted Services,57401,Direct Payments,15/05/2013,3301678211,1332,WK1 Advance Housing & Support
http://statistics.data.gov.uk/id/local-authority/38,Oxfordshire County Council,SCS Pooled Budgets,Direct Payments City Team,Other Agency and Contracted Services,57401,Direct Payments,15/05/2013,3301678212,4600.12,WK1 Advance Housing & Support
http://statistics.data.gov.uk/id/local-authority/38,Oxfordshire County Council,SCS Pooled Budgets,Direct Payments City Team,Other Agency and Contracted Services,57401,Direct Payments,15/05/2013,3301678212,2240,WK1 Advance Housing & Support
http://statistics.data.gov.uk/id/local-authority/38,Oxfordshire County Council,SCS Pooled Budgets,Direct Payments City Team,Other Agency and Contracted Services,57401,Direct Payments,15/05/2013,3301678212,1664,WK1 Advance Housing & Support
http://statistics.data.gov.uk/id/local-authority/38,Oxfordshire County Council,SCS Pooled Budgets,Community Support Budget - Witney,Other Agency and Contracted Services,57401,Direct Payments,15/05/2013,3301678214,1292,WK1 Advance Housing & Support
http://statistics.data.gov.uk/id/local-authority/38,Oxfordshire County Council,SCS Pooled Budgets,PD Comm Supp Purchasg Budget - Didcot,Other Agency and Contracted Services,57401,Direct Payments,15/05/2013,3301678215,893.52,WK1 Advance Housing & Support
http://statistics.data.gov.uk/id/local-authority/38,Oxfordshire County Council,SCS Pooled Budgets,Community Support Budget - City,Other Agency and Contracted Services,57401,Direct Payments,15/05/2013,3301678216,868,WK1 Advance Housing & Support
http://statistics.data.gov.uk/id/local-authority/38,Oxfordshire County Council,SCS Pooled Budgets,Community Support Budget - Banbury,Other Agency and Contracted Services,57401,Direct Payments,15/05/2013,3301678217,1592,WK1 Advance Housing & Support
http://statistics.data.gov.uk/id/local-authority/38,Oxfordshire County Council,SCS Pooled Budgets,Community Support Budget - Witney,Other Agency and Contracted Services,57401,Direct Payments,15/05/2013,3301678218,500,WK1 Advance Housing & Support
http://statistics.data.gov.uk/id/local-authority/38,Oxfordshire County Council,SCS Pooled Budgets,Community Support Budget - Banbury,Other Agency and Contracted Services,57401,Direct Payments,15/05/2013,3301678219,2248,WK1 Advance Housing & Support
http://statistics.data.gov.uk/id/local-authority/38,Oxfordshire County Council,SCS Pooled Budgets,PD Comm Supp Purchasg Budget - Thame,Other Agency and Contracted Services,57401,Direct Payments,15/05/2013,3301678220,1048,WK1 Advance Housing & Support
http://statistics.data.gov.uk/id/local-authority/38,Oxfordshire County Council,SCS Pooled Budgets,PD Comm Supp Budget - Banbury,Other Agency and Contracted Services,57401,Direct Payments,15/05/2013,3301678221,1376,WK1 Advance Housing & Support
http://statistics.data.gov.uk/id/local-authority/38,Oxfordshire County Council,SCS Pooled Budgets,Community Support Budget - Henley,Other Agency and Contracted Services,57401,Direct Payments,15/05/2013,3301678222,2800,WK1 Advance Housing & Support
http://statistics.data.gov.uk/id/local-authority/38,Oxfordshire County Council,SCS Pooled Budgets,Community Support Budget - Banbury,Other Agency and Contracted Services,57401,Direct Payments,15/05/2013,3301678223,671.36,WK1 Advance Housing & Support
http://statistics.data.gov.uk/id/local-authority/38,Oxfordshire County Council,SCS Pooled Budgets,PD Comm Supp Budget - Banbury,Other Agency and Contracted Services,57401,Direct Payments,15/05/2013,3301678225,2074.48,WK1 Advance Housing & Support
http://statistics.data.gov.uk/id/local-authority/38,Oxfordshire County Council,SCS Pooled Budgets,Community Support Budget - Witney,Other Agency and Contracted Services,57401,Direct Payments,15/05/2013,3301678226,1341.4,WK1 Advance Housing & Support
http://statistics.data.gov.uk/id/local-authority/38,Oxfordshire County Council,SCS Pooled Budgets,Community Support Budget - Banbury,Other Agency and Contracted Services,57401,Direct Payments,15/05/2013,3301678227,1144,WK1 Advance Housing & Support
http://statistics.data.gov.uk/id/local-authority/38,Oxfordshire County Council,SCS Pooled Budgets,Community Support Budget - Didcot,Other Agency and Contracted Services,57401,Direct Payments,15/05/2013,3301678229,860,WK1 Advance Housing & Support
http://statistics.data.gov.uk/id/local-authority/38,Oxfordshire County Council,SCS Pooled Budgets,Direct Payments North Team,Other Agency and Contracted Services,57401,Direct Payments,15/05/2013,3301678231,1255.84,WK1 Advance Housing & Support
http://statistics.data.gov.uk/id/local-authority/38,Oxfordshire County Council,SCS Pooled Budgets,PD Comm Supp Purchasg Budget - Chip. N.,Other Agency and Contracted Services,57401,Direct Payments,15/05/2013,3301678232,672,WK1 Advance Housing & Support
http://statistics.data.gov.uk/id/local-authority/38,Oxfordshire County Council,SCS Pooled Budgets,Community Support Budget - Banbury,Other Agency and Contracted Services,57401,Direct Payments,15/05/2013,3301678233,2948.6,WK1 Advance Housing & Support
http://statistics.data.gov.uk/id/local-authority/38,Oxfordshire County Council,SCS Pooled Budgets,Community Support Budget - Banbury,Other Agency and Contracted Services,57401,Direct Payments,15/05/2013,3301678234,848,WK1 Advance Housing & Support
http://statistics.data.gov.uk/id/local-authority/38,Oxfordshire County Council,SCS Pooled Budgets,PD Comm Supp Purchasg Budget - Didcot,Other Agency and Contracted Services,57401,Direct Payments,15/05/2013,3301678236,824.52,WK1 Advance Housing & Support
http://statistics.data.gov.uk/id/local-authority/38,Oxfordshire County Council,SCS Pooled Budgets,PD Comm Supp Budget - Banbury,Other Agency and Contracted Services,57401,Direct Payments,15/05/2013,3301678237,1884,WK1 Advance Housing & Support
http://statistics.data.gov.uk/id/local-authority/38,Oxfordshire County Council,SCS Pooled Budgets,Community Support Budget - Witney,Other Agency and Contracted Services,57401,Direct Payments,15/05/2013,3301678238,968,WK1 Advance Housing & Support
http://statistics.data.gov.uk/id/local-authority/38,Oxfordshire County Council,SCS Pooled Budgets,Community Support Budget - Banbury,Other Agency and Contracted Services,57401,Direct Payments,15/05/2013,3301678240,800,WK1 Advance Housing & Support
http://statistics.data.gov.uk/id/local-authority/38,Oxfordshire County Council,SCS Pooled Budgets,Community Support Budget - Wantage,Other Agency and Contracted Services,57401,Direct Payments,15/05/2013,3301678242,828,WK1 Advance Housing & Support
http://statistics.data.gov.uk/id/local-authority/38,Oxfordshire County Council,SCS Pooled Budgets,Community Support Budget - City,Other Agency and Contracted Services,57401,Direct Payments,15/05/2013,3301678243,756,WK1 Advance Housing & Support
http://statistics.data.gov.uk/id/local-authority/38,Oxfordshire County Council,SCS Pooled Budgets,Community Support Budget - Banbury,Other Agency and Contracted Services,57401,Direct Payments,15/05/2013,3301678247,822.76,WK1 Advance Housing & Support
http://statistics.data.gov.uk/id/local-authority/38,Oxfordshire County Council,SCS Pooled Budgets,Community Support Budget - City,Other Agency and Contracted Services,57401,Direct Payments,15/05/2013,3301678248,2028,WK1 Advance Housing & Support
http://statistics.data.gov.uk/id/local-authority/38,Oxfordshire County Council,SCS Pooled Budgets,Community Support Budget - Chipping Nort,Other Agency and Contracted Services,57401,Direct Payments,15/05/2013,3301678249,1100,WK1 Advance Housing & Support
http://statistics.data.gov.uk/id/local-authority/38,Oxfordshire County Council,SCS Pooled Budgets,Community Support Budget - Witney,Other Agency and Contracted Services,57401,Direct Payments,15/05/2013,3301678251,1044,WK1 Advance Housing & Support
http://statistics.data.gov.uk/id/local-authority/38,Oxfordshire County Council,SCS Pooled Budgets,PD Comm Supp Budget - Banbury,Other Agency and Contracted Services,57401,Direct Payments,15/05/2013,3301678254,1548,WK1 Advance Housing & Support
http://statistics.data.gov.uk/id/local-authority/38,Oxfordshire County Council,SCS Pooled Budgets,PHB OP Package,Other Agency and Contracted Services,57401,Direct Payments,15/05/2013,3301678255,4796.92,WK1 Advance Housing & Support
http://statistics.data.gov.uk/id/local-authority/38,Oxfordshire County Council,SCS Pooled Budgets,Community Support Budget - Banbury,Other Agency and Contracted Services,57401,Direct Payments,15/05/2013,3301678257,792,WK1 Advance Housing & Support
http://statistics.data.gov.uk/id/local-authority/38,Oxfordshire County Council,SCS Pooled Budgets,Community Support Budget - Henley,Other Agency and Contracted Services,57401,Direct Payments,15/05/2013,3301678258,2760,WK1 Advance Housing & Support
http://statistics.data.gov.uk/id/local-authority/38,Oxfordshire County Council,SCS Pooled Budgets,PD Comm Supp Purchasg Budget - City,Other Agency and Contracted Services,57401,Direct Payments,15/05/2013,3301678260,1200,WK1 Advance Housing & Support
http://statistics.data.gov.uk/id/local-authority/38,Oxfordshire County Council,SCS Pooled Budgets,Community Support Budget - Kidlington,Other Agency and Contracted Services,57401,Direct Payments,15/05/2013,3301678261,1236,WK1 Advance Housing & Support
http://statistics.data.gov.uk/id/local-authority/38,Oxfordshire County Council,SCS Pooled Budgets,Community Support Budget - Henley,Other Agency and Contracted Services,57401,Direct Payments,15/05/2013,3301678264,922,WK1 Advance Housing & Support
http://statistics.data.gov.uk/id/local-authority/38,Oxfordshire County Council,SCS Pooled Budgets,Direct Payments North Team,Other Agency and Contracted Services,57401,Direct Payments,15/05/2013,3301678266,1348,WK1 Advance Housing & Support
http://statistics.data.gov.uk/id/local-authority/38,Oxfordshire County Council,SCS Pooled Budgets,Community Support Budget - City,Other Agency and Contracted Services,57401,Direct Payments,15/05/2013,3301678267,756,WK1 Advance Housing & Support
http://statistics.data.gov.uk/id/local-authority/38,Oxfordshire County Council,SCS Pooled Budgets,Community Support Budget - Banbury,Other Agency and Contracted Services,57401,Direct Payments,15/05/2013,3301678268,2000,WK1 Advance Housing & Support
http://statistics.data.gov.uk/id/local-authority/38,Oxfordshire County Council,SCS Pooled Budgets,PD Comm Supp Purchasg Budget - Thame,Other Agency and Contracted Services,57401,Direct Payments,15/05/2013,3301678269,732,WK1 Advance Housing & Support
http://statistics.data.gov.uk/id/local-authority/38,Oxfordshire County Council,SCS Pooled Budgets,Community Support Budget - Bicester,Other Agency and Contracted Services,57401,Direct Payments,15/05/2013,3301678270,680,WK1 Advance Housing & Support
http://statistics.data.gov.uk/id/local-authority/38,Oxfordshire County Council,SCS Pooled Budgets,Direct Payments North Team,Other Agency and Contracted Services,57401,Direct Payments,15/05/2013,3301678271,12023.52,WK1 Advance Housing & Support
http://statistics.data.gov.uk/id/local-authority/38,Oxfordshire County Council,SCS Pooled Budgets,Direct Payments North Team,Other Agency and Contracted Services,57401,Direct Payments,15/05/2013,3301678271,1299.84,WK1 Advance Housing & Support
http://statistics.data.gov.uk/id/local-authority/38,Oxfordshire County Council,SCS Pooled Budgets,Direct Payments North Team,Other Agency and Contracted Services,57401,Direct Payments,15/05/2013,3301678272,1318.6,WK1 Advance Housing & Support
http://statistics.data.gov.uk/id/local-authority/38,Oxfordshire County Council,SCS Pooled Budgets,Community Support Budget - Didcot,Other Agency and Contracted Services,57401,Direct Payments,15/05/2013,3301678273,987.2,WK1 Advance Housing & Support
http://statistics.data.gov.uk/id/local-authority/38,Oxfordshire County Council,SCS Pooled Budgets,Community Support Budget - Banbury,Other Agency and Contracted Services,57401,Direct Payments,15/05/2013,3301678275,1164,WK1 Advance Housing & Support
http://statistics.data.gov.uk/id/local-authority/38,Oxfordshire County Council,SCS Pooled Budgets,PD Comm Supp Budget - Banbury,Other Agency and Contracted Services,57401,Direct Payments,15/05/2013,3301678277,1772,WK1 Advance Housing & Support
http://statistics.data.gov.uk/id/local-authority/38,Oxfordshire County Council,SCS Pooled Budgets,Community Support Budget - City,Other Agency and Contracted Services,57401,Direct Payments,15/05/2013,3301678279,1060,WK1 Advance Housing & Support
http://statistics.data.gov.uk/id/local-authority/38,Oxfordshire County Council,SCS Pooled Budgets,PD Comm Supp Purchasg Budget - City,Other Agency and Contracted Services,57401,Direct Payments,15/05/2013,3301678280,840,WK1 Advance Housing & Support
http://statistics.data.gov.uk/id/local-authority/38,Oxfordshire County Council,SCS Pooled Budgets,Direct Payments South Team,Other Agency and Contracted Services,57401,Direct Payments,15/05/2013,3301678282,1085.71,WK1 Advance Housing & Support
http://statistics.data.gov.uk/id/local-authority/38,Oxfordshire County Council,SCS Pooled Budgets,Community Support Budget - City,Other Agency and Contracted Services,57401,Direct Payments,15/05/2013,3301678284,1536,WK1 Advance Housing & Support
http://statistics.data.gov.uk/id/local-authority/38,Oxfordshire County Council,SCS Pooled Budgets,Community Support Budget - Abingdon,Other Agency and Contracted Services,57401,Direct Payments,15/05/2013,3301678285,2312,WK1 Advance Housing & Support
http://statistics.data.gov.uk/id/local-authority/38,Oxfordshire County Council,SCS Pooled Budgets,Community Support Budget - Banbury,Other Agency and Contracted Services,57401,Direct Payments,15/05/2013,3301678287,508,WK1 Advance Housing & Support
http://statistics.data.gov.uk/id/local-authority/38,Oxfordshire County Council,SCS Pooled Budgets,Direct Payments North Team,Other Agency and Contracted Services,57401,Direct Payments,15/05/2013,3301678288,1011.6,WK1 Advance Housing & Support
http://statistics.data.gov.uk/id/local-authority/38,Oxfordshire County Council,SCS Pooled Budgets,PD Comm Supp Purchasg Budget - Witney,Other Agency and Contracted Services,57401,Direct Payments,15/05/2013,3301678289,1528,WK1 Advance Housing & Support
http://statistics.data.gov.uk/id/local-authority/38,Oxfordshire County Council,SCS Pooled Budgets,PD Comm Supp Budget - Banbury,Other Agency and Contracted Services,57401,Direct Payments,15/05/2013,3301678290,1704,WK1 Advance Housing & Support
http://statistics.data.gov.uk/id/local-authority/38,Oxfordshire County Council,SCS Pooled Budgets,Community Support Budget - Henley,Other Agency and Contracted Services,57401,Direct Payments,15/05/2013,3301678291,620,WK1 Advance Housing & Support
http://statistics.data.gov.uk/id/local-authority/38,Oxfordshire County Council,SCS Pooled Budgets,Community Support Budget - Banbury,Other Agency and Contracted Services,57401,Direct Payments,15/05/2013,3301678292,1624,WK1 Advance Housing & Support
http://statistics.data.gov.uk/id/local-authority/38,Oxfordshire County Council,SCS Pooled Budgets,Direct Payments North Team,Other Agency and Contracted Services,57401,Direct Payments,15/05/2013,3301678293,796.32,WK1 Advance Housing & Support
http://statistics.data.gov.uk/id/local-authority/38,Oxfordshire County Council,SCS Pooled Budgets,Direct Payments North Team,Other Agency and Contracted Services,57401,Direct Payments,15/05/2013,3301678294,507.4,WK1 Advance Housing & Support
http://statistics.data.gov.uk/id/local-authority/38,Oxfordshire County Council,SCS Pooled Budgets,Community Support Budget - Chipping Nort,Other Agency and Contracted Services,57401,Direct Payments,15/05/2013,3301678296,739.57,WK1 Advance Housing & Support
http://statistics.data.gov.uk/id/local-authority/38,Oxfordshire County Council,SCS Pooled Budgets,Community Support Budget - Chipping Nort,Other Agency and Contracted Services,57401,Direct Payments,15/05/2013,3301678296,668,WK1 Advance Housing & Support
http://statistics.data.gov.uk/id/local-authority/38,Oxfordshire County Council,SCS Pooled Budgets,Community Support Budget - Chipping Nort,Other Agency and Contracted Services,57401,Direct Payments,15/05/2013,3301678296,-722.29,WK1 Advance Housing & Support
http://statistics.data.gov.uk/id/local-authority/38,Oxfordshire County Council,SCS Pooled Budgets,PD Comm Supp Purchasg Budget - Witney,Other Agency and Contracted Services,57401,Direct Payments,15/05/2013,3301678297,1168,WK1 Advance Housing & Support
http://statistics.data.gov.uk/id/local-authority/38,Oxfordshire County Council,SCS Pooled Budgets,Direct Payments North Team,Other Agency and Contracted Services,57401,Direct Payments,15/05/2013,3301678298,4047.12,WK1 Advance Housing & Support
http://statistics.data.gov.uk/id/local-authority/38,Oxfordshire County Council,SCS Pooled Budgets,Direct Payments North Team,Other Agency and Contracted Services,57401,Direct Payments,15/05/2013,3301678298,-2233,WK1 Advance Housing & Support
http://statistics.data.gov.uk/id/local-authority/38,Oxfordshire County Council,SCS Pooled Budgets,Direct Payments North Team,Other Agency and Contracted Services,57401,Direct Payments,15/05/2013,3301678298,1471.68,WK1 Advance Housing & Support
http://statistics.data.gov.uk/id/local-authority/38,Oxfordshire County Council,SCS Pooled Budgets,PD Comm Supp Purchasg Budget - Thame,Other Agency and Contracted Services,57401,Direct Payments,15/05/2013,3301678300,1096,WK1 Advance Housing & Support
http://statistics.data.gov.uk/id/local-authority/38,Oxfordshire County Council,SCS Pooled Budgets,Community Support Budget - Witney,Other Agency and Contracted Services,57401,Direct Payments,15/05/2013,3301678301,1044,WK1 Advance Housing & Support
http://statistics.data.gov.uk/id/local-authority/38,Oxfordshire County Council,SCS Pooled Budgets,Direct Payments North Team,Other Agency and Contracted Services,57401,Direct Payments,15/05/2013,3301678302,2103.68,WK1 Advance Housing & Support
http://statistics.data.gov.uk/id/local-authority/38,Oxfordshire County Council,SCS Pooled Budgets,Community Support Budget - Wantage,Other Agency and Contracted Services,57401,Direct Payments,15/05/2013,3301678303,512,WK1 Advance Housing & Support
http://statistics.data.gov.uk/id/local-authority/38,Oxfordshire County Council,SCS Pooled Budgets,Community Support Budget - Faringdon,Other Agency and Contracted Services,57401,Direct Payments,15/05/2013,3301678304,1620,WK1 Advance Housing & Support
http://statistics.data.gov.uk/id/local-authority/38,Oxfordshire County Council,SCS Pooled Budgets,Community Support Budget - Didcot,Other Agency and Contracted Services,57401,Direct Payments,15/05/2013,3301678305,788,WK1 Advance Housing & Support
http://statistics.data.gov.uk/id/local-authority/38,Oxfordshire County Council,SCS Pooled Budgets,Community Support Budget - Didcot,Other Agency and Contracted Services,57401,Direct Payments,15/05/2013,3301678306,620,WK1 Advance Housing & Support
http://statistics.data.gov.uk/id/local-authority/38,Oxfordshire County Council,SCS Pooled Budgets,PD Comm Supp Purchasg Budget - Thame,Other Agency and Contracted Services,57401,Direct Payments,15/05/2013,3301678307,2400,WK1 Advance Housing & Support
http://statistics.data.gov.uk/id/local-authority/38,Oxfordshire County Council,SCS Pooled Budgets,Community Support Budget - Thame,Other Agency and Contracted Services,57401,Direct Payments,15/05/2013,3301678307,2283,WK1 Advance Housing & Support
http://statistics.data.gov.uk/id/local-authority/38,Oxfordshire County Council,SCS Pooled Budgets,Direct Payments North Team,Other Agency and Contracted Services,57401,Direct Payments,15/05/2013,3301678309,600,WK1 Advance Housing & Support
http://statistics.data.gov.uk/id/local-authority/38,Oxfordshire County Council,SCS Pooled Budgets,Direct Payments North Team,Other Agency and Contracted Services,57401,Direct Payments,15/05/2013,3301678310,600,WK1 Advance Housing & Support
http://statistics.data.gov.uk/id/local-authority/38,Oxfordshire County Council,SCS Pooled Budgets,Community Support Budget - Witney,Other Agency and Contracted Services,57401,Direct Payments,15/05/2013,3301678311,964,WK1 Advance Housing & Support
http://statistics.data.gov.uk/id/local-authority/38,Oxfordshire County Council,SCS Pooled Budgets,PD Comm Supp Purchasg Budget - Witney,Other Agency and Contracted Services,57401,Direct Payments,15/05/2013,3301678312,4264,WK1 Advance Housing & Support
http://statistics.data.gov.uk/id/local-authority/38,Oxfordshire County Council,SCS Pooled Budgets,Community Support Budget - Witney,Other Agency and Contracted Services,57401,Direct Payments,15/05/2013,3301678314,679.2,WK1 Advance Housing & Support
http://statistics.data.gov.uk/id/local-authority/38,Oxfordshire County Council,SCS Pooled Budgets,Direct Payments North Team,Other Agency and Contracted Services,57401,Direct Payments,15/05/2013,3301678315,5810.12,WK1 Advance Housing & Support
http://statistics.data.gov.uk/id/local-authority/38,Oxfordshire County Council,SCS Pooled Budgets,PD Comm Supp Purchasg Budget - Wantage,Other Agency and Contracted Services,57401,Direct Payments,15/05/2013,3301678317,880,WK1 Advance Housing & Support
http://statistics.data.gov.uk/id/local-authority/38,Oxfordshire County Council,SCS Pooled Budgets,Community Support Budget - Faringdon,Other Agency and Contracted Services,57401,Direct Payments,15/05/2013,3301678318,2272,WK1 Advance Housing & Support
http://statistics.data.gov.uk/id/local-authority/38,Oxfordshire County Council,SCS Pooled Budgets,Direct Payments South Team,Other Agency and Contracted Services,57401,Direct Payments,15/05/2013,3301678319,618.08,WK1 Advance Housing & Support
http://statistics.data.gov.uk/id/local-authority/38,Oxfordshire County Council,SCS Pooled Budgets,PD Comm Supp Budgt - Bicester/Kidlington,Other Agency and Contracted Services,57401,Direct Payments,15/05/2013,3301678320,2304,WK1 Advance Housing & Support
http://statistics.data.gov.uk/id/local-authority/38,Oxfordshire County Council,SCS Pooled Budgets,Community Support Budget - Abingdon,Other Agency and Contracted Services,57401,Direct Payments,15/05/2013,3301678321,952,WK1 Advance Housing & Support
http://statistics.data.gov.uk/id/local-authority/38,Oxfordshire County Council,SCS Pooled Budgets,PD Comm Supp Purchasg Budget - Abingdon,Other Agency and Contracted Services,57401,Direct Payments,15/05/2013,3301678322,833.6,WK1 Advance Housing & Support
http://statistics.data.gov.uk/id/local-authority/38,Oxfordshire County Council,SCS Pooled Budgets,PD Comm Supp Purchasg Budget - Thame,Other Agency and Contracted Services,57401,Direct Payments,15/05/2013,3301678326,2352,WK1 Advance Housing & Support
http://statistics.data.gov.uk/id/local-authority/38,Oxfordshire County Council,SCS Pooled Budgets,PD Comm Supp Purchasg Budget - Witney,Other Agency and Contracted Services,57401,Direct Payments,15/05/2013,3301678328,1328,WK1 Advance Housing & Support
http://statistics.data.gov.uk/id/local-authority/38,Oxfordshire County Council,SCS Pooled Budgets,Direct Payments City Team,Other Agency and Contracted Services,57401,Direct Payments,15/05/2013,3301678333,1009.2,WK1 Advance Housing & Support
http://statistics.data.gov.uk/id/local-authority/38,Oxfordshire County Council,SCS Pooled Budgets,PD Comm Supp Budgt - Bicester/Kidlington,Other Agency and Contracted Services,57401,Direct Payments,15/05/2013,3301678334,1346.64,WK1 Advance Housing & Support
http://statistics.data.gov.uk/id/local-authority/38,Oxfordshire County Council,SCS Pooled Budgets,PD CS Purch Budget - Health S28a JC,Other Agency and Contracted Services,57401,Direct Payments,15/05/2013,3301678334,2001.36,WK1 Advance Housing & Support
